﻿Body Name,Supplier ID,Supplier Name,Transaction Number,Their Ref,Date,Gross Value ,VAT Amount,Service Label,Service Code,Expenditure Code,Expenditure Category,Service Division Label
Blackpool Council,1012990,Gladstone Mrm Limited,452651,SUP0004742,17/05/2017,2694,449,Leisure,LESR,3801,Other Expenses,Community & Env Services
Blackpool Council,1100004,Zoggs International Ltd,455292,I-0431644,11/05/2017,830.52,138.42,Leisure,LESR,3815,Saleable Goods,Community & Env Services
Blackpool Council,1102627,Fresh Pastures Processing Ltd,455314,29204020417,02/05/2017,353.43,0,Urgent Care,URGCAR,3101,Provisions,Adult & Families
Blackpool Council,1064846,Blueton Limited,455322,170228,15/05/2017,702,117,Parks,PARKS,3455,Memorials Trees And Benches,Community & Env Services
Blackpool Council,1011121,Fylde Coast Gate Ltd,455513,27085,12/05/2017,414,69,Community Safety,COMSAF,3041,Other Materials,Places
Blackpool Council,1068172,Northern Print Distribution Ltd,455524,9343,03/05/2017,360,60,Tourism General,PRG,3301,Printing,Places
Blackpool Council,1058510,Lifeline Language Services Ltd,455532,0617084,03/05/2017,708,118,Departmental Management,DEPMGT,3419,Interpreters Fees,Adult & Families
Blackpool Council,1075909,Viatec Uk Ltd,455546,19676769,04/05/2017,920,0,Highways & Engineering,ZM0018,9773,Orders Received Not Invoiced,Blackpool Services
Blackpool Council,1075909,Viatec Uk Ltd,455546,19676769,04/05/2017,1104,184,Highways & Engineering,ZM0018,9511A,Stocks Efin,Blackpool Services
Blackpool Council,1044756,Northgate Public Services (Uk) Ltd,455556,91389187,02/05/2017,1777.44,296.24,Customer First,FCAD,3401,General Services,Resources
Blackpool Council,1006576,The Helping Hand Company,455593,291837,04/05/2017,555.6,0,Highways & Engineering,ZM0018,9773,Orders Received Not Invoiced,Blackpool Services
Blackpool Council,1006576,The Helping Hand Company,455593,291837,04/05/2017,666.72,111.12,Highways & Engineering,ZM0018,9511A,Stocks Efin,Blackpool Services
Blackpool Council,1064292,Townscape Products Limited,455612,60728,04/05/2017,2352,392,Building Maintenance,BLMTCE,3041,Other Materials,Resources
Blackpool Council,1064292,Townscape Products Limited,455613,60727,04/05/2017,3528,588,Building Maintenance,BLMTCE,3041,Other Materials,Resources
Blackpool Council,1006425,Turnock Ltd,455786,43288,03/05/2017,1440,240,Illuminations - Operational,PJOPS,3041,Other Materials,Places
Blackpool Council,1006716,Survey Operations Limited,455802,27302,03/05/2017,5670,945,Buildings,AEB,3401,General Services,Resources
Blackpool Council,1086788,Idox Software Ltd,455823,107097,18/05/2017,6132,1022,Local Land Charges,BB0001,3532,Comp-Running & License Costs,Budgets Outside Cash Limits
Blackpool Council,1076264,Alliance Disposables Ltd,455828,I5858428,05/05/2017,749,0,Highways & Engineering,ZM0018,9773,Orders Received Not Invoiced,Blackpool Services
Blackpool Council,1076264,Alliance Disposables Ltd,455828,I5858428,05/05/2017,898.8,149.8,Highways & Engineering,ZM0018,9511A,Stocks Efin,Blackpool Services
Blackpool Council,1011121,Fylde Coast Gate Ltd,455835,27095,12/05/2017,306,51,Community Safety,COMSAF,3041,Other Materials,Places
Blackpool Council,1011121,Fylde Coast Gate Ltd,455836,27094,12/05/2017,372,62,Community Safety,COMSAF,3041,Other Materials,Places
Blackpool Council,1031983,Olympic Lock & Safeguards Ltd,455839,6434,18/05/2017,861.6,143.6,Community Safety,COMSAF,3041,Other Materials,Places
Blackpool Council,1028641,New Mind Internet Consultancy Ltd,455840,NM31388,03/05/2017,4200,700,Website Team,PRJ,3535,Website Costs,Places
Blackpool Council,1051151,Fisc Healthcare Llp,455861,202700,03/05/2017,9035.03,1505.84,Undefined Client Category,MT,3006,Hire Of Equipment,Adult & Families
Blackpool Council,1018184,Blackpool Skip Hire,455959,4899,24/05/2017,945,157.5,Waste Management,WASTE,4514,Contract 'E',Community & Env Services
Blackpool Council,1076264,Alliance Disposables Ltd,455966,I5860410,05/05/2017,657.84,109.64,Street Cleaning & Leaf,CLEANS,3041,Other Materials,Community & Env Services
Blackpool Council,1090465,Gemini Reinstatement Products Ltd,455977,5129,03/05/2017,444,0,Highways & Engineering,ZM0018,9773,Orders Received Not Invoiced,Blackpool Services
Blackpool Council,1090465,Gemini Reinstatement Products Ltd,455977,5129,03/05/2017,532.8,88.8,Highways & Engineering,ZM0018,9511A,Stocks Efin,Blackpool Services
Blackpool Council,1107101,Jj Foodservice Ltd,455979,I007192833,03/05/2017,1124.48,0,Catering Services,CATERG,3101,Provisions,Community & Env Services
Blackpool Council,1011369,Lancashire County Council,455987,5200140356,12/05/2017,28298.96,4145.16,Street Cleaning & Leaf,CLEANS,3401,General Services,Community & Env Services
Blackpool Council,1019678,G & S Smirthwaite Ltd,456005,147976,12/05/2017,313.2,52.2,Undefined Client Category,MT,5401,Aids To Daily Living,Adult & Families
Blackpool Council,1019678,G & S Smirthwaite Ltd,456028,147865,05/05/2017,346.8,57.8,Undefined Client Category,MT,5401,Aids To Daily Living,Adult & Families
Blackpool Council,1011121,Fylde Coast Gate Ltd,456128,27035,12/05/2017,2952.31,492.05,Community Safety,COMSAF,3041,Other Materials,Places
Blackpool Council,1011121,Fylde Coast Gate Ltd,456129,27037,12/05/2017,1469.07,244.84,Community Safety,COMSAF,3041,Other Materials,Places
Blackpool Council,1011121,Fylde Coast Gate Ltd,456130,27036,12/05/2017,973.68,162.28,Community Safety,COMSAF,3041,Other Materials,Places
Blackpool Council,1078215,John Packer Ltd,456137,0000119058,05/05/2017,420,70,Music & Cultural Education,MUSIC,3008,Educational Equipment,Children'S Services
Blackpool Council,1101740,Ken Taylor Supplies Limited,456138,0249703,05/05/2017,621.5,0,Highways & Engineering,ZM0018,9773,Orders Received Not Invoiced,Blackpool Services
Blackpool Council,1101740,Ken Taylor Supplies Limited,456138,0249703,05/05/2017,745.8,124.3,Highways & Engineering,ZM0018,9511A,Stocks Efin,Blackpool Services
Blackpool Council,1079017,Building Software Ltd  (Measure 2 Improve),456154,5479,05/05/2017,14940,2490,Maintenance & Works,TRB,3711,Subscriptions,Community & Env Services
Blackpool Council,1097234,Ieg4 Limited,456157,IEG4001453,04/05/2017,3600,600,Benefits - Admin,FCACA,3532,Comp-Running & License Costs,Resources
Blackpool Council,1097234,Ieg4 Limited,456158,IEG4001454,04/05/2017,3600,600,Benefits - Admin,FCACA,3532,Comp-Running & License Costs,Resources
Blackpool Council,1108177,Appreciating People Ltd,456180,58,17/05/2017,7360.8,1214.8,"Skills,Education&Employment",SKEDEM,3801,Other Expenses,Children'S Services
Blackpool Council,1102823,Wilde Consultants Limited,456199,WPCON 14653,22/05/2017,8059.92,1343.32,Bridges (Growth Fund),CTBR,6501,Contract Payments,Capital - Comm & Environ
Blackpool Council,1094424,The Networking People,456208,SI104015,05/05/2017,2226.36,371.06,Corporate Services,FGA,3532,Comp-Running & License Costs,Resources
Blackpool Council,1073351,Limehouse Software Limited,456220,INVLUK001297,18/05/2017,6000,1000,Dev Plang (Incl Plang Policy),PLA,3532,Comp-Running & License Costs,Places
Blackpool Council,1058510,Lifeline Language Services Ltd,456221,0717022,11/05/2017,1062,177,Departmental Management,DEPMGT,3419,Interpreters Fees,Adult & Families
Blackpool Council,1068172,Northern Print Distribution Ltd,456222,9423,11/05/2017,270,45,Tourism General,PRG,3301,Printing,Places
Blackpool Council,1102440,Royal Highland Agricultural Society,456223,SIT113310,04/05/2017,805.2,148.36,Conferences,PRA,3015,Exhibitions Equipment,Places
Blackpool Council,1011730,Metric Group Limited,456224,148106,22/05/2017,250.68,41.78,Parking Administration,PARADM,2002,Repairs And Maintenance,Budgets Outside Cash Limits
Blackpool Council,1098339,Methodist Action (N. W.) Ltd,456227,4371,02/05/2017,25000,0,Social Fund - Client,FC1802,5209,Crisis/Emergency Support,Resources
Blackpool Council,1019678,G & S Smirthwaite Ltd,456243,147902,05/05/2017,694.8,115.8,Children With Additional Needs,CWAN,3008,Educational Equipment,Children'S Services
Blackpool Council,1049304,Insight Direct (Uk) Ltd,456248,3340567,12/05/2017,454.79,75.8,Corporate Services,FGA,3531,Computer-H'Ware Purchase,Resources
Blackpool Council,1080563,Bay Media,456256,13168,12/05/2017,20490,3415,Marketing,PRL,3401,General Services,Places
Blackpool Council,1013705,Stadia Sports/ Broxap Limited,456265,INV208166,05/05/2017,729.6,121.6,Cems Crems Etc,CEMCRE,3454,Remove And Refix Memorials,Governance & Partnerships
Blackpool Council,1106266,Think Jessica,456266,TJ82356,25/05/2017,490,0,Trading Standards,PYT,3304,Books And Periodicals,Community & Env Services
Blackpool Council,1102823,Wilde Consultants Limited,456267,WPCON 14654,22/05/2017,7011.72,1168.62,Bridges (Growth Fund),CTBR,6501,Contract Payments,Capital - Comm & Environ
Blackpool Council,1102823,Wilde Consultants Limited,456269,WPCON 14656,22/05/2017,1999.36,333.23,Bridges (Growth Fund),CTBR,6501,Contract Payments,Capital - Comm & Environ
Blackpool Council,1102823,Wilde Consultants Limited,456270,WPCON 14657,22/05/2017,4100.96,683.49,Bridges (Growth Fund),CTBR,6501,Contract Payments,Capital - Comm & Environ
Blackpool Council,1102823,Wilde Consultants Limited,456271,WPCON 14658,22/05/2017,3779.89,629.98,Bridges (Growth Fund),CTBR,6501,Contract Payments,Capital - Comm & Environ
Blackpool Council,1102823,Wilde Consultants Limited,456272,WPCON 14659,22/05/2017,3504.31,584.05,Bridges (Growth Fund),CTBR,6501,Contract Payments,Capital - Comm & Environ
Blackpool Council,1022781,Moore Readymix Ltd,456310,78918,05/05/2017,391.74,65.29,Engineering,ENGINE,3041,Other Materials,Community & Env Services
Blackpool Council,1043832,Denwire Limited,456314,IN202714,05/05/2017,1604.74,267.46,Illuminations - Operational,PJOPS,3041,Other Materials,Places
Blackpool Council,1027733,William Smith & Sons (Barnard Castle) Ltd,456315,412473,11/05/2017,422.34,70.39,Engineering,ENGINE,1012,Premises Maint-Priv.Contractor,Community & Env Services
Blackpool Council,1068747,Local Government Information Unit,456321,304664,10/05/2017,5996.4,999.4,Corporate Services,FGA,3821,Research,Resources
Blackpool Council,1007228,Rigby Taylor Ltd,456323,RSIN0216370,12/05/2017,2205,367.5,Parks,PARKS,4570,Football Turf Maintenance,Community & Env Services
Blackpool Council,1057663,Wilde Recruitment Ltd,456338,30367,05/05/2017,410.21,68.37,Bpool/Fwood Tramway Upgrade,CTAHH,6501,Contract Payments,Capital - Comm & Environ
Blackpool Council,1061153,Mwuk Ltd T/A Yaffy,456340,65592,05/05/2017,540,90,Parking Administration,PARADM,3020,Furniture - Purchase,Budgets Outside Cash Limits
Blackpool Council,1061153,Mwuk Ltd T/A Yaffy,456341,65591,05/05/2017,1800,300,Security Services,SECURE,3020,Furniture - Purchase,Places
Blackpool Council,1006419,Tunstall Healthcare (Uk) Ltd,456346,3IN/10297336,11/05/2017,449.64,74.94,Urgent Care,URGCAR,3066,Personal Needs Of Clients,Adult & Families
Blackpool Council,1025240,Key Engineering Supplies Ltd,456356,288868,12/05/2017,278.82,46.47,Shared Care,SHACAR,3065,Drugs & Medical Requisites,Adult & Families
Blackpool Council,1089201,Wedge Group Galvanizing Ltd,456374,MS00141436,12/05/2017,296.87,49.48,Illuminations - Operational,PJOPS,3041,Other Materials,Places
Blackpool Council,1027733,William Smith & Sons (Barnard Castle) Ltd,456421,412813,11/05/2017,347.32,57.89,Engineering,ENGINE,1012,Premises Maint-Priv.Contractor,Community & Env Services
Blackpool Council,1027733,William Smith & Sons (Barnard Castle) Ltd,456427,412812,11/05/2017,658.37,109.73,Engineering,ENGINE,1012,Premises Maint-Priv.Contractor,Community & Env Services
Blackpool Council,1022781,Moore Readymix Ltd,456444,79005,10/05/2017,270.6,45.1,Engineering,ENGINE,3041,Other Materials,Community & Env Services
Blackpool Council,1022781,Moore Readymix Ltd,456445,79028,10/05/2017,324.72,54.12,Engineering,ENGINE,3041,Other Materials,Community & Env Services
Blackpool Council,1100195,Banking Automation Limited,456451,SI-080295,12/05/2017,3316.89,552.81,Cashiers,FC1211,3532,Comp-Running & License Costs,Resources
Blackpool Council,1025240,Key Engineering Supplies Ltd,456479,288939,19/05/2017,445.4,0,Highways & Engineering,ZM0018,9773,Orders Received Not Invoiced,Blackpool Services
Blackpool Council,1025240,Key Engineering Supplies Ltd,456479,288939,19/05/2017,534.48,89.08,Highways & Engineering,ZM0018,9511A,Stocks Efin,Blackpool Services
Blackpool Council,1011121,Fylde Coast Gate Ltd,456484,27110,12/05/2017,594,99,Community Safety,COMSAF,3041,Other Materials,Places
Blackpool Council,1058510,Lifeline Language Services Ltd,456485,0717019,18/05/2017,708,118,Departmental Management,DEPMGT,3419,Interpreters Fees,Adult & Families
Blackpool Council,1090587,M E S Marine Ltd,456486,391,12/05/2017,402,67,Beach Patrol,BEACHP,3401,General Services,Places
Blackpool Council,1062176,Gmbg Ltd T/A Civils & Lintels,456488,FNW/328416,12/05/2017,277.2,46.2,Engineering,ENGINE,3041,Other Materials,Community & Env Services
Blackpool Council,1111496,Bes Rehab Ltd,456499,INVBES120089,19/05/2017,356.28,59.38,Undefined Client Category,MT,5401,Aids To Daily Living,Adult & Families
Blackpool Council,1049942,Quest 88 Limited,456507,84187,12/05/2017,966,161,Undefined Client Category,MT,5401,Aids To Daily Living,Adult & Families
Blackpool Council,1086156,Water Saving Techniques Limited,456517,3255,11/05/2017,4752,792,Engineering,ENGINE,1012,Premises Maint-Priv.Contractor,Community & Env Services
Blackpool Council,1006586,H Jenkinson & Co Ltd,456518,SINV00758477,18/05/2017,3859.34,643.22,Buildings,AEB,3020,Furniture - Purchase,Resources
Blackpool Council,1011702,J & J Decorating Services,456526,7463,12/05/2017,438,73,Building Maintenance,BLMTCE,4501,Private Contractors,Resources
Blackpool Council,1007491,Posturite (Uk) Ltd,456542,INV0436786,12/05/2017,355.32,59.22,Payments & Processing,FB0062,3001,Office Equipment Purchase,Resources
Blackpool Council,1020536,B & D Print Services Ltd,456547,143394,17/05/2017,820.8,136.8,Visitor Services,PRC,3015,Exhibitions Equipment,Places
Blackpool Council,1049304,Insight Direct (Uk) Ltd,456554,3343523,18/05/2017,789.16,131.53,Corporate Services,FGA,3537,Computer-Recharges,Resources
Blackpool Council,1011970,A1 Streamline Road Markings Ltd,456688,1455,10/05/2017,399.21,66.54,Engineering,ENGINE,4501,Private Contractors,Community & Env Services
Blackpool Council,1006576,The Helping Hand Company,456693,292916,19/05/2017,4735.2,789.2,Undefined Client Category,MT,5401,Aids To Daily Living,Adult & Families
Blackpool Council,1008459,The Lancashire Wildlife Trust,456696,10433,19/05/2017,7680,1280,Parks,PARKS,0911,Training Expenses,Community & Env Services
Blackpool Council,1036301,4imprint Direct Ltd,456700,1274644,11/05/2017,1584.48,264.08,Public Health Team,PU0001,4501,Private Contractors,Public Health
Blackpool Council,1006586,H Jenkinson & Co Ltd,456706,SINV00758813,19/05/2017,831.6,138.6,Buildings,AEB,3020,Furniture - Purchase,Resources
Blackpool Council,1007228,Rigby Taylor Ltd,456709,RSIN0217124,19/05/2017,2073,0,Highways & Engineering,ZM0018,9773,Orders Received Not Invoiced,Blackpool Services
Blackpool Council,1007228,Rigby Taylor Ltd,456709,RSIN0217124,19/05/2017,2487.6,414.6,Highways & Engineering,ZM0018,9511A,Stocks Efin,Blackpool Services
Blackpool Council,1101279,Greenpass Training,456711,290301,23/05/2017,3353.98,0,Transport Services,TRANSP,0911,Training Expenses,Community & Env Services
Blackpool Council,1029410,Cts Traffic And Transportation (Fac012),456724,30208,05/05/2017,2494.8,415.8,Licensing - General & Act 2003,BJ3001,3413,Consultants,Community & Env Services
Blackpool Council,1009260,G S Brown,456730,10110,02/05/2017,2666,0,Transport Services,TRANSP,4501,Private Contractors,Community & Env Services
Blackpool Council,1009260,G S Brown,456731,10111,02/05/2017,404,0,Transport Services,TRANSP,4501,Private Contractors,Community & Env Services
Blackpool Council,1009260,G S Brown,456732,10112,02/05/2017,380,0,Transport Services,TRANSP,4501,Private Contractors,Community & Env Services
Blackpool Council,1057663,Wilde Recruitment Ltd,456771,30396,12/05/2017,410.21,68.37,Bpool/Fwood Tramway Upgrade,CTAHH,6501,Contract Payments,Capital - Comm & Environ
Blackpool Council,1100542,Caroline Horn T/A Bentley,456777,BEN/235,17/05/2017,520,0,Leisure,LESR,0911,Training Expenses,Community & Env Services
Blackpool Council,1105990,Fylde Environmental Services,456783,BC/407/2017,19/05/2017,2141,0,Street Cleaning & Leaf,CLEANS,4501,Private Contractors,Community & Env Services
Blackpool Council,1007986,Millercare Limited,456785,1/48017,10/05/2017,672,112,Urgent Care,URGCAR,3012,Other Equipment,Adult & Families
Blackpool Council,1013415,Drain Doctor Plumbing,456786,16-2163,02/05/2017,3000,500,Illuminations - Operational,PJOPS,1608,Other Cleaning Works,Places
Blackpool Council,1111571,Trojan Consultants Limited,456787,16160,16/05/2017,1188,198,Client Finances,EM1032,3532,Comp-Running & License Costs,Resources
Blackpool Council,1058510,Lifeline Language Services Ltd,456793,0717020,24/05/2017,1062,177,Departmental Management,DEPMGT,3419,Interpreters Fees,Adult & Families
Blackpool Council,1053453,Brenntag Uk Ltd,456800,32SI3247011,17/05/2017,315,52.5,Leisure,LESR,3060,Chemicals,Community & Env Services
Blackpool Council,1053453,Brenntag Uk Ltd,456801,32SI 3246964,11/05/2017,315,52.5,Leisure,LESR,3060,Chemicals,Community & Env Services
Blackpool Council,1011717,Clearview Intelligence Limited,456819,18597,19/05/2017,3276,546,Maintenance & Works,TRB,4501,Private Contractors,Community & Env Services
Blackpool Council,1033140,P J Combustion Solutions,456821,3517,19/05/2017,342,57,Cems Crems Etc,CEMCRE,1111,Cremators,Governance & Partnerships
Blackpool Council,1059927,The Document Management Group,456823,13360,19/05/2017,1020,170,Electoral Services,BGA,3532,Comp-Running & License Costs,Governance & Partnerships
Blackpool Council,1006586,H Jenkinson & Co Ltd,456828,SINV00759244,24/05/2017,786.8,131.13,Buildings,AEB,3020,Furniture - Purchase,Resources
Blackpool Council,1105833,The Business Incentives Group Limited,456836,1573,19/05/2017,756.6,126.1,Pupil Welfare & Attendance,WELLAT,3808,Souvenirs & Gifts,Children'S Services
Blackpool Council,1094424,The Networking People,456838,SI104021,19/05/2017,7985.96,1330.99,Corporate Services,FGA,3532,Comp-Running & License Costs,Resources
Blackpool Council,1017475,Aecom Infrastructure & Environment Uk Ltd,456841,28304478,19/05/2017,12306.5,2051.08,Coast Protection Studies,CPAAB,6506,Consultants Fees,Capital - Comm & Environ
Blackpool Council,1023406,Roy Sadurskis Limited,456848,38,04/05/2017,1710,0,Parks,PARKS,1012,Premises Maint-Priv.Contractor,Community & Env Services
Blackpool Council,1078657,4tech Training Ltd,456851,167,19/05/2017,51679.99,8613.33,Education Diversity,EDDIV,4101,Other Local Authorities,Children'S Services
Blackpool Council,1008135,Marshalls,456853,ZBB1210865,11/05/2017,1244.16,0,Highways & Engineering,ZM0018,9773,Orders Received Not Invoiced,Blackpool Services
Blackpool Council,1008135,Marshalls,456853,ZBB1210865,11/05/2017,1786.75,297.79,Highways & Engineering,ZM0018,9511A,Stocks Efin,Blackpool Services
Blackpool Council,1070502,Parex Limited,456854,INV0119151,11/05/2017,942,0,Highways & Engineering,ZM0018,9773,Orders Received Not Invoiced,Blackpool Services
Blackpool Council,1070502,Parex Limited,456854,INV0119151,11/05/2017,1130.4,188.4,Highways & Engineering,ZM0018,9511A,Stocks Efin,Blackpool Services
Blackpool Council,1023362,Jewson Limited,456857,0181/0167327,05/05/2017,259.2,43.2,Highways & Engineering,ZM0018,9511A,Stocks Efin,Blackpool Services
Blackpool Council,1023362,Jewson Limited,456858,0181/0167363,05/05/2017,259.2,43.2,Highways & Engineering,ZM0018,9511A,Stocks Efin,Blackpool Services
Blackpool Council,1100201,D & A Scrivens And Son,456868,6435,02/05/2017,710.4,118.4,Waste Management,WASTE,1021,Growing,Community & Env Services
Blackpool Council,1073198,Vae Uk Ltd,456930,000496924,22/05/2017,26265.6,4377.6,Engineering,ENGINE,4501,Private Contractors,Community & Env Services
Blackpool Council,1053261,Ad Systems (Uk) Limited,456932,3335,02/05/2017,4062.43,677.07,Cctv,CCTV,1502,Fixtures & Fittings Maint,Places
Blackpool Council,1053261,Ad Systems (Uk) Limited,456933,3336,02/05/2017,1546.03,257.67,Cctv,CCTV,1502,Fixtures & Fittings Maint,Places
Blackpool Council,1009751,Bt Business Direct Limited,456935,IN03738943,22/05/2017,627.84,104.64,Cctv,CCTV,1502,Fixtures & Fittings Maint,Places
Blackpool Council,1025664,Alison Handling Services Ltd,456939,180148,10/05/2017,1248,208,Finance,COBAA,6518,Miscellaneous - Capital,Capital - Resources
Blackpool Council,1058510,Lifeline Language Services Ltd,456940,0717110,25/05/2017,284.04,47.34,Duty And Assessment,JAH,3419,Interpreters Fees,Children'S Services
Blackpool Council,1112854,Sebastian Cox Ltd,456941,INV-545,24/05/2017,1050,175,Art Gallery Summary,AHG,3817,Artwork,Places
Blackpool Council,1071702,Links Signs & Graphics Ltd,456944,LSGI20959,11/05/2017,384,64,Parks,PARKS,3012,Other Equipment,Community & Env Services
Blackpool Council,1071702,Links Signs & Graphics Ltd,456947,LSGI21755,17/05/2017,336,56,Parking Administration,PARADM,2002,Repairs And Maintenance,Budgets Outside Cash Limits
Blackpool Council,1071702,Links Signs & Graphics Ltd,456948,LSGI21783,04/05/2017,2508,418,Tourism General,PRG,3301,Printing,Places
Blackpool Council,1094603,Ncer Cic,456949,61570537,19/05/2017,5097.79,849.63,Central Management,MNGMT,5555,Educational Support,Children'S Services
Blackpool Council,1049304,Insight Direct (Uk) Ltd,456955,3337613,11/05/2017,601.54,100.26,Corporate Services,FGA,3532,Comp-Running & License Costs,Resources
Blackpool Council,1110336,Gillian Fennel,457021,4,02/05/2017,1750,0,Education Diversity,EDDIV,3413,Consultants,Children'S Services
Blackpool Council,1042794,Carlton Fuels Limited,457024,4410729,02/05/2017,20392.36,0,"Insurance,Dso,Banking",ZF0001,9773,Orders Received Not Invoiced,Total Reconciliations
Blackpool Council,1042794,Carlton Fuels Limited,457024,4410729,02/05/2017,24470.83,4078.47,"Insurance,Dso,Banking",ZF0001,9511A,Stocks Efin,Total Reconciliations
Blackpool Council,1058751,Emo Oil Ltd,457025,7890968,04/05/2017,386.32,0,"Insurance,Dso,Banking",ZF0001,9773,Orders Received Not Invoiced,Total Reconciliations
Blackpool Council,1058751,Emo Oil Ltd,457025,7890968,04/05/2017,405.64,19.32,"Insurance,Dso,Banking",ZF0001,9511A,Stocks Efin,Total Reconciliations
Blackpool Council,1007429,Aggregate Industries Uk Ltd,457028,24745094,19/05/2017,90243.21,15040.22,Engineering,ENGINE,1012,Premises Maint-Priv.Contractor,Community & Env Services
Blackpool Council,1112395,Norble Art Design Ltd,457051,2615,24/05/2017,711,118.5,Visitor Services,PRC,7201,Manufactured Goods/Produce,Places
Blackpool Council,1112902,The Bookshop Band,457062,TBB 193,02/05/2017,760,0,Arts Miscellaneous,AHM,3456,Payment To Artists,Places
Blackpool Council,1018211,C & W Berry Ltd,457064,4350013,19/05/2017,331.05,55.17,Illuminations - Operational,PJOPS,3041,Other Materials,Places
Blackpool Council,1076264,Alliance Disposables Ltd,457066,I5897845,24/05/2017,1642.62,273.77,Buildings,AEB,1608,Other Cleaning Works,Resources
Blackpool Council,1076264,Alliance Disposables Ltd,457068,I5897858,24/05/2017,718.56,119.76,Building Cleaning,BLCLEA,1608,Other Cleaning Works,Community & Env Services
Blackpool Council,1011779,Northern Security National Limited,457072,15820,02/05/2017,1131.6,188.6,Security Services,SECURE,3401,General Services,Places
Blackpool Council,1011779,Northern Security National Limited,457073,15821,02/05/2017,2558.4,426.4,Security Services,SECURE,3401,General Services,Places
Blackpool Council,1011779,Northern Security National Limited,457075,15823,02/05/2017,590.4,98.4,Security Services,SECURE,3401,General Services,Places
Blackpool Council,1010619,Askews And Holts Library Services Ltd,457076,5371026,11/05/2017,596.13,0,Central Library,LBB,3304,Books And Periodicals,Places
Blackpool Council,1011518,Tw Joinery & Fencing Contractors,457090,2641,02/05/2017,1680,280,Building Maintenance,BLMTCE,4501,Private Contractors,Resources
Blackpool Council,1060135,Happy Creative Ltd,457091,H4085,05/05/2017,6337.06,1056.18,Economic Development,PTA,3315,Marketing,Places
Blackpool Council,1009166,Glasdon Uk Ltd,457094,728579,05/05/2017,5629.8,938.3,Street Cleaning & Leaf,CLEANS,3042,Direct Materials,Community & Env Services
Blackpool Council,1085937,Parkeon Ltd,457096,UK96834,26/05/2017,274.2,45.7,Parking Operational,PAROPE,3527,Communication Lines,Budgets Outside Cash Limits
Blackpool Council,1069392,Meon Ltd,457097,M17919,23/05/2017,616.61,102.77,Parking Administration,PARADM,3041,Other Materials,Budgets Outside Cash Limits
Blackpool Council,1112198,Kkc Engineering Consultants Limited,457098,820/17,26/05/2017,6396,1066,Bpool/Fwood Tramway Upgrade,CTAHH,6506,Consultants Fees,Capital - Comm & Environ
Blackpool Council,1025240,Key Engineering Supplies Ltd,457099,289105,25/05/2017,419.2,0,Highways & Engineering,ZM0018,9773,Orders Received Not Invoiced,Blackpool Services
Blackpool Council,1025240,Key Engineering Supplies Ltd,457099,289105,25/05/2017,503.04,83.84,Highways & Engineering,ZM0018,9511A,Stocks Efin,Blackpool Services
Blackpool Council,1044156,Pell Frischmann,457100,W17 0266,02/05/2017,4826.94,804.49,Bpool/Fwood Tramway Upgrade,CTAHH,6506,Consultants Fees,Capital - Comm & Environ
Blackpool Council,1095507,Complete Compaction Solutions,457101,SI-2441,10/05/2017,7134,1189,Waste Management,WASTE,2002,Repairs And Maintenance,Community & Env Services
Blackpool Council,1006586,H Jenkinson & Co Ltd,457103,SINV00746126,02/05/2017,550.8,91.8,Urgent Care,URGCAR,3020,Furniture - Purchase,Adult & Families
Blackpool Council,1005071,Blackpool Transport Services Limited,457104,011216-310117,02/05/2017,5960,0,Transport Services,TRANSP,2301,Bus & Tram Fares,Community & Env Services
Blackpool Council,1096141,Resapol Ltd,457191,0000000202,03/05/2017,10935.62,1822.6,Engineering,ENGINE,3041,Other Materials,Community & Env Services
Blackpool Council,1006586,H Jenkinson & Co Ltd,457192,SINV00746127,04/05/2017,2661,443.5,Buildings,AEB,3020,Furniture - Purchase,Resources
Blackpool Council,1005071,Blackpool Transport Services Limited,457194,I013478,02/05/2017,960,0,Senior Management,JEA,5552,Bus Pass / Travel,Children'S Services
Blackpool Council,1011868,W H Tarmacadam Limited,457196,1836,18/05/2017,3348,558,Engineering,ENGINE,1012,Premises Maint-Priv.Contractor,Community & Env Services
Blackpool Council,1011868,W H Tarmacadam Limited,457197,1837,18/05/2017,1680,280,Engineering,ENGINE,1012,Premises Maint-Priv.Contractor,Community & Env Services
Blackpool Council,1011675,Bambers Remedial Contractors Limited,457198,14428,02/05/2017,1080.65,0,Support For Vunerable Adults,CXCA,6501,Contract Payments,Capital - Adult Social Care
Blackpool Council,1096464,Brimas Construction Limited,457199,278,02/05/2017,690,0,Support For Vunerable Adults,CXCA,6501,Contract Payments,Capital - Adult Social Care
Blackpool Council,1007987,Millercare Limited,457200,47914,02/05/2017,2418,0,Support For Vunerable Adults,CXCA,6501,Contract Payments,Capital - Adult Social Care
Blackpool Council,1082240,E-On Uk Sustainable Energy Services Ltd,457201,031989,02/05/2017,24709.15,4118.19,Maintenance & Works,TRB,4501,Private Contractors,Community & Env Services
Blackpool Council,1011675,Bambers Remedial Contractors Limited,457202,14443,02/05/2017,4098.88,0,Support For Vunerable Adults,CXCA,6501,Contract Payments,Capital - Adult Social Care
Blackpool Council,1108975,Ups Building & Maintenance Ltd,457203,1827438,02/05/2017,634.8,0,Support For Vunerable Adults,CXCA,6501,Contract Payments,Capital - Adult Social Care
Blackpool Council,1011868,W H Tarmacadam Limited,457205,1835,18/05/2017,2520,420,Engineering,ENGINE,1012,Premises Maint-Priv.Contractor,Community & Env Services
Blackpool Council,1094424,The Networking People,457207,SI104044,24/05/2017,12504,2084,Corporate Services,FGA,3527,Communication Lines,Resources
Blackpool Council,1094424,The Networking People,457208,SI104035,24/05/2017,16680,2780,Corporate Services,FGA,3527,Communication Lines,Resources
Blackpool Council,1025664,Alison Handling Services Ltd,457210,180291,23/05/2017,264,44,Illuminations - Operational,PJOPS,3041,Other Materials,Places
Blackpool Council,1027942,Printacom,457211,019982,03/05/2017,2166,361,Waste Management,WASTE,3041,Other Materials,Community & Env Services
Blackpool Council,1082240,E-On Uk Sustainable Energy Services Ltd,457218,031993,10/05/2017,1738.03,289.67,Engineering,ENGINE,4501,Private Contractors,Community & Env Services
Blackpool Council,1080416,Tasties Of Chester Ltd,457267,17020003,16/05/2017,1923.66,0,Catering Services,CATERG,3101,Provisions,Community & Env Services
Blackpool Council,1076636,Chicken Joes Ltd,457269,407861,11/05/2017,333.36,0,Catering Services,CATERG,3101,Provisions,Community & Env Services
Blackpool Council,1112575,Bbc Eiffel Ltd,457271,CIN.17038,30/05/2017,600,100,Communications,PBF,3806,Advertising-General,Chief Executive
Blackpool Council,1111571,Trojan Consultants Limited,457282,16162,26/05/2017,1118.4,186.4,Client Finances,EM1032,7305,Professional Services,Resources
Blackpool Council,1013705,Stadia Sports/ Broxap Limited,457283,INV208918,25/05/2017,1823.52,303.92,Cems Crems Etc,CEMCRE,3801,Other Expenses,Governance & Partnerships
Blackpool Council,1103450,Blackpool Entertainment Company Limited,457284,INV002692,03/05/2017,54000,9000,Conferences,PRA,3701,Grants,Places
Blackpool Council,1011083,Siemens Plc,457285,1027453608,26/05/2017,4380,730,Traffic Management,TRA,4501,Private Contractors,Community & Env Services
Blackpool Council,1011868,W H Tarmacadam Limited,457288,1834,18/05/2017,15912,2652,Engineering,ENGINE,1012,Premises Maint-Priv.Contractor,Community & Env Services
Blackpool Council,1035017,Newauto Ltd T/A Mogo Uk,457292,T27156,05/05/2017,1098,183,Licensing - General & Act 2003,BJ3001,3041,Other Materials,Community & Env Services
Blackpool Council,1011868,W H Tarmacadam Limited,457293,1839,18/05/2017,10800,1800,Engineering,ENGINE,1012,Premises Maint-Priv.Contractor,Community & Env Services
Blackpool Council,1011779,Northern Security National Limited,457306,15271,05/05/2017,369,61.5,Security Services,SECURE,3401,General Services,Places
Blackpool Council,1011779,Northern Security National Limited,457308,15269,05/05/2017,2066.4,344.4,Security Services,SECURE,3401,General Services,Places
Blackpool Council,1011779,Northern Security National Limited,457309,15268,05/05/2017,1279.2,213.2,Security Services,SECURE,3401,General Services,Places
Blackpool Council,1011779,Northern Security National Limited,457311,15266,05/05/2017,332.1,55.35,Security Services,SECURE,3401,General Services,Places
Blackpool Council,1011779,Northern Security National Limited,457313,15562,05/05/2017,528.9,88.15,Security Services,SECURE,3401,General Services,Places
Blackpool Council,1011779,Northern Security National Limited,457315,15560,05/05/2017,516.6,86.1,Security Services,SECURE,3401,General Services,Places
Blackpool Council,1011779,Northern Security National Limited,457316,15559,05/05/2017,2041.8,340.3,Security Services,SECURE,3401,General Services,Places
Blackpool Council,1011779,Northern Security National Limited,457317,15558,05/05/2017,1408.36,234.73,Security Services,SECURE,3401,General Services,Places
Blackpool Council,1052237,Elite Cleaning & Environmental Svcs Ltd,457327,49435,25/05/2017,7565.61,1260.93,Education Diversity,EDDIV,1601,Consumable Supplies,Children'S Services
Blackpool Council,1071702,Links Signs & Graphics Ltd,457330,LSGI21742,05/05/2017,754.8,125.8,Tourism General,PRG,3301,Printing,Places
Blackpool Council,1071702,Links Signs & Graphics Ltd,457332,LSGI21596,05/05/2017,316.8,52.8,Communications,PBF,3315,Marketing,Chief Executive
Blackpool Council,1071702,Links Signs & Graphics Ltd,457360,LSGI21883,05/05/2017,267.6,44.6,Visitor Services,PRC,3315,Marketing,Places
Blackpool Council,1108598,Chartered Trading Standards Insitute,457364,665,25/05/2017,951.6,158.6,Trading Standards,PYT,3605,Confs & Short Courses,Community & Env Services
Blackpool Council,1108598,Chartered Trading Standards Insitute,457365,664,25/05/2017,951.6,158.6,Trading Standards,PYT,3605,Confs & Short Courses,Community & Env Services
Blackpool Council,1108598,Chartered Trading Standards Insitute,457369,661,25/05/2017,606,101,Trading Standards,PYT,3605,Confs & Short Courses,Community & Env Services
Blackpool Council,1007823,Northern Housing Consortium Ltd,457370,53882,25/05/2017,1062,177,Business Services Team,FB0001,3711,Subscriptions,Resources
Blackpool Council,1108817,Claro Counselling,457371,007,17/05/2017,742.5,0,Education Diversity,EDDIV,3412,Therapeutic Work,Children'S Services
Blackpool Council,1087034,Cool Milk Limited,457374,CML00023447,16/05/2017,27825.22,0,Free School Breakfasts,SCHBRK,3107,Milk For Drinking,Community & Env Services
Blackpool Council,1062176,Gmbg Ltd T/A Civils & Lintels,457375,FNW/329419,26/05/2017,2130.84,355.14,Engineering,ENGINE,3041,Other Materials,Community & Env Services
Blackpool Council,1081180,Altia Solutions Ltd,457376,UMBERINV2017-11,25/05/2017,714,119,Trading Standards,PYT,3313,General Expenses,Community & Env Services
Blackpool Council,1062176,Gmbg Ltd T/A Civils & Lintels,457377,FNW/329417,26/05/2017,2375.65,395.94,Engineering,ENGINE,3041,Other Materials,Community & Env Services
Blackpool Council,1008817,Radio J  Cabs,457378,514240,26/05/2017,3390.97,0,Education Diversity,EDDIV,2201,Contract Hire,Children'S Services
Blackpool Council,1071432,Cpi - Crisis Preventions Insititute,457379,CUKI0011656,25/05/2017,1296,216,Education Diversity,EDDIV,3605,Confs & Short Courses,Children'S Services
Blackpool Council,1107660,Mike Haines T/A Sure Step Solutions,457390,SSS31032017/01,03/05/2017,536.4,0,Central Management,MNGMT,1066,Service Contracts,Children'S Services
Blackpool Council,1082067,Squire Patton Boggs (Uk) Llp,457396,2603060,24/05/2017,26827.63,4471.27,Bpool/Fwood Tramway Upgrade,CTAHH,6506,Consultants Fees,Capital - Comm & Environ
Blackpool Council,1011896,Capita Business Services Ltd,457397,6003542451,04/05/2017,10200,1700,Benefits - Admin,FCACA,3533,Computer S/W Purchases,Resources
Blackpool Council,1112967,Par Group Ltd,457406,P:319460/2,11/05/2017,438.05,73.01,Cctv,CCTV,1502,Fixtures & Fittings Maint,Places
Blackpool Council,1023362,Jewson Limited,457407,0181/0166746,08/05/2017,259.2,43.2,Highways & Engineering,ZM0018,9511A,Stocks Efin,Blackpool Services
Blackpool Council,1007562,Pennine Telecom Limited,457410,RB/I041891,26/05/2017,2080.8,346.8,Corporate Services,FGA,3532,Comp-Running & License Costs,Resources
Blackpool Council,1006944,Siemens Financial Services Ltd,457416,212/17/0130372,15/05/2017,5118,853,Waste Management,WASTE,2221,Operating Leases,Community & Env Services
Blackpool Council,1080659,William J Marshall & Partners Llp,457417,12,15/05/2017,5527.14,921.19,Bpool/Fwood Tramway Upgrade,CTAHH,6506,Consultants Fees,Capital - Comm & Environ
Blackpool Council,1006292,Vodafone Corporate Ltd,457418,KA05496,05/05/2017,298.8,49.8,"Skills,Education&Employment",SKEDEM,3531,Computer-H'Ware Purchase,Children'S Services
Blackpool Council,1057663,Wilde Recruitment Ltd,457420,30431,19/05/2017,473.32,78.89,Bpool/Fwood Tramway Upgrade,CTAHH,6501,Contract Payments,Capital - Comm & Environ
Blackpool Council,1100004,Zoggs International Ltd,457421,I-0408051,04/05/2017,420.54,70.1,Leisure,LESR,3815,Saleable Goods,Community & Env Services
Blackpool Council,1082585,"""Parks""",457422,1112,11/05/2017,1323.65,220.6,Arts Miscellaneous,AHM,3819,Events Support,Places
Blackpool Council,1098823,Risual Limited,457423,106539,26/05/2017,1140,190,Corporate Services,FGA,3532,Comp-Running & License Costs,Resources
Blackpool Council,1028179,Caci Ltd,457424,ES09194,26/05/2017,12320.38,2053.4,Mgt & Admin,PCA,3532,Comp-Running & License Costs,Children'S Services
Blackpool Council,1058631,Tara Signs Ltd (Fac008),457425,INV8331,26/05/2017,568.19,94.7,Beach Patrol,BEACHP,3401,General Services,Places
Blackpool Council,1023362,Jewson Limited,457426,0181/0167914,19/05/2017,432,0,Highways & Engineering,ZM0018,9773,Orders Received Not Invoiced,Blackpool Services
Blackpool Council,1023362,Jewson Limited,457426,0181/0167914,19/05/2017,518.4,86.4,Highways & Engineering,ZM0018,9511A,Stocks Efin,Blackpool Services
Blackpool Council,1011674,Je Harrison Builders,457440,20631,05/05/2017,1642.8,273.8,Building Maintenance,BLMTCE,4501,Private Contractors,Resources
Blackpool Council,1008525,Kingswood Office Supplies Limited,457444,240599,05/05/2017,756,126,Buildings,AEB,3302,Stationery,Resources
Blackpool Council,1044690,Lesar Uk Ltd,457445,45486,26/05/2017,312,52,Licensing - General & Act 2003,BJ3001,3301,Printing,Community & Env Services
Blackpool Council,1008175,Manns Music,457446,74943,25/05/2017,1315.8,219.3,Music & Cultural Education,MUSIC,3008,Educational Equipment,Children'S Services
Blackpool Council,1008175,Manns Music,457447,74944,25/05/2017,486.9,81.15,Music & Cultural Education,MUSIC,3008,Educational Equipment,Children'S Services
Blackpool Council,1019773,"Bradshaw Electric Vehs, John Bradshaw Ltd",457450,101417,17/05/2017,396,66,Street Cleaning & Leaf,CLEANS,4501,Private Contractors,Community & Env Services
Blackpool Council,1100318,Hands Free Computing Ltd,457484,44817,26/05/2017,1018.8,169.8,Locality,JAB,3001,Office Equipment Purchase,Children'S Services
Blackpool Council,1059441,Videcon Plc,457485,337009,31/05/2017,265.78,44.3,Cctv,CCTV,1502,Fixtures & Fittings Maint,Places
Blackpool Council,1102220,Southfield Stationers Ltd,457488,00079770,24/05/2017,325.44,54.24,Visitor Services,PRC,3808,Souvenirs & Gifts,Places
Blackpool Council,1085660,Bisset Adams Ltd,457489,06796,30/05/2017,92469.72,15411.62,Leisure Assets,AEL,3801,Other Expenses,Places
Blackpool Council,1085660,Bisset Adams Ltd,457490,06779,05/05/2017,92469.72,15411.62,Leisure Assets,AEL,3801,Other Expenses,Places
Blackpool Council,1111440,REDACTED PERSONAL DATA,457496,0002,23/05/2017,295,0,Education Diversity,EDDIV,3412,Therapeutic Work,Children'S Services
Blackpool Council,1089678,Solway Recycling Limited,457498,4223520,12/05/2017,717.6,119.6,Branch Libraries,LBC,3041,Other Materials,Places
Blackpool Council,1102371,A T Graphics Limited,457507,1155543,26/05/2017,480,80,Conferences,PRA,3315,Marketing,Places
Blackpool Council,1008540,Konica Minolta Business (Uk) Ltd,457508,1130677928,26/05/2017,1260,210,Corporate Services,FGA,3532,Comp-Running & License Costs,Resources
Blackpool Council,1008937,I Brooks,457509,015,09/05/2017,531,0,Library Management,LBF,1604,Window Cleaning,Places
Blackpool Council,1098823,Risual Limited,457514,106581,26/05/2017,1140,190,Corporate Services,FGA,3532,Comp-Running & License Costs,Resources
Blackpool Council,1049304,Insight Direct (Uk) Ltd,457515,3358516,26/05/2017,289.19,48.2,Edc - Economic Dev Company,MPB,3531,Computer-H'Ware Purchase,Places
Blackpool Council,1049304,Insight Direct (Uk) Ltd,457516,3359765,26/05/2017,3315.06,552.51,Corporate Services,FGA,3537,Computer-Recharges,Resources
Blackpool Council,1049304,Insight Direct (Uk) Ltd,457517,3359295,26/05/2017,603.9,100.65,Corporate Services,FGA,3531,Computer-H'Ware Purchase,Resources
Blackpool Council,1049304,Insight Direct (Uk) Ltd,457518,3359950,26/05/2017,9976.93,1662.82,Ict Refresh,CS0739,6525,I.T. Hardware Purchase,Capital - Resources
Blackpool Council,1107414,Cm Plastering Ltd,457520,20170206FY20JE,05/05/2017,5774,0,Building Maintenance,BLMTCE,4501,Private Contractors,Resources
Blackpool Council,1011779,Northern Security National Limited,457527,15147,05/05/2017,2116.8,352.8,Events,PRB,3418,Security Services,Places
Blackpool Council,1091465,Dm Orthotics Limited,457530,DM124444,26/05/2017,857.05,0,Undefined Client Category,MT,5401,Aids To Daily Living,Adult & Families
Blackpool Council,1049942,Quest 88 Limited,457531,84391,26/05/2017,901.2,150.2,Undefined Client Category,MT,5401,Aids To Daily Living,Adult & Families
Blackpool Council,1111496,Bes Rehab Ltd,457533,INVBES120432,26/05/2017,836.4,139.4,Undefined Client Category,MT,5401,Aids To Daily Living,Adult & Families
Blackpool Council,1035162,Select Medical,457534,43481,26/05/2017,360,60,Undefined Client Category,MT,5401,Aids To Daily Living,Adult & Families
Blackpool Council,1078418,Lisclare Limited,457538,SINV03069484,05/05/2017,4713,785.5,Undefined Client Category,MT,3006,Hire Of Equipment,Adult & Families
Blackpool Council,1100070,Carebase (Fac001),457539,70055,30/05/2017,1015.2,169.2,Undefined Client Category,MT,3006,Hire Of Equipment,Adult & Families
Blackpool Council,1026811,Stannah Lift Services Ltd,457542,S085062779,17/05/2017,834,139,Personal Care Support,MV,5409,Removal - Stairlifts,Adult & Families
Blackpool Council,1011675,Bambers Remedial Contractors Limited,457544,14463,05/05/2017,890,0,Personal Care Support,MV,5401,Aids To Daily Living,Adult & Families
Blackpool Council,1026811,Stannah Lift Services Ltd,457545,R040027423,15/05/2017,1227.68,204.61,Personal Care Support,MV,5405,Stairlifts - R&M,Adult & Families
Blackpool Council,1026811,Stannah Lift Services Ltd,457546,R040027399,05/05/2017,764.38,127.4,Personal Care Support,MV,5405,Stairlifts - R&M,Adult & Families
Blackpool Council,1007224,Rompa Ltd,457610,090863,24/05/2017,7000.8,1166.8,Other Schemes,CEBMA,6518,Miscellaneous - Capital,Capital - Childrens
Blackpool Council,1085660,Bisset Adams Ltd,457612,06790,08/05/2017,8850,1475,Leisure Assets,AEL,3801,Other Expenses,Places
Blackpool Council,1085660,Bisset Adams Ltd,457613,06717,08/05/2017,1770,295,Leisure Assets,AEL,3801,Other Expenses,Places
Blackpool Council,1044867,Jay Law Ltd,457614,L4360,08/05/2017,1942.5,92.5,Support For Vunerable Adults,CXCA,6501,Contract Payments,Capital - Adult Social Care
Blackpool Council,1026811,Stannah Lift Services Ltd,457616,S085062780,17/05/2017,1554,259,Personal Care Support,MV,5409,Removal - Stairlifts,Adult & Families
Blackpool Council,1112636,Robinson Low Francis Llp,457617,SIN044757,11/05/2017,807.6,134.6,Parks,PARKS,1012,Premises Maint-Priv.Contractor,Community & Env Services
Blackpool Council,1112636,Robinson Low Francis Llp,457618,SIN044756,11/05/2017,1437.6,239.6,Parks,PARKS,1012,Premises Maint-Priv.Contractor,Community & Env Services
Blackpool Council,1006985,Servicemaster  Ltd,457627,20172,31/05/2017,363.73,60.62,Buildings,AEB,3401,General Services,Resources
Blackpool Council,1098953,New Exhibitions Of Contemporary Art Ltd,457628,00006151,11/05/2017,418.95,0,Art Gallery Summary,AHG,3711,Subscriptions,Places
Blackpool Council,1011121,Fylde Coast Gate Ltd,457629,27131,18/05/2017,1164.79,194.13,Community Safety,COMSAF,3041,Other Materials,Places
Blackpool Council,1011121,Fylde Coast Gate Ltd,457630,27133,15/05/2017,5262,877,Parks,PARKS,1012,Premises Maint-Priv.Contractor,Community & Env Services
Blackpool Council,1075909,Viatec Uk Ltd,457631,19677013,26/05/2017,920,0,Highways & Engineering,ZM0018,9773,Orders Received Not Invoiced,Blackpool Services
Blackpool Council,1075909,Viatec Uk Ltd,457631,19677013,26/05/2017,1104,184,Highways & Engineering,ZM0018,9511A,Stocks Efin,Blackpool Services
Blackpool Council,1094424,The Networking People,457635,SI104055,26/05/2017,1147.5,191.25,Transforming Schools Ict,TSICT,3532,Comp-Running & License Costs,Resources
Blackpool Council,1094424,The Networking People,457636,SI104057,26/05/2017,2582.74,430.46,Corporate Services,FGA,3532,Comp-Running & License Costs,Resources
Blackpool Council,1094424,The Networking People,457637,SI104047,24/05/2017,25200,4200,Corporate Services,FGA,3527,Communication Lines,Resources
Blackpool Council,1094424,The Networking People,457638,SI104058,26/05/2017,78529.44,13088.24,Corporate Services,FGA,3532,Comp-Running & License Costs,Resources
Blackpool Council,1094424,The Networking People,457639,SI104059,26/05/2017,47891.46,7981.91,Corporate Services,FGA,3532,Comp-Running & License Costs,Resources
Blackpool Council,1094424,The Networking People,457640,SI104049,26/05/2017,1550.74,258.46,Corporate Services,FGA,3532,Comp-Running & License Costs,Resources
Blackpool Council,1094424,The Networking People,457641,SI104048,26/05/2017,666.49,111.08,Transforming Schools Ict,TSICT,3532,Comp-Running & License Costs,Resources
Blackpool Council,1017722,Terrys Carpets,457645,TC170148,12/05/2017,274.8,45.8,Social Fund - Client,FC1802,5210,Community Care Support,Resources
Blackpool Council,1017722,Terrys Carpets,457646,TC170146,12/05/2017,1056,176,Social Fund - Client,FC1802,5210,Community Care Support,Resources
Blackpool Council,1060236,Nelson Microfilm Limited,457650,1111,08/05/2017,1454.22,0,Library Management,LBF,3306,Micro-Filming,Places
Blackpool Council,1086156,Water Saving Techniques Limited,457652,3259,11/05/2017,1620,270,Engineering,ENGINE,1012,Premises Maint-Priv.Contractor,Community & Env Services
Blackpool Council,1086156,Water Saving Techniques Limited,457653,3258,11/05/2017,3998.4,666.4,Engineering,ENGINE,1012,Premises Maint-Priv.Contractor,Community & Env Services
Blackpool Council,1076913,Local Government Association,457654,40153218,17/05/2017,274.8,45.8,Business Partnering Schls&Corp,EM1021,0911,Training Expenses,Chief Executive
Blackpool Council,1061348,Fresh Partners Limited,457655,LLB1128,09/05/2017,6600,1100,Illuminations - Operational,PJOPS,3413,Consultants,Places
Blackpool Council,1107632,Right To Succeed,457657,INV-00068,22/05/2017,746.4,124.4,Education Diversity,EDDIV,3413,Consultants,Children'S Services
Blackpool Council,1035659,Blackpool Zoo,457658,AD 1091,08/05/2017,470.4,78.4,Education Diversity,EDDIV,3303,Games/Visits,Children'S Services
Blackpool Council,1094424,The Networking People,457660,SI104078,30/05/2017,364.84,60.81,Transforming Schools Ict,TSICT,3532,Comp-Running & License Costs,Resources
Blackpool Council,1013064,Tarmac Lafarge Trading Limited,457662,9036053053,10/05/2017,550.92,91.82,Engineering,ENGINE,4501,Private Contractors,Community & Env Services
Blackpool Council,1053261,Ad Systems (Uk) Limited,457676,3402,17/05/2017,579.59,96.6,Cctv,CCTV,1502,Fixtures & Fittings Maint,Places
Blackpool Council,1053261,Ad Systems (Uk) Limited,457677,3401,17/05/2017,3900,650,Cctv,CCTV,4501,Private Contractors,Places
Blackpool Council,1112895,Gumdrop Ltd,457679,BC-04-17T,12/05/2017,2029.2,338.2,Waste Management,WASTE,3041,Other Materials,Community & Env Services
Blackpool Council,1006586,H Jenkinson & Co Ltd,457680,SINV00760045,26/05/2017,671.4,111.9,Buildings,AEB,3041,Other Materials,Resources
Blackpool Council,1101867,Yas Enterprises Limited,457681,23986,08/05/2017,864,144,Conferences,PRA,3015,Exhibitions Equipment,Places
Blackpool Council,1066729,Equis Associates Limited,457691,12-23-PG-BC,12/05/2017,16200,2700,Bpool/Fwood Tramway Upgrade,CTAHH,6506,Consultants Fees,Capital - Comm & Environ
Blackpool Council,1018184,Blackpool Skip Hire,457692,40659,17/05/2017,576,96,Engineering,ENGINE,4501,Private Contractors,Community & Env Services
Blackpool Council,1096659,Dalgleish Therapies,457697,0200001417,26/05/2017,900,0,"Skills,Education&Employment",SKEDEM,3605,Confs & Short Courses,Children'S Services
Blackpool Council,1107517,Blackwell Green,457701,BG0520416,11/05/2017,841.5,0,Art Gallery Summary,AHG,3413,Consultants,Places
Blackpool Council,1102627,Fresh Pastures Processing Ltd,457719,29204300417,30/05/2017,304.92,0,Urgent Care,URGCAR,3101,Provisions,Adult & Families
Blackpool Council,1018184,Blackpool Skip Hire,457720,4958,11/05/2017,4346.4,724.4,Waste Management,WASTE,4514,Contract 'E',Community & Env Services
Blackpool Council,1018184,Blackpool Skip Hire,457721,4959,11/05/2017,14634,2439,Waste Management,WASTE,4514,Contract 'E',Community & Env Services
Blackpool Council,1107140,Nhs Midlands And Lancashire Csu,457722,7312306748,12/05/2017,5256,876,Other External Funding,PVA,3711,Subscriptions,Places
Blackpool Council,1012990,Gladstone Mrm Limited,457739,04002968,26/05/2017,480,80,Leisure,LESR,3302,Stationery,Community & Env Services
Blackpool Council,1008817,Radio J  Cabs,457747,BC/76/001MAR17,26/05/2017,2890.5,0,Transport Services,TRANSP,2201,Contract Hire,Community & Env Services
Blackpool Council,1008817,Radio J  Cabs,457748,BC/04/002MAR17,26/05/2017,1080,0,Transport Services,TRANSP,2201,Contract Hire,Community & Env Services
Blackpool Council,1008817,Radio J  Cabs,457749,BC/58/001MAR17,26/05/2017,1334,0,Transport Services,TRANSP,2201,Contract Hire,Community & Env Services
Blackpool Council,1008817,Radio J  Cabs,457750,BC/27/004MAR17,26/05/2017,495,0,Transport Services,TRANSP,2201,Contract Hire,Community & Env Services
Blackpool Council,1010138,C Cabs,457751,BC/04/001FEB17,08/05/2017,564,0,Transport Services,TRANSP,2201,Contract Hire,Community & Env Services
Blackpool Council,1010138,C Cabs,457752,BC/04/003FEB17,08/05/2017,510,0,Transport Services,TRANSP,2201,Contract Hire,Community & Env Services
Blackpool Council,1010138,C Cabs,457753,BC/02/015FEB17,08/05/2017,720,0,Transport Services,TRANSP,2201,Contract Hire,Community & Env Services
Blackpool Council,1010138,C Cabs,457754,BC/03/005FEB17,08/05/2017,700,0,Transport Services,TRANSP,2201,Contract Hire,Community & Env Services
Blackpool Council,1072848,Peter Rhodes,457756,BC/01/008MAR17,08/05/2017,1679,0,Transport Services,TRANSP,2201,Contract Hire,Community & Env Services
Blackpool Council,1072848,Peter Rhodes,457757,BC/01/001MAR17,08/05/2017,1679,0,Transport Services,TRANSP,2201,Contract Hire,Community & Env Services
Blackpool Council,1105889,3d Environmental Limited,457765,BBC/124/2017,12/05/2017,360,60,Environmental Protection,ENVPR,4501,Private Contractors,Community & Env Services
Blackpool Council,1008817,Radio J  Cabs,457766,514259,26/05/2017,7555.65,0,Transport Services,TRANSP,4501,Private Contractors,Community & Env Services
Blackpool Council,1008817,Radio J  Cabs,457768,514262,26/05/2017,3631.05,0,Transport Services,TRANSP,4501,Private Contractors,Community & Env Services
Blackpool Council,1008817,Radio J  Cabs,457769,514261,26/05/2017,426.07,0,Transport Services,TRANSP,4501,Private Contractors,Community & Env Services
Blackpool Council,1008817,Radio J  Cabs,457770,514260,26/05/2017,2294.7,0,Transport Services,TRANSP,4501,Private Contractors,Community & Env Services
Blackpool Council,1008817,Radio J  Cabs,457771,514279,26/05/2017,5138.93,0,Transport Services,TRANSP,4501,Private Contractors,Community & Env Services
Blackpool Council,1011779,Northern Security National Limited,457778,15897,08/05/2017,1254.6,209.1,Security Services,SECURE,3401,General Services,Places
Blackpool Council,1011779,Northern Security National Limited,457779,15898,08/05/2017,2164.8,360.8,Security Services,SECURE,3401,General Services,Places
Blackpool Council,1011779,Northern Security National Limited,457781,15900,08/05/2017,590.4,98.4,Security Services,SECURE,3401,General Services,Places
Blackpool Council,1057663,Wilde Recruitment Ltd,457786,30480,26/05/2017,690.48,115.08,Bpool/Fwood Tramway Upgrade,CTAHH,6501,Contract Payments,Capital - Comm & Environ
Blackpool Council,1066348,Edge Hill University,457787,A0082723,08/05/2017,1860,0,Education Diversity,EDDIV,3605,Confs & Short Courses,Children'S Services
Blackpool Council,1107790,Taylek Ltd,457793,INV-04958,11/05/2017,684,114,Illuminations - Operational,PJOPS,3041,Other Materials,Places
Blackpool Council,1008039,Woodswaste,457795,027093,10/05/2017,475.78,79.3,Cems Crems Etc,CEMCRE,3454,Remove And Refix Memorials,Governance & Partnerships
Blackpool Council,1087805,Blackpool Fc Community Trust,457796,BFCCT744,08/05/2017,1500,0,Education Diversity,EDDIV,3303,Games/Visits,Children'S Services
Blackpool Council,1025837,R Draper Ltd,457799,43814,26/05/2017,360,60,Parks,PARKS,3020,Furniture - Purchase,Community & Env Services
Blackpool Council,1025837,R Draper Ltd,457800,43813,26/05/2017,525.13,87.52,Cems Crems Etc,CEMCRE,3801,Other Expenses,Governance & Partnerships
Blackpool Council,1105495,Soil Engineering Geoservices Ltd,457810,03/17/041,11/05/2017,10339.37,1723.23,Bpool/Fwood Tramway Upgrade,CTAHH,6514,B.Holes/Site Investgtn/Surveys,Capital - Comm & Environ
Blackpool Council,1111857,V4 Services Limited,457811,INV001707,11/05/2017,6465.58,1077.6,Business Services,BUSSER,4501,Private Contractors,Community & Env Services
Blackpool Council,1006940,Smiths Equipment Hire Ltd,457813,V07-529781,15/05/2017,753.12,125.52,Illuminations - Operational,PJOPS,2211,Casual Hire,Places
Blackpool Council,1006099,Blackpool Teaching Hospitals Nhs Ft,457846,1110030162,09/05/2017,9443,0,Headstart,HSTART,3101,Provisions,Children'S Services
Blackpool Council,1041157,5-Am Contact Contract Cleaning Ltd,457849,1618,18/05/2017,288,48,Locality,JAB,5507,Personal,Children'S Services
Blackpool Council,1100542,Caroline Horn T/A Bentley,457853,BEN/241,15/05/2017,520,0,Leisure,LESR,0911,Training Expenses,Community & Env Services
Blackpool Council,1100542,Caroline Horn T/A Bentley,457854,BEN/244,15/05/2017,1736,0,Leisure,LESR,0911,Training Expenses,Community & Env Services
Blackpool Council,1100542,Caroline Horn T/A Bentley,457855,BEN/186,15/05/2017,350,0,Leisure,LESR,0911,Training Expenses,Community & Env Services
Blackpool Council,1100542,Caroline Horn T/A Bentley,457856,BEN/185,15/05/2017,520,0,Leisure,LESR,0911,Training Expenses,Community & Env Services
Blackpool Council,1018184,Blackpool Skip Hire,457875,4960,11/05/2017,16680,2780,Waste Management,WASTE,4514,Contract 'E',Community & Env Services
Blackpool Council,1011714,Michael Hope Haulage Limited,457876,001277,19/05/2017,2160,360,Engineering,ENGINE,1012,Premises Maint-Priv.Contractor,Community & Env Services
Blackpool Council,1097536,Vivid,457878,I3862,19/05/2017,9600,1600,Arts Miscellaneous,AHM,3413,Consultants,Places
Blackpool Council,1060631,Rossendales Limited,457880,C506491,26/05/2017,415.98,69.33,Housing Benefits,FC3001,3401,General Services,Budgets Outside Cash Limits
Blackpool Council,1108975,Ups Building & Maintenance Ltd,457883,7775,12/05/2017,1090,0,Support For Vunerable Adults,CXCA,6501,Contract Payments,Capital - Adult Social Care
Blackpool Council,1108975,Ups Building & Maintenance Ltd,457884,7774,12/05/2017,259,0,Support For Vunerable Adults,CXCA,6501,Contract Payments,Capital - Adult Social Care
Blackpool Council,1081205,The Excellent Ramp System Ltd,457886,C & R 39,12/05/2017,2200,0,Support For Vunerable Adults,CXCA,6501,Contract Payments,Capital - Adult Social Care
Blackpool Council,1081205,The Excellent Ramp System Ltd,457887,C & R 40,12/05/2017,400,0,Support For Vunerable Adults,CXCA,6501,Contract Payments,Capital - Adult Social Care
Blackpool Council,1009801,Coronation Candy Ltd (Fac009),457888,486,12/05/2017,312,52,Conferences,PRA,3801,Other Expenses,Places
Blackpool Council,1110406,Simone Griffin T/A Caffe C Ltd,457890,SO529,16/05/2017,288,48,Children'S Training,JA0505,3803,Hospitality,Children'S Services
Blackpool Council,1091050,Howard Palmer T/A Trojan Travel,457893,BC/02/002APR17,11/05/2017,1330,0,Transport Services,TRANSP,2201,Contract Hire,Community & Env Services
Blackpool Council,1091738,Workshop Safety & Maintenance Uk Ltd,457897,2397,19/05/2017,455.09,75.85,Illuminations - Operational,PJOPS,3413,Consultants,Places
Blackpool Council,1091738,Workshop Safety & Maintenance Uk Ltd,457898,2398,19/05/2017,1055.7,175.95,Illuminations - Operational,PJOPS,1064,Delegated Maintenance,Places
Blackpool Council,1090236,C & J Inspection Services Limited,457905,831,19/05/2017,1864.8,310.8,Leisure Assets,AEL,1012,Premises Maint-Priv.Contractor,Places
Blackpool Council,1102823,Wilde Consultants Limited,457908,WPCON14660,22/05/2017,1716.43,286.07,Local Transport Plan Schemes,CTAA,6501,Contract Payments,Capital - Places
Blackpool Council,1026811,Stannah Lift Services Ltd,457911,P040188672,15/05/2017,703.2,117.2,Local Authority Housing,CXA,6502,Grants & Advances,Capital - Places
Blackpool Council,1026811,Stannah Lift Services Ltd,457912,C040104267,15/05/2017,1139.74,189.96,Local Authority Housing,CXA,6502,Grants & Advances,Capital - Places
Blackpool Council,1026811,Stannah Lift Services Ltd,457916,C040104268,15/05/2017,3050.06,508.34,Personal Care Support,MV,5401,Aids To Daily Living,Adult & Families
Blackpool Council,1026811,Stannah Lift Services Ltd,457918,P040188673,15/05/2017,4396.8,732.8,Personal Care Support,MV,5401,Aids To Daily Living,Adult & Families
Blackpool Council,1066073,Blackpool Coastal Housing,457921,30001232,12/05/2017,4005.61,667.6,Local Authority Housing,CXA,6501,Contract Payments,Capital - Places
Blackpool Council,1109682,Entertainment Concepts Ltd,457925,73,12/05/2017,2400,400,Brilliance,PJQ,3413,Consultants,Places
Blackpool Council,1011779,Northern Security National Limited,457934,14263,11/05/2017,861,143.5,Security Services,SECURE,3401,General Services,Places
Blackpool Council,1011779,Northern Security National Limited,457935,14264,11/05/2017,350.56,58.43,Security Services,SECURE,3401,General Services,Places
Blackpool Council,1011779,Northern Security National Limited,457936,14265,11/05/2017,2066.4,344.4,Security Services,SECURE,3401,General Services,Places
Blackpool Council,1011779,Northern Security National Limited,457937,14266,11/05/2017,2318.56,386.43,Security Services,SECURE,3401,General Services,Places
Blackpool Council,1011779,Northern Security National Limited,457938,14267,11/05/2017,516.6,86.1,Security Services,SECURE,3401,General Services,Places
Blackpool Council,1011779,Northern Security National Limited,457940,14269,11/05/2017,369,61.5,Security Services,SECURE,3401,General Services,Places
Blackpool Council,1011779,Northern Security National Limited,457941,14312,11/05/2017,442.8,73.8,Security Services,SECURE,3401,General Services,Places
Blackpool Council,1009755,D Kirkham,457949,BC/74/002MAR17,11/05/2017,1610,0,Transport Services,TRANSP,2201,Contract Hire,Community & Env Services
Blackpool Council,1041792,Frank Wilkinson Cameras Ltd,457955,2445,26/05/2017,1728,288,Community Safety,COMSAF,3401,General Services,Places
Blackpool Council,1044756,Northgate Public Services (Uk) Ltd,457956,91390535,31/05/2017,1087.44,181.24,Customer First,FCAD,3401,General Services,Resources
Blackpool Council,1012071,Bethell Construction Limited,457959,14423,10/05/2017,194188.94,32364.82,Private Sector Housing,CXC,6501,Contract Payments,Capital - Places
Blackpool Council,1012071,Bethell Construction Limited,457959,14423,10/05/2017,8517.05,0,Housing Revenue Account,ZH0001,97B6,Retention Monies - Cap Trsfr,Housing Revenue Account
Blackpool Council,1083256,Community Lighting Partnership (Bpool) Ltd,457960,88,10/05/2017,550876.01,91812.67,Street Lighting,STRLGT,4501,Private Contractors,Community & Env Services
Blackpool Council,1087316,Lovell Partnership Ltd,457961,INTERIM 19,10/05/2017,552832.06,0,Local Authority Housing,CXA,6501,Contract Payments,Capital - Places
Blackpool Council,1087316,Lovell Partnership Ltd,457961,INTERIM 19,10/05/2017,8548.95,0,Housing Revenue Account,ZH0001,97B6,Retention Monies - Cap Trsfr,Housing Revenue Account
Blackpool Council,1004963,F Parkinson Ltd,457962,8804,10/05/2017,121649.09,20274.85,Finance,COBAA,6501,Contract Payments,Capital - Resources
Blackpool Council,1004963,F Parkinson Ltd,457962,8804,10/05/2017,10113.68,0,"Insurance,Dso,Banking",ZF0001,97A6,Retention Monies - Capital,Total Reconciliations
Blackpool Council,1017964,The R.A.D.A.R Key Company,457984,J0517,17/05/2017,540,90,Customer First,FCAD,3302,Stationery,Resources
Blackpool Council,1095165,Tower Learning Centre Ltd,457989,290-402,25/05/2017,5256,876,Education Diversity,EDDIV,4101,Other Local Authorities,Children'S Services
Blackpool Council,1006627,The Award Scheme Ltd,457996,SIN047131,24/05/2017,1236,206,Central Management,MNGMT,5555,Educational Support,Children'S Services
Blackpool Council,1108504,Automated Payment Transfer Ltd,457998,17/0711,24/05/2017,2032.8,338.8,Corporate Services,FGA,3532,Comp-Running & License Costs,Resources
Blackpool Council,1006099,Blackpool Teaching Hospitals Nhs Ft,458000,1110030186,12/05/2017,6000,1000,Corporate Services,FGA,3527,Communication Lines,Resources
Blackpool Council,1091329,Pentagull Limited,458001,7334,12/05/2017,11760,1960,Corporate Services,FGA,3537,Computer-Recharges,Resources
Blackpool Council,1011868,W H Tarmacadam Limited,458003,1841,18/05/2017,2352,392,Maintenance & Works,TRB,4501,Private Contractors,Community & Env Services
Blackpool Council,1105873,Appleyard & Trew Llp,458004,S0062/17-18,30/05/2017,2400,400,Museum - Professional Fees,EC7011,3413,Consultants,Places
Blackpool Council,1029506,Psa Design Ltd,458007,3439,15/05/2017,2142,357,Non-Local Tp Schemes,CTAB,6501,Contract Payments,Capital - Places
Blackpool Council,1008862,Cengage Learning Services,458009,59966653,12/05/2017,4277.7,712.95,Central Library,LBB,3711,Subscriptions,Places
Blackpool Council,1011970,A1 Streamline Road Markings Ltd,458012,1541,31/05/2017,2161.58,360.28,Engineering,ENGINE,1012,Premises Maint-Priv.Contractor,Community & Env Services
Blackpool Council,1011970,A1 Streamline Road Markings Ltd,458013,1540,19/05/2017,4500.9,750.16,Engineering,ENGINE,1012,Premises Maint-Priv.Contractor,Community & Env Services
Blackpool Council,1056006,Woody'S Group,458015,230006,30/05/2017,480.48,80.08,Parks,PARKS,3012,Other Equipment,Community & Env Services
Blackpool Council,1079488,Recycling Lives Ltd,458016,187840,25/05/2017,354.6,59.1,Waste Management,WASTE,4514,Contract 'E',Community & Env Services
Blackpool Council,1081205,The Excellent Ramp System Ltd,458020,C & R 41,12/05/2017,4200,0,Support For Vunerable Adults,CXCA,6501,Contract Payments,Capital - Adult Social Care
Blackpool Council,1108975,Ups Building & Maintenance Ltd,458023,7782,12/05/2017,950.6,0,Support For Vunerable Adults,CXCA,6501,Contract Payments,Capital - Adult Social Care
Blackpool Council,1011675,Bambers Remedial Contractors Limited,458024,14490,12/05/2017,330.2,0,Support For Vunerable Adults,CXCA,6501,Contract Payments,Capital - Adult Social Care
Blackpool Council,1011868,W H Tarmacadam Limited,458026,1842,12/05/2017,3360,0,Support For Vunerable Adults,CXCA,6501,Contract Payments,Capital - Adult Social Care
Blackpool Council,1048821,Plum Publishing Ltd,458027,26702,26/05/2017,450,75,Conferences,PRA,3315,Marketing,Places
Blackpool Council,1108589,Soap Media Ltd,458028,INV-3298,23/05/2017,3036,506,Marketing,PRL,3315,Marketing,Places
Blackpool Council,1108589,Soap Media Ltd,458029,INV-3234,12/05/2017,2094.84,349.14,Marketing,PRL,3315,Marketing,Places
Blackpool Council,1108589,Soap Media Ltd,458030,INV-3219,18/05/2017,1200,200,Marketing,PRL,3315,Marketing,Places
Blackpool Council,1044218,Apcoa Parking Uk Ltd,458031,256000,15/05/2017,11798.2,1966.37,Vacant & Under Used,AEV,4004,Management Fees,Resources
Blackpool Council,1042794,Carlton Fuels Limited,458032,8030546,15/05/2017,20318.78,0,"Insurance,Dso,Banking",ZF0001,9773,Orders Received Not Invoiced,Total Reconciliations
Blackpool Council,1042794,Carlton Fuels Limited,458032,8030546,15/05/2017,24382.54,4063.76,"Insurance,Dso,Banking",ZF0001,9511A,Stocks Efin,Total Reconciliations
Blackpool Council,1076913,Local Government Association,458033,40153265,17/05/2017,2616,436,Corp And Member Services,BCA,0911,Training Expenses,Governance & Partnerships
Blackpool Council,1012789,Advanced Business Solutions (Fka Coa),458035,ARBK/99042333,24/05/2017,2850,475,Accountancy,FBBC,3532,Comp-Running & License Costs,Resources
Blackpool Council,1049149,Reed Business Information Ltd,458043,20862458,15/05/2017,960,160,Communications,PBF,0921,Advertising (Staff Vac.),Chief Executive
Blackpool Council,1027733,William Smith & Sons (Barnard Castle) Ltd,458044,414941,17/05/2017,346.63,57.77,Engineering,ENGINE,3041,Other Materials,Community & Env Services
Blackpool Council,1070502,Parex Limited,458047,INV0119706,26/05/2017,942,0,Highways & Engineering,ZM0018,9773,Orders Received Not Invoiced,Blackpool Services
Blackpool Council,1070502,Parex Limited,458047,INV0119706,26/05/2017,1130.4,188.4,Highways & Engineering,ZM0018,9511A,Stocks Efin,Blackpool Services
Blackpool Council,1033337,Sibcas Limited,458050,645142,15/05/2017,1128,188,Engineering,ENGINE,3041,Other Materials,Community & Env Services
Blackpool Council,1008540,Konica Minolta Business (Uk) Ltd,458052,1130363234,15/05/2017,28802.34,4800.39,Corporate Services,FGA,3305,Photocopying Charges,Resources
Blackpool Council,1011369,Lancashire County Council,458055,5200138198,15/05/2017,663.6,110.6,Blackpool Museum,AHHBA,3413,Consultants,Places
Blackpool Council,1011779,Northern Security National Limited,458059,15987,15/05/2017,2263.2,377.2,Security Services,SECURE,3401,General Services,Places
Blackpool Council,1011779,Northern Security National Limited,458062,15989,15/05/2017,516.6,86.1,Security Services,SECURE,3401,General Services,Places
Blackpool Council,1011779,Northern Security National Limited,458063,16040,15/05/2017,1014.76,169.13,Security Services,SECURE,3401,General Services,Places
Blackpool Council,1006196,Prism Medical Uk,458064,5193350,25/05/2017,16987.2,2831.2,Undefined Client Category,MT,5401,Aids To Daily Living,Adult & Families
Blackpool Council,1086714,Liveasy Ltd,458067,BK0419A,15/05/2017,21986.51,3664.42,Undefined Client Category,MT,5401,Aids To Daily Living,Adult & Families
Blackpool Council,1086714,Liveasy Ltd,458068,BK0419B,15/05/2017,19989.28,3331.55,Undefined Client Category,MT,5401,Aids To Daily Living,Adult & Families
Blackpool Council,1006196,Prism Medical Uk,458069,1252639,26/05/2017,6394.91,1065.82,Undefined Client Category,MT,5401,Aids To Daily Living,Adult & Families
Blackpool Council,1086714,Liveasy Ltd,458070,BK0419C,15/05/2017,9961.25,1660.21,Undefined Client Category,MT,5401,Aids To Daily Living,Adult & Families
Blackpool Council,1033337,Sibcas Limited,458120,644434,15/05/2017,840,140,Engineering,ENGINE,1012,Premises Maint-Priv.Contractor,Community & Env Services
Blackpool Council,1008135,Marshalls,458121,ZBB1222340,26/05/2017,3648.76,608.13,Engineering,ENGINE,3041,Other Materials,Community & Env Services
Blackpool Council,1008135,Marshalls,458122,ZJB0044859,24/05/2017,14160,2360,Engineering,ENGINE,1012,Premises Maint-Priv.Contractor,Community & Env Services
Blackpool Council,1063234,Servelec Corelogic Limited,458124,0050000655,15/05/2017,73674,12279,Systems Development,SYSDEV,3532,Comp-Running & License Costs,Resources
Blackpool Council,1108166,Pennine Education Ltd,458125,699,15/05/2017,438,73,Transforming Schools Ict,TSICT,3532,Comp-Running & License Costs,Resources
Blackpool Council,1094424,The Networking People,458126,SI104092,30/05/2017,3113.92,518.94,Corporate Services,FGA,3521,Landline - Line Rental,Resources
Blackpool Council,1064236,Lifestyle Media Group Ltd,458128,093118,30/05/2017,349.33,58.22,Tourism General,PRG,3301,Printing,Places
Blackpool Council,1064236,Lifestyle Media Group Ltd,458129,093119,30/05/2017,268.06,44.68,Tourism General,PRG,3301,Printing,Places
Blackpool Council,1060253,John Ball,458139,292,15/05/2017,3461.14,576.86,Cems Crems Etc,CEMCRE,3454,Remove And Refix Memorials,Governance & Partnerships
Blackpool Council,1011779,Northern Security National Limited,458142,16086,15/05/2017,590.4,98.4,Security Services,SECURE,3401,General Services,Places
Blackpool Council,1011779,Northern Security National Limited,458144,16084,15/05/2017,2164.8,360.8,Security Services,SECURE,3401,General Services,Places
Blackpool Council,1011779,Northern Security National Limited,458145,16083,15/05/2017,492,82,Security Services,SECURE,3401,General Services,Places
Blackpool Council,1011779,Northern Security National Limited,458148,16080,15/05/2017,787.2,131.2,Security Services,SECURE,3401,General Services,Places
Blackpool Council,1066555,Adcs Services Ltd,458149,5175,19/05/2017,450,75,Strategy & Support M'Ment,MGT,0915,Conferences,Children'S Services
Blackpool Council,1011675,Bambers Remedial Contractors Limited,458153,14487,12/05/2017,365,0,Personal Care Support,MV,5401,Aids To Daily Living,Adult & Families
Blackpool Council,1020035,Blackpool Bears Disability Sports Club,458158,2017/0001,15/05/2017,2250,0,Leisure,LESR,3401,General Services,Community & Env Services
Blackpool Council,1011675,Bambers Remedial Contractors Limited,458220,14454,17/05/2017,1185.2,0,Support For Vunerable Adults,CXCA,6501,Contract Payments,Capital - Adult Social Care
Blackpool Council,1026811,Stannah Lift Services Ltd,458221,S085062340,17/05/2017,275,0,Support For Vunerable Adults,CXCA,6501,Contract Payments,Capital - Adult Social Care
Blackpool Council,1112992,Key To Independence Ltd,458227,INV-TWK040517,25/05/2017,264.35,0,Support For Vunerable Adults,CXCA,6501,Contract Payments,Capital - Adult Social Care
Blackpool Council,1086156,Water Saving Techniques Limited,458248,3286,17/05/2017,1920,320,Engineering,ENGINE,1012,Premises Maint-Priv.Contractor,Community & Env Services
Blackpool Council,1011121,Fylde Coast Gate Ltd,458258,27147,19/05/2017,1635.78,272.63,Community Safety,COMSAF,3041,Other Materials,Places
Blackpool Council,1008010,Moette Ltd,458260,45113,19/05/2017,495.84,82.64,Beach Patrol,BEACHP,3401,General Services,Places
Blackpool Council,1013064,Tarmac Lafarge Trading Limited,458264,9036089315,18/05/2017,251.28,41.88,Engineering,ENGINE,4501,Private Contractors,Community & Env Services
Blackpool Council,1013064,Tarmac Lafarge Trading Limited,458265,9036117240,24/05/2017,265.66,44.27,Engineering,ENGINE,4501,Private Contractors,Community & Env Services
Blackpool Council,1013064,Tarmac Lafarge Trading Limited,458267,9036104663,19/05/2017,1868.42,311.4,Engineering,ENGINE,4501,Private Contractors,Community & Env Services
Blackpool Council,1013064,Tarmac Lafarge Trading Limited,458268,9036079697,18/05/2017,298.89,49.81,Engineering,ENGINE,4501,Private Contractors,Community & Env Services
Blackpool Council,1013064,Tarmac Lafarge Trading Limited,458273,9035972669,19/05/2017,315.75,52.62,Engineering,ENGINE,4501,Private Contractors,Community & Env Services
Blackpool Council,1013064,Tarmac Lafarge Trading Limited,458274,9035972671,19/05/2017,416.67,69.44,Engineering,ENGINE,4501,Private Contractors,Community & Env Services
Blackpool Council,1013064,Tarmac Lafarge Trading Limited,458275,9036097917,19/05/2017,439.56,73.26,Engineering,ENGINE,4501,Private Contractors,Community & Env Services
Blackpool Council,1013064,Tarmac Lafarge Trading Limited,458276,9036097918,19/05/2017,482.85,80.47,Engineering,ENGINE,4501,Private Contractors,Community & Env Services
Blackpool Council,1013064,Tarmac Lafarge Trading Limited,458278,9036089316,18/05/2017,302.95,50.49,Engineering,ENGINE,4501,Private Contractors,Community & Env Services
Blackpool Council,1031983,Olympic Lock & Safeguards Ltd,458295,6456,19/05/2017,2282.52,380.42,Community Safety,COMSAF,3041,Other Materials,Places
Blackpool Council,1009166,Glasdon Uk Ltd,458297,729379,19/05/2017,328.93,54.82,Parks,PARKS,3020,Furniture - Purchase,Community & Env Services
Blackpool Council,1071702,Links Signs & Graphics Ltd,458298,LSGI21951,19/05/2017,331.2,55.2,Conferences,PRA,3301,Printing,Places
Blackpool Council,1008512,Killgerm Chemicals Ltd,458299,SI02-0138442,15/05/2017,379.04,63.17,Street Cleaning & Leaf,CLEANS,3041,Other Materials,Community & Env Services
Blackpool Council,1108451,Poulton Pets Ltd T/A Sundown Kennels,458326,BL0018,15/05/2017,2016.9,421.15,Environmental Protection,ENVPR,3801,Other Expenses,Community & Env Services
Blackpool Council,1069610,Alliance Leisure Services Ltd,458329,3847,15/05/2017,4800,800,Leisure,LESR,3801,Other Expenses,Community & Env Services
Blackpool Council,1053191,Veolia Es (Uk) Limited,458331,OP/I502674,15/05/2017,386513.12,64418.85,Waste Management,WASTE,3041,Other Materials,Community & Env Services
Blackpool Council,1110406,Simone Griffin T/A Caffe C Ltd,458334,SO535,19/05/2017,250.56,41.76,Public Health Team,PU0001,4501,Private Contractors,Public Health
Blackpool Council,1011896,Capita Business Services Ltd,458339,6003555777,17/05/2017,15296.36,2549.39,Benefits - Admin,FCACA,3533,Computer S/W Purchases,Resources
Blackpool Council,1080416,Tasties Of Chester Ltd,458342,17020003,30/05/2017,252.69,0,Catering Services,CATERG,3101,Provisions,Community & Env Services
Blackpool Council,1092851,Elklan Training Limited,458354,16780,25/05/2017,805,0,Education Diversity,EDDIV,3008,Educational Equipment,Children'S Services
Blackpool Council,1102627,Fresh Pastures Processing Ltd,458393,BLACKPOOL300417,30/05/2017,407.68,0,Catering Services,CATERG,3101,Provisions,Community & Env Services
Blackpool Council,1013064,Tarmac Lafarge Trading Limited,458400,9036140409,26/05/2017,995.53,165.92,Engineering,ENGINE,4501,Private Contractors,Community & Env Services
Blackpool Council,1100201,D & A Scrivens And Son,458406,6446,31/05/2017,710.4,118.4,Waste Management,WASTE,1021,Growing,Community & Env Services
Blackpool Council,1096607,Cutlers Property Consultancy (Services),458413,0070305,15/05/2017,4810,0,Capital Projects & Development,AED,0781,Contracted,Resources
Blackpool Council,1096607,Cutlers Property Consultancy (Services),458414,0070309,18/05/2017,5200,0,Capital Projects & Development,AED,0781,Contracted,Resources
Blackpool Council,1110991,Thomas Bowes,458479,010517-10804-07,31/05/2017,750,0,Arts Miscellaneous,AHM,4501,Private Contractors,Places
Blackpool Council,1109407,The Wigan Talent Factory,458480,SOS 007,17/05/2017,400,0,Arts Miscellaneous,AHM,3456,Payment To Artists,Places
Blackpool Council,1071546,Denis Rowlandson,458481,3594,25/05/2017,600,100,Parks,PARKS,1012,Premises Maint-Priv.Contractor,Community & Env Services
Blackpool Council,1057261,Experian Ltd,458485,HEX38000606318,17/05/2017,1806.22,301.04,Leisure,LESR,3801,Other Expenses,Community & Env Services
Blackpool Council,1015956,Family And Childcare Trust,458550,203,18/05/2017,378,63,Early Years Team,EYT,3711,Subscriptions,Children'S Services
Blackpool Council,1006419,Tunstall Healthcare (Uk) Ltd,458551,3IN/10295473,18/05/2017,1794,299,Urgent Care,URGCAR,4501,Private Contractors,Adult & Families
Blackpool Council,1009079,Pearson Education Ltd,458555,095643-Z1705,19/05/2017,806.2,0,Education Diversity,EDDIV,3404,Exam Fees & Exps (Sch),Children'S Services
Blackpool Council,1053283,Cryoservice Limited,458557,404889701,19/05/2017,251.88,41.98,Leisure,LESR,1161,Other Fixed Plant,Community & Env Services
Blackpool Council,1053283,Cryoservice Limited,458560,404446138,23/05/2017,406.7,67.79,Leisure,LESR,1161,Other Fixed Plant,Community & Env Services
Blackpool Council,1053283,Cryoservice Limited,458561,404889704,24/05/2017,260.02,43.34,Leisure,LESR,3060,Chemicals,Community & Env Services
Blackpool Council,1011675,Bambers Remedial Contractors Limited,458569,14477,19/05/2017,1068,0,Support For Vunerable Adults,CXCA,6501,Contract Payments,Capital - Adult Social Care
Blackpool Council,1103543,Sailflags,458570,00100607,19/05/2017,979.8,163.3,Street Cleaning & Leaf,CLEANS,4501,Private Contractors,Community & Env Services
Blackpool Council,1063638,Pristine Hygiene,458572,4402,19/05/2017,383.1,63.85,Shared Care,SHACAR,3408,Services To Clients,Adult & Families
Blackpool Council,1041219,Abelglass Trade Supplies Ltd,458576,5866,19/05/2017,1032,0,Support For Vunerable Adults,CXCA,6501,Contract Payments,Capital - Adult Social Care
Blackpool Council,1074572,Gl Assessment (Granada Learning Ltd),458585,SINV00123294,23/05/2017,5643,940.5,Education Diversity,EDDIV,3532,Comp-Running & License Costs,Children'S Services
Blackpool Council,1026811,Stannah Lift Services Ltd,458593,R040027488,30/05/2017,347,57.83,Personal Care Support,MV,5405,Stairlifts - R&M,Adult & Families
Blackpool Council,1011675,Bambers Remedial Contractors Limited,458595,14493,19/05/2017,354,59,Personal Care Support,MV,5403,Disabled Adaptations,Adult & Families
Blackpool Council,1113103,Joseph Boniface Architects Ltd,458598,JBA276_277ACDEP,18/05/2017,10530,1755,Resources Prudential Schemes,CGGA,6503,Capital Salaries (Pro Advance),Capital - Resources
Blackpool Council,1113103,Joseph Boniface Architects Ltd,458599,JBA276_277 A-C,18/05/2017,12180,2030,Resources Prudential Schemes,CGGA,6503,Capital Salaries (Pro Advance),Capital - Resources
Blackpool Council,1104132,Geoplace Llp,458635,98001360,19/05/2017,450,0,Traffic Management,TRA,4501,Private Contractors,Community & Env Services
Blackpool Council,1011976,Randstad Education Limited,458645,3810451,24/05/2017,421.63,70.27,"Skills,Education&Employment",SKEDEM,0791,Temp/Relief (Bureau Staff),Children'S Services
Blackpool Council,1011976,Randstad Education Limited,458646,3828576,24/05/2017,281.09,46.85,"Skills,Education&Employment",SKEDEM,0791,Temp/Relief (Bureau Staff),Children'S Services
Blackpool Council,1011976,Randstad Education Limited,458647,3828741,24/05/2017,281.09,46.85,"Skills,Education&Employment",SKEDEM,0791,Temp/Relief (Bureau Staff),Children'S Services
Blackpool Council,1068354,Meme Media Ltd,458667,18726,30/05/2017,252,42,Leisure,LESR,3806,Advertising-General,Community & Env Services
Blackpool Council,1113098,Tootoot Ltd,458671,INV-0389,19/05/2017,840,140,Education Diversity,EDDIV,3801,Other Expenses,Children'S Services
Blackpool Council,1112897,REDACTED PERSONAL DATA,458748,8,23/05/2017,500,0,Art Gallery Summary,AHG,3456,Payment To Artists,Places
Blackpool Council,1011868,W H Tarmacadam Limited,458751,1833,24/05/2017,744,124,Engineering,ENGINE,1012,Premises Maint-Priv.Contractor,Community & Env Services
Blackpool Council,1027764,Colins Travel,458752,BC/01/013APR17,23/05/2017,657,0,Transport Services,TRANSP,2201,Contract Hire,Community & Env Services
Blackpool Council,1027764,Colins Travel,458753,BC/01/016APR17,23/05/2017,711,0,Transport Services,TRANSP,2201,Contract Hire,Community & Env Services
Blackpool Council,1027764,Colins Travel,458754,BC/01/014APR17,23/05/2017,670.5,0,Transport Services,TRANSP,2201,Contract Hire,Community & Env Services
Blackpool Council,1051299,Leisure Travel,458755,BC/42/004APR17,23/05/2017,1215,0,Transport Services,TRANSP,2201,Contract Hire,Community & Env Services
Blackpool Council,1051299,Leisure Travel,458756,BC/01/025APR17,23/05/2017,576,0,Transport Services,TRANSP,2201,Contract Hire,Community & Env Services
Blackpool Council,1051299,Leisure Travel,458757,BC/03/004APR17,23/05/2017,340,0,Transport Services,TRANSP,2201,Contract Hire,Community & Env Services
Blackpool Council,1051299,Leisure Travel,458758,BC/01/002APR17,23/05/2017,720,0,Transport Services,TRANSP,2201,Contract Hire,Community & Env Services
Blackpool Council,1051299,Leisure Travel,458759,BC/01/024APR17,23/05/2017,540,0,Transport Services,TRANSP,2201,Contract Hire,Community & Env Services
Blackpool Council,1009755,D Kirkham,458760,BC/74/002APR17,23/05/2017,630,0,Transport Services,TRANSP,2201,Contract Hire,Community & Env Services
Blackpool Council,1009234,Gary Roy Kirkham,458761,BC/02/018APR17,23/05/2017,483,0,Transport Services,TRANSP,2201,Contract Hire,Community & Env Services
Blackpool Council,1111501,Impact Fundraising,458774,248,23/05/2017,11583,1930.5,Museum - Professional Fees,EC7011,3413,Consultants,Places
Blackpool Council,1012789,Advanced Business Solutions (Fka Coa),458791,ARBK/99042659,31/05/2017,570,95,Accountancy,FBBC,3532,Comp-Running & License Costs,Resources
Blackpool Council,1088013,Hm Land Registry - Nw,458802,6000042899,23/05/2017,320.4,53.4,"Income, Recovery & Debtors",FBBE,3401,General Services,Resources
Blackpool Council,1088013,Hm Land Registry - Nw,458803,6000042898,23/05/2017,250.2,41.7,"Income, Recovery & Debtors",FBBE,3401,General Services,Resources
Blackpool Council,1008525,Kingswood Office Supplies Limited,458818,242051,25/05/2017,756,126,Buildings,AEB,3302,Stationery,Resources
Blackpool Council,1031983,Olympic Lock & Safeguards Ltd,458838,6466,31/05/2017,947.32,157.89,Community Safety,COMSAF,3041,Other Materials,Places
Blackpool Council,1087953,Blackpool Local Education Partnership Ltd,458840,275,24/05/2017,10445.16,1740.86,Children'S Finance & Admin,FIN,4515,Contract Services,Children'S Services
Blackpool Council,1053891,REDACTED PERSONAL DATA,458850,2016-73,24/05/2017,360,0,Art Gallery Summary,AHG,3456,Payment To Artists,Places
Blackpool Council,1058631,Tara Signs Ltd (Fac008),458878,INV8104,31/05/2017,595.61,99.27,Engineering,ENGINE,3041,Other Materials,Community & Env Services
Blackpool Council,1112636,Robinson Low Francis Llp,458880,SIN045002,30/05/2017,726,121,Parks,PARKS,1012,Premises Maint-Priv.Contractor,Community & Env Services
Blackpool Council,1112636,Robinson Low Francis Llp,458881,SIN045003,30/05/2017,726,121,Parks,PARKS,1012,Premises Maint-Priv.Contractor,Community & Env Services
Blackpool Council,1011714,Michael Hope Haulage Limited,458882,001278,25/05/2017,1536,256,Engineering,ENGINE,1012,Premises Maint-Priv.Contractor,Community & Env Services
Blackpool Council,1012071,Bethell Construction Limited,458883,14421,26/05/2017,4212,702,Engineering,ENGINE,1012,Premises Maint-Priv.Contractor,Community & Env Services
Blackpool Council,1012071,Bethell Construction Limited,458884,14416,25/05/2017,3369.6,561.6,Engineering,ENGINE,1012,Premises Maint-Priv.Contractor,Community & Env Services
Blackpool Council,1012071,Bethell Construction Limited,458885,14415,25/05/2017,2106,351,Engineering,ENGINE,1012,Premises Maint-Priv.Contractor,Community & Env Services
Blackpool Council,1013064,Tarmac Lafarge Trading Limited,458888,9035972670,25/05/2017,705.01,117.5,Engineering,ENGINE,4501,Private Contractors,Community & Env Services
Blackpool Council,1105580,Buttress Architects Limited,458892,13359,24/05/2017,12261.6,2043.6,Museum- Other Costs,EC7013,3413,Consultants,Places
Blackpool Council,1105580,Buttress Architects Limited,458892,13359,24/05/2017,12978.4,2163.07,Museum - Professional Fees,EC7011,3413,Consultants,Places
Blackpool Council,1105541,Prt Social Enterprise Ltd,458902,1043,25/05/2017,1200,200,Museum - Professional Fees,EC7011,3413,Consultants,Places
Blackpool Council,1011896,Capita Business Services Ltd,458955,6003560611,25/05/2017,2400,400,Benefits - Admin,FCACA,3533,Computer S/W Purchases,Resources
Blackpool Council,1008135,Marshalls,458958,ZBB1223294,26/05/2017,1259.52,0,Highways & Engineering,ZM0018,9773,Orders Received Not Invoiced,Blackpool Services
Blackpool Council,1008135,Marshalls,458958,ZBB1223294,26/05/2017,1511.42,251.9,Highways & Engineering,ZM0018,9511A,Stocks Efin,Blackpool Services
Blackpool Council,1082240,E-On Uk Sustainable Energy Services Ltd,458962,031953,25/05/2017,480.46,80.08,Engineering,ENGINE,1012,Premises Maint-Priv.Contractor,Community & Env Services
Blackpool Council,1060504,Express Cutting And Welding Services Ltd,458966,183049,25/05/2017,355.9,59.32,Engineering,ENGINE,3041,Other Materials,Community & Env Services
Blackpool Council,1060504,Express Cutting And Welding Services Ltd,458967,183616,25/05/2017,312.38,52.06,Engineering,ENGINE,3041,Other Materials,Community & Env Services
Blackpool Council,1016258,M J Teale Plant Hire Ltd,458968,B6907,25/05/2017,1193.47,198.91,Engineering,ENGINE,1012,Premises Maint-Priv.Contractor,Community & Env Services
Blackpool Council,1100231,Ukactive,458970,UKAPPL/101743,25/05/2017,733.86,122.31,Leisure,LESR,3417,Entertainment,Community & Env Services
Blackpool Council,1011976,Randstad Education Limited,458972,3826772,25/05/2017,281.09,46.85,"Skills,Education&Employment",SKEDEM,0791,Temp/Relief (Bureau Staff),Children'S Services
Blackpool Council,1000009,Blackpool & The Fylde College,458975,S0017817,25/05/2017,11243.8,0,"Skills,Education&Employment",SKEDEM,3426,Course Fees,Children'S Services
Blackpool Council,1005071,Blackpool Transport Services Limited,458978,I013438,25/05/2017,8709.08,0,Other Learning,OTHL,2211,Casual Hire,Children'S Services
Blackpool Council,1005071,Blackpool Transport Services Limited,458979,I013439,25/05/2017,5391.76,0,Travel & Road Safety,FPAA,2211,Casual Hire,Community & Env Services
Blackpool Council,1006644,Telewest/Virgin Media Payments Ltd,458984,067437901003A,25/05/2017,4674.23,779.04,Corporate Services,FGA,3521,Landline - Line Rental,Resources
Blackpool Council,1006644,Telewest/Virgin Media Payments Ltd,458985,067437901003A,25/05/2017,4682.88,780.48,Corporate Services,FGA,3521,Landline - Line Rental,Resources
Blackpool Council,1006644,Telewest/Virgin Media Payments Ltd,458986,067437901003A,25/05/2017,4759.52,793.25,Corporate Services,FGA,3521,Landline - Line Rental,Resources
Blackpool Council,1006644,Telewest/Virgin Media Payments Ltd,458987,067437901003A,25/05/2017,4675.04,779.17,Corporate Services,FGA,3521,Landline - Line Rental,Resources
Blackpool Council,1006644,Telewest/Virgin Media Payments Ltd,458988,067437901003A,25/05/2017,4689.41,781.57,Corporate Services,FGA,3521,Landline - Line Rental,Resources
Blackpool Council,1108764,Fitsense Ltd T/A Premier Sports,458990,SI-1000209,25/05/2017,3840,640,Leisure,LESR,3801,Other Expenses,Community & Env Services
Blackpool Council,1007840,Newsco Insider Ltd,459013,0000046887,25/05/2017,1434,239,Edc - Economic Dev Company,MPB,3806,Advertising-General,Places
Blackpool Council,1009390,Firwood Timber & Plywood Co Ltd,459020,544811,31/05/2017,520,0,Highways & Engineering,ZM0018,9773,Orders Received Not Invoiced,Blackpool Services
Blackpool Council,1009390,Firwood Timber & Plywood Co Ltd,459020,544811,31/05/2017,624,104,Highways & Engineering,ZM0018,9511A,Stocks Efin,Blackpool Services
Blackpool Council,1011369,Lancashire County Council,459021,5200141736,25/05/2017,231069,0,Concessionary Fares,FR5001,3401,General Services,Budgets Outside Cash Limits
Blackpool Council,1011369,Lancashire County Council,459023,5200141722,25/05/2017,27856,0,Concessionary Fares,FR5001,3401,General Services,Budgets Outside Cash Limits
Blackpool Council,1011369,Lancashire County Council,459024,5200141723,25/05/2017,16505.48,0,Concessionary Fares,FR5001,3401,General Services,Budgets Outside Cash Limits
Blackpool Council,1011369,Lancashire County Council,459025,5200141743,25/05/2017,3162,0,Concessionary Fares,FR5001,3401,General Services,Budgets Outside Cash Limits
Blackpool Council,1094424,The Networking People,459034,SI104032,25/05/2017,8791.28,1465.21,Corporate Services,FGA,3527,Communication Lines,Resources
Blackpool Council,1008731,Jack Turner (Refreshments) Ltd,459037,202133,25/05/2017,598.24,99.71,Leisure,LESR,3101,Provisions,Community & Env Services
Blackpool Council,1008817,Radio J  Cabs,459061,BC/27/004APR17,26/05/2017,286,0,Transport Services,TRANSP,2201,Contract Hire,Community & Env Services
Blackpool Council,1008817,Radio J  Cabs,459062,BC/58/001APR17,26/05/2017,522,0,Transport Services,TRANSP,2201,Contract Hire,Community & Env Services
Blackpool Council,1008817,Radio J  Cabs,459063,BC/04/002APR17,26/05/2017,660,0,Transport Services,TRANSP,2201,Contract Hire,Community & Env Services
Blackpool Council,1008817,Radio J  Cabs,459064,BC/76/001APR17,26/05/2017,1005,0,Transport Services,TRANSP,2201,Contract Hire,Community & Env Services
Blackpool Council,1072848,Peter Rhodes,459065,BC/01/001APR17,25/05/2017,657,0,Transport Services,TRANSP,2201,Contract Hire,Community & Env Services
Blackpool Council,1072848,Peter Rhodes,459125,BC/01/008APR17,30/05/2017,657,0,Transport Services,TRANSP,2201,Contract Hire,Community & Env Services
Blackpool Council,1028068,Proquest Llc,459129,70442482A,30/05/2017,1490,0,Central Library,LBB,3711,Subscriptions,Places
Blackpool Council,1101066,Bruce Scott Structural Design Ltd,459212,01008,30/05/2017,500,0,Local Authority Housing,CXA,6501,Contract Payments,Capital - Places
Blackpool Council,1026811,Stannah Lift Services Ltd,459213,S085058805,30/05/2017,1615,0,Local Authority Housing,CXA,6501,Contract Payments,Capital - Places
Blackpool Council,1081205,The Excellent Ramp System Ltd,459214,C & R 42,30/05/2017,2725,0,Local Authority Housing,CXA,6501,Contract Payments,Capital - Places
Blackpool Council,1011675,Bambers Remedial Contractors Limited,459216,14501,30/05/2017,4414.13,0,Support For Vunerable Adults,CXCA,6501,Contract Payments,Capital - Adult Social Care
Blackpool Council,1011675,Bambers Remedial Contractors Limited,459217,14485,30/05/2017,2188.4,0,Support For Vunerable Adults,CXCA,6501,Contract Payments,Capital - Adult Social Care
Blackpool Council,1011675,Bambers Remedial Contractors Limited,459218,14508,30/05/2017,255,0,Support For Vunerable Adults,CXCA,6501,Contract Payments,Capital - Adult Social Care
Blackpool Council,1011675,Bambers Remedial Contractors Limited,459219,14492,30/05/2017,395.2,0,Support For Vunerable Adults,CXCA,6501,Contract Payments,Capital - Adult Social Care
Blackpool Council,1108975,Ups Building & Maintenance Ltd,459220,7777,30/05/2017,4843.55,0,Support For Vunerable Adults,CXCA,6501,Contract Payments,Capital - Adult Social Care
Blackpool Council,1023161,Suez Recycling And Recovery Uk Ltd,459315,30653493,31/05/2017,5616.96,936.16,Waste Management,WASTE,4514,Contract 'E',Community & Env Services
Blackpool Council,1042794,Carlton Fuels Limited,459325,7961367,31/05/2017,20980.01,0,"Insurance,Dso,Banking",ZF0001,9773,Orders Received Not Invoiced,Total Reconciliations
Blackpool Council,1042794,Carlton Fuels Limited,459325,7961367,31/05/2017,25176.01,4196,"Insurance,Dso,Banking",ZF0001,9511A,Stocks Efin,Total Reconciliations
Blackpool Council,1087118,Ps & P Limited,459335,92808,31/05/2017,640.44,106.74,Housing Benefits,FC3001,3401,General Services,Budgets Outside Cash Limits
Blackpool Council,1010732,Alexandra Nursing Home,3676432,101610,24/05/2017,8239.48,0,Personal Care Support,MV,4506,Nursing Homes,Adult & Families
Blackpool Council,1010732,Alexandra Nursing Home,3676432,101610,24/05/2017,1000.17,0,Personal Care Support,MV,4505,Residential Homes,Adult & Families
Blackpool Council,1010732,Alexandra Nursing Home,3676433,101569,24/05/2017,1269.66,0,Mhn With Dementia,MG,7583,Indep Sect Nursing Homes,Adult & Families
Blackpool Council,1010732,Alexandra Nursing Home,3676434,101355I,24/05/2017,1902.64,0,Personal Care Support,MV,4506,Nursing Homes,Adult & Families
Blackpool Council,1010732,Alexandra Nursing Home,3676434,101355I,24/05/2017,341.52,0,Personal Care Support,MV,4505,Residential Homes,Adult & Families
Blackpool Council,1010732,Alexandra Nursing Home,3676435,101000,24/05/2017,2219.76,0,Personal Care Support,MV,4505,Residential Homes,Adult & Families
Blackpool Council,1010732,Alexandra Nursing Home,3676436,101515,24/05/2017,3262.64,0,Personal Care Support,MV,4506,Nursing Homes,Adult & Families
Blackpool Council,1010732,Alexandra Nursing Home,3676436,101515,24/05/2017,341.52,0,Personal Care Support,MV,4505,Residential Homes,Adult & Families
Blackpool Council,1010732,Alexandra Nursing Home,3690682,106446I,24/05/2017,2813.48,0,Personal Care Support,MV,4506,Nursing Homes,Adult & Families
Blackpool Council,1010732,Alexandra Nursing Home,3690682,106446I,24/05/2017,341.52,0,Personal Care Support,MV,4505,Residential Homes,Adult & Families
Blackpool Council,1010732,Alexandra Nursing Home,3690683,106223I,24/05/2017,1902.64,0,Personal Care Support,MV,4506,Nursing Homes,Adult & Families
Blackpool Council,1010732,Alexandra Nursing Home,3690683,106223I,24/05/2017,341.52,0,Personal Care Support,MV,4505,Residential Homes,Adult & Families
Blackpool Council,1010732,Alexandra Nursing Home,3690684,106376,24/05/2017,1262.86,0,Personal Care Support,MV,7583,Indep Sect Nursing Homes,Adult & Families
Blackpool Council,1010732,Alexandra Nursing Home,3690684,106376,24/05/2017,2257.8,0,Personal Care Support,MV,7582,Indep Sect Residential Homes,Adult & Families
Blackpool Council,1010732,Alexandra Nursing Home,3690686,105897,24/05/2017,2219.76,0,Personal Care Support,MV,4505,Residential Homes,Adult & Families
Blackpool Council,1054541,P&A Medical Ltd,3698191,18337,08/05/2017,1008,168,Corporate Health,FK0013,0911,Training Expenses,Chief Executive
Blackpool Council,1010732,Alexandra Nursing Home,3705211,109943,24/05/2017,2219.76,0,Personal Care Support,MV,4505,Residential Homes,Adult & Families
Blackpool Council,1010732,Alexandra Nursing Home,3705212,110364I,24/05/2017,2813.48,0,Personal Care Support,MV,4506,Nursing Homes,Adult & Families
Blackpool Council,1010732,Alexandra Nursing Home,3705212,110364I,24/05/2017,341.52,0,Personal Care Support,MV,4505,Residential Homes,Adult & Families
Blackpool Council,1010732,Alexandra Nursing Home,3705213,110119I,24/05/2017,1902.64,0,Personal Care Support,MV,4506,Nursing Homes,Adult & Families
Blackpool Council,1010732,Alexandra Nursing Home,3705213,110119I,24/05/2017,341.52,0,Personal Care Support,MV,4505,Residential Homes,Adult & Families
Blackpool Council,1099029,REDACTED PERSONAL DATA,3706521,107962,11/05/2017,417,0,Looked After Children,JBR,4801,Gen (Ie Wkly Basic),Children'S Services
Blackpool Council,1006944,Siemens Financial Services Ltd,3708603,244/17/0145018,04/05/2017,3819.02,636.5,Urgent Care,URGCAR,4501,Private Contractors,Adult & Families
Blackpool Council,1006944,Siemens Financial Services Ltd,3708673,244/17/0138299,04/05/2017,2825.5,470.91,Urgent Care,URGCAR,4501,Private Contractors,Adult & Families
Blackpool Council,1006944,Siemens Financial Services Ltd,3708678,244/17/0142960,04/05/2017,2068.38,344.72,Urgent Care,URGCAR,4501,Private Contractors,Adult & Families
Blackpool Council,1006944,Siemens Financial Services Ltd,3708683,244/17/0143741,04/05/2017,2501.38,416.89,Urgent Care,URGCAR,4501,Private Contractors,Adult & Families
Blackpool Council,1099280,Bowland Farm Experience Ltd (Mobile Farm),3708723,14,04/05/2017,624,104,Early Years & Family Services,EYTFAM,3401,General Services,Children'S Services
Blackpool Council,1111328,Hadley Fraser Ltd,3708771,BLA021,05/05/2017,1235.16,205.86,Safeguarding Adults,JDEAAA,3401,General Services,Adult & Families
Blackpool Council,1105240,Hanzak Ltd T/A Dr Rashad Nazir,3708938,20009RN,05/05/2017,899.3,0,Safeguarding Adults,JDEAAA,3401,General Services,Adult & Families
Blackpool Council,1066941,The Stroke Association,3708940,CRM 8283,18/05/2017,13394.25,0,Undefined Client Category,MT,4512,Other Care Block Payments,Adult & Families
Blackpool Council,1105711,Julie Doel T/A J A Social Care Ltd,3709099,BPOOL66,05/05/2017,280,0,Safeguarding Adults,JDEAAA,3401,General Services,Adult & Families
Blackpool Council,1109577,Brenella Solutions (Uk) Ltd,3709240,520,12/05/2017,855,0,Safeguarding Adults,JDEAAA,3401,General Services,Adult & Families
Blackpool Council,1091610,Communicate Slt Cic,3709244,BCC0223,03/05/2017,3500,0,Community & Early Int Support,COMSUP,3801,Other Expenses,Children'S Services
Blackpool Council,1091610,Communicate Slt Cic,3709258,BCC0222,03/05/2017,6250,0,Community & Early Int Support,COMSUP,3801,Other Expenses,Children'S Services
Blackpool Council,1072296,Nqa Certification Ltd,3709328,ARF18068410,08/05/2017,1530,255,Economic Development,PTA,3801,Other Expenses,Places
Blackpool Council,1104800,My Life Legacy,3709336,1517246,03/05/2017,6183,0,Children With Additional Needs,CWAN,4501,Private Contractors,Children'S Services
Blackpool Council,1089812,Rider Levett Bucknall Uk Limited,3709651,102883,19/05/2017,960,160,Growth Team,PM4001,4501,Private Contractors,Places
Blackpool Council,1075175,Waterman Environmental Services Limited,3709959,6375,03/05/2017,1932.38,322.06,Buildings,AEB,1012,Premises Maint-Priv.Contractor,Resources
Blackpool Council,1100902,REDACTED PERSONAL DATA,3710893,42/03,03/05/2017,452.9,0,Personal Care Support,MV,4509,Other Care,Adult & Families
Blackpool Council,1006099,Blackpool Teaching Hospitals Nhs Ft,3710955,1110029586,11/05/2017,1574.18,0,Risk Services,FBBB,4701,Other Contracted Services,Resources
Blackpool Council,1088102,Whistl Uk Limited,3711118,IN18US17002844,03/05/2017,4878.94,813.16,Customer First,FCAD,3511,Postages,Resources
Blackpool Council,1077963,Electricity Northwest Ltd,3711120,990036597,10/05/2017,301.14,0,Travel & Safety,TRC,1202,Electricity,Community & Env Services
Blackpool Council,1089732,Beechkeys Limited,3711129,NWS72,02/05/2017,34034.01,0,Children With Additional Needs,CWAN,4501,Private Contractors,Children'S Services
Blackpool Council,1089732,Beechkeys Limited,3711130,NWS62,02/05/2017,38506.23,0,Children With Additional Needs,CWAN,4501,Private Contractors,Children'S Services
Blackpool Council,1089732,Beechkeys Limited,3711131,NWS60,02/05/2017,34034.01,0,Children With Additional Needs,CWAN,4501,Private Contractors,Children'S Services
Blackpool Council,1089732,Beechkeys Limited,3711132,NWS61,02/05/2017,34034.01,0,Children With Additional Needs,CWAN,4501,Private Contractors,Children'S Services
Blackpool Council,1089732,Beechkeys Limited,3711133,NWS70,02/05/2017,35700.67,0,Children With Additional Needs,CWAN,4501,Private Contractors,Children'S Services
Blackpool Council,1089732,Beechkeys Limited,3711134,NWS71,02/05/2017,34034.01,0,Children With Additional Needs,CWAN,4501,Private Contractors,Children'S Services
Blackpool Council,1089732,Beechkeys Limited,3711136,NWS73,02/05/2017,22689.34,0,Children With Additional Needs,CWAN,4501,Private Contractors,Children'S Services
Blackpool Council,1089732,Beechkeys Limited,3711137,NWS76,02/05/2017,34034.01,0,Children With Additional Needs,CWAN,4501,Private Contractors,Children'S Services
Blackpool Council,1089732,Beechkeys Limited,3711140,NWS77,02/05/2017,11344.67,0,Children With Additional Needs,CWAN,4501,Private Contractors,Children'S Services
Blackpool Council,1090661,Genecon Limited,3711146,GEN935E,19/05/2017,960,160,Edc - Economic Dev Company,MPB,3413,Consultants,Places
Blackpool Council,1106288,Blackpool Housing Company Ltd,3711148,288,08/05/2017,257,0,Strategy Team,PBC,0952,Compensation Payments,Places
Blackpool Council,1007516,Phoenix Commercial Collections Ltd,3711362,92515,05/05/2017,4899.86,816.65,"Income, Recovery & Debtors",FBBE,3807,Legal & Court Costs,Resources
Blackpool Council,1007516,Phoenix Commercial Collections Ltd,3711363,92516,05/05/2017,411.57,68.6,"Income, Recovery & Debtors",FBBE,3807,Legal & Court Costs,Resources
Blackpool Council,1058291,Clivery Barr & Co,3711369,17-39,02/05/2017,732,122,Costs Pl,RK8002,3807,Legal & Court Costs,Internal Insurance
Blackpool Council,1103692,Calico Enterprise Limited,3711371,SINV/00003050,05/05/2017,3120,520,Social Fund - Client,FC1802,5210,Community Care Support,Resources
Blackpool Council,1103692,Calico Enterprise Limited,3711372,SINV/00003051,05/05/2017,2592,432,Social Fund - Client,FC1802,5210,Community Care Support,Resources
Blackpool Council,1005102,Sandcastle Waterpark - Boc Ltd,3711373,7214,03/05/2017,8784.34,1464.06,Parking Operational,PAROPE,3801,Other Expenses,Budgets Outside Cash Limits
Blackpool Council,1103450,Blackpool Entertainment Company Limited,3711374,INV002667,03/05/2017,1040,173.33,Buildings,AEB,1301,Rent & Hire Of Premises,Resources
Blackpool Council,1111078,Dr Y P Shukla,3711385,22,10/05/2017,1261.9,0,Safeguarding Adults,JDEAAA,3401,General Services,Adult & Families
Blackpool Council,1111078,Dr Y P Shukla,3711386,21,12/05/2017,733.3,0,Safeguarding Adults,JDEAAA,3401,General Services,Adult & Families
Blackpool Council,1111078,Dr Y P Shukla,3711387,20,12/05/2017,1085.1,0,Safeguarding Adults,JDEAAA,3401,General Services,Adult & Families
Blackpool Council,1111078,Dr Y P Shukla,3711388,19,10/05/2017,1087.8,0,Safeguarding Adults,JDEAAA,3401,General Services,Adult & Families
Blackpool Council,1111078,Dr Y P Shukla,3711389,23,10/05/2017,733.3,0,Safeguarding Adults,JDEAAA,3401,General Services,Adult & Families
Blackpool Council,1105049,M Sullivan T/A Liberty Social Care,3711396,MS 153,12/05/2017,280,0,Safeguarding Adults,JDEAAA,3401,General Services,Adult & Families
Blackpool Council,1108305,Chlond Bia & Sca Limited,3712522,0056,10/05/2017,524.75,0,Safeguarding Adults,JDEAAA,3401,General Services,Adult & Families
Blackpool Council,1006944,Siemens Financial Services Ltd,3712524,244/17/0151875,04/05/2017,1750.62,291.77,Urgent Care,URGCAR,4501,Private Contractors,Adult & Families
Blackpool Council,1006944,Siemens Financial Services Ltd,3712525,244/17/0156196,04/05/2017,4442.29,740.38,Urgent Care,URGCAR,4501,Private Contractors,Adult & Families
Blackpool Council,1092524,Dwf Llp,3712564,1818976,08/05/2017,800.4,133.4,Pay Project,FK0032,3807,Legal & Court Costs,Chief Executive
Blackpool Council,1105270,REDACTED PERSONAL DATA,3712565,04/2017,12/05/2017,301,0,Safeguarding Adults,JDEAAA,3401,General Services,Adult & Families
Blackpool Council,1105270,REDACTED PERSONAL DATA,3712566,03/2017,12/05/2017,328,0,Safeguarding Adults,JDEAAA,3401,General Services,Adult & Families
Blackpool Council,1110132,Health Assured Ltd,3712568,9054389,02/05/2017,1986.02,331,Corporate Health,FK0013,0992,Medical Fees (Employee),Chief Executive
Blackpool Council,1006419,Tunstall Healthcare (Uk) Ltd,3712593,30033791,11/05/2017,4598.99,766.5,Urgent Care,URGCAR,3066,Personal Needs Of Clients,Adult & Families
Blackpool Council,1010300,Blacktax Radio Taxis T/A Blackpool Courier,3712620,11681,02/05/2017,303.6,0,Senior Management,JEA,3511,Postages,Children'S Services
Blackpool Council,1054541,P&A Medical Ltd,3712633,18593,08/05/2017,672,112,Corporate Health,FK0013,0911,Training Expenses,Chief Executive
Blackpool Council,1110099,REDACTED PERSONAL DATA,3712638,0001,11/05/2017,342.5,0,Senior Management,JEA,3807,Legal & Court Costs,Children'S Services
Blackpool Council,1007516,Phoenix Commercial Collections Ltd,3712643,92517,05/05/2017,2718.9,453.15,Phoenix Commercial Collection,FV6705,7366,Car Parking Fees,Budgets Outside Cash Limits
Blackpool Council,1007499,E-On  (Powergen Limited),3712663,H144331708,16/05/2017,842.22,140.37,Travel & Safety,TRC,1202,Electricity,Community & Env Services
Blackpool Council,1008450,Lawrence Vehicles Ltd T/A Lancashire Daf,3713232,1519154,19/05/2017,935.99,156,Cvmu,CVMU,3041,Other Materials,Community & Env Services
Blackpool Council,1008450,Lawrence Vehicles Ltd T/A Lancashire Daf,3713233,1519102,18/05/2017,2177.99,363,Cvmu,CVMU,3041,Other Materials,Community & Env Services
Blackpool Council,1008450,Lawrence Vehicles Ltd T/A Lancashire Daf,3713236,1519155,19/05/2017,1871.99,312,Cvmu,CVMU,3041,Other Materials,Community & Env Services
Blackpool Council,1009083,H & J Quick Ltd,3713238,212275184,05/05/2017,977.93,162.99,Cvmu,CVMU,3041,Other Materials,Community & Env Services
Blackpool Council,1077392,Reed Specialist Recruitment Ltd,3713375,E020622988M,08/05/2017,827.5,137.92,Accountancy,FBBC,0791,Temp/Relief (Bureau Staff),Resources
Blackpool Council,1077392,Reed Specialist Recruitment Ltd,3713375,E020622988M,08/05/2017,1005.19,167.54,Cems Crems Etc,CEMCRE,0791,Temp/Relief (Bureau Staff),Governance & Partnerships
Blackpool Council,1077392,Reed Specialist Recruitment Ltd,3713375,E020622988M,08/05/2017,973.17,162.18,Children With Additional Needs,CWAN,0791,Temp/Relief (Bureau Staff),Children'S Services
Blackpool Council,1077392,Reed Specialist Recruitment Ltd,3713375,E020622988M,08/05/2017,12559.39,2093.25,Locality,JAB,0791,Temp/Relief (Bureau Staff),Children'S Services
Blackpool Council,1077392,Reed Specialist Recruitment Ltd,3713375,E020622988M,08/05/2017,2905.16,484.2,Looked After Children,JBR,0791,Temp/Relief (Bureau Staff),Children'S Services
Blackpool Council,1077392,Reed Specialist Recruitment Ltd,3713375,E020622988M,08/05/2017,1461.72,243.62,Risk Services,FBBB,0791,Temp/Relief (Bureau Staff),Resources
Blackpool Council,1077392,Reed Specialist Recruitment Ltd,3713375,E020622988M,08/05/2017,1664.94,277.49,Safeguarding Chairs,JA1501,0791,Temp/Relief (Bureau Staff),Children'S Services
Blackpool Council,1077392,Reed Specialist Recruitment Ltd,3713375,E020622988M,08/05/2017,4243.12,707.2,Social Services Direct,SSD,0791,Temp/Relief (Bureau Staff),Adult & Families
Blackpool Council,1077392,Reed Specialist Recruitment Ltd,3713375,E020622988M,08/05/2017,496.32,82.72,Vacant & Under Used,AEV,0791,Temp/Relief (Bureau Staff),Resources
Blackpool Council,1005067,Blackpool Pleasure Beach Ltd,3713411,14537,02/05/2017,849,141.5,"Tourism,Promotions & Conferen.",ZX0501,9687,Tourism Sale Of Tickets,Place Directorate
Blackpool Council,1105272,Total Social Work Ltd,3713412,150384,12/05/2017,1145.2,0,Safeguarding Adults,JDEAAA,3401,General Services,Adult & Families
Blackpool Council,1111687,Just Recruit Group Limited (Fac044),3714081,17401,03/05/2017,819.9,136.65,Corporate Health,FK0013,0992,Medical Fees (Employee),Chief Executive
Blackpool Council,1011702,J & J Decorating Services,3714485,7470,18/05/2017,4080,680,Branch Libraries,LBC,1012,Premises Maint-Priv.Contractor,Places
Blackpool Council,1011702,J & J Decorating Services,3714486,7459,12/05/2017,2592,432,Buildings,AEB,1012,Premises Maint-Priv.Contractor,Resources
Blackpool Council,1017728,Quartzelec Ltd,3714506,71069,19/05/2017,3236.4,539.4,Parking Operational,PAROPE,1012,Premises Maint-Priv.Contractor,Budgets Outside Cash Limits
Blackpool Council,1020179,The James Mercer Group Ltd,3714507,102323,12/05/2017,1055.52,175.92,Buildings,AEB,1121,Heating & Ventilation,Resources
Blackpool Council,1025927,Eft Systems Ltd,3714534,31732,02/05/2017,450.25,75.04,Buildings,AEB,1012,Premises Maint-Priv.Contractor,Resources
Blackpool Council,1042515,Geze Uk Ltd,3714541,88311909,03/05/2017,4560,760,Buildings,AEB,1012,Premises Maint-Priv.Contractor,Resources
Blackpool Council,1074983,Ihs (Global) Limited,3714638,90427064,12/05/2017,8560.91,1426.82,Facilities,AEF,1012,Premises Maint-Priv.Contractor,Resources
Blackpool Council,1075175,Waterman Environmental Services Limited,3714639,6378,18/05/2017,1194.36,199.06,Branch Libraries,LBC,1012,Premises Maint-Priv.Contractor,Places
Blackpool Council,1075175,Waterman Environmental Services Limited,3714639,6378,18/05/2017,5724.54,954.09,Buildings,AEB,1012,Premises Maint-Priv.Contractor,Resources
Blackpool Council,1075175,Waterman Environmental Services Limited,3714639,6378,18/05/2017,333,55.5,Cems Crems Etc,CEMCRE,1012,Premises Maint-Priv.Contractor,Governance & Partnerships
Blackpool Council,1075175,Waterman Environmental Services Limited,3714639,6378,18/05/2017,345.6,57.6,Central Library,LBB,1012,Premises Maint-Priv.Contractor,Places
Blackpool Council,1075175,Waterman Environmental Services Limited,3714639,6378,18/05/2017,373.38,62.23,Economic Development,PTA,1012,Premises Maint-Priv.Contractor,Places
Blackpool Council,1075175,Waterman Environmental Services Limited,3714639,6378,18/05/2017,750.64,125.11,Illuminations - Operational,PJOPS,1012,Premises Maint-Priv.Contractor,Places
Blackpool Council,1094411,Fox Fire Security Limited,3714650,2125,18/05/2017,1586.88,264.48,Art Gallery Summary,AHG,1012,Premises Maint-Priv.Contractor,Places
Blackpool Council,1105209,Happy Tots Nursery Ltd,3714907,2,03/05/2017,23436,0,Childrens Centres,CEBK,6502,Grants & Advances,Capital - Childrens
Blackpool Council,1007516,Phoenix Commercial Collections Ltd,3714909,92609,12/05/2017,329.31,54.88,"Income, Recovery & Debtors",FBBE,3807,Legal & Court Costs,Resources
Blackpool Council,1005067,Blackpool Pleasure Beach Ltd,3714914,14579,02/05/2017,12256.89,2042.83,"Tourism,Promotions & Conferen.",ZX0501,968B,Resort Pass,Place Directorate
Blackpool Council,1100367,Curve Learning And Development Ltd,3714917,6856,12/05/2017,878.4,146.4,Adults Training,LM0420,3426,Course Fees,Adult & Families
Blackpool Council,1007535,Pip (Play Inclusion Project),3714918,BAC93,03/05/2017,6979.5,0,Other Learning,OTHL,3801,Other Expenses,Children'S Services
Blackpool Council,1005067,Blackpool Pleasure Beach Ltd,3714922,14563,02/05/2017,8190.11,1365.03,"Tourism,Promotions & Conferen.",ZX0501,968B,Resort Pass,Place Directorate
Blackpool Council,1046120,Bs Project Services Ltd,3714944,21337376,05/05/2017,563.04,93.84,Learning Disability,ALD,4507,Domiciliary Care,Adult & Families
Blackpool Council,1046120,Bs Project Services Ltd,3714947,21325622,05/05/2017,844.56,140.76,Mhn Without Dementia,MF,4507,Domiciliary Care,Adult & Families
Blackpool Council,1048201,Blackburn & Co Solicitors,3715027,2010075,02/05/2017,310.34,0,Mhn With Dementia,MG,7580,Residential Property Sales,Adult & Families
Blackpool Council,1058424,Blackpool Federation Allotment Associations,3715815,06/17,12/05/2017,10000,0,Parks,PARKS,3701,Grants,Community & Env Services
Blackpool Council,1033987,Berrymans Lace Mawer Llp,3715818,2255078,05/05/2017,4903.7,0,Costs Pl,RK8002,3807,Legal & Court Costs,Internal Insurance
Blackpool Council,1111328,Hadley Fraser Ltd,3715974,BLA022,30/05/2017,1070.16,178.36,Safeguarding Adults,JDEAAA,3401,General Services,Adult & Families
Blackpool Council,1037822,Stockport Psychology Services Ltd,3715978,4/17/6457,10/05/2017,399.62,66.6,Senior Management,JEA,3807,Legal & Court Costs,Children'S Services
Blackpool Council,1061992,REDACTED PERSONAL DATA,3715985,245806,02/05/2017,600,100,Trading Standards,PYT,3807,Legal & Court Costs,Community & Env Services
Blackpool Council,1061992,REDACTED PERSONAL DATA,3715987,245806,03/05/2017,300,50,Trading Standards,PYT,3807,Legal & Court Costs,Community & Env Services
Blackpool Council,1085488,John Larking Verbatim Reporters,3715988,55340,12/05/2017,440.69,73.45,Senior Management,JEA,3807,Legal & Court Costs,Children'S Services
Blackpool Council,1061992,REDACTED PERSONAL DATA,3715992,243451,03/05/2017,1080,180,Trading Standards,PYT,3807,Legal & Court Costs,Community & Env Services
Blackpool Council,1086729,REDACTED PERSONAL DATA,3715993,367354,10/05/2017,2046,341,Costs Pl,RK8002,3807,Legal & Court Costs,Internal Insurance
Blackpool Council,1061992,REDACTED PERSONAL DATA,3715994,248003,18/05/2017,1200,200,Environmental Protection,ENVPR,3807,Legal & Court Costs,Community & Env Services
Blackpool Council,1109814,Nickelodeon Uk Limited,3715995,1800000208,10/05/2017,120000,20000,Switch On,PRD,3401,General Services,Places
Blackpool Council,1006385,University Of Central Lancashire,3715996,TUI211100021,02/05/2017,650,0,Adults Training,LM0420,0911,Training Expenses,Adult & Families
Blackpool Council,1007183,Royal Mail Group Ltd,3716005,9054202832,04/05/2017,1046.02,174.34,Electoral Services,BGA,3511,Postages,Governance & Partnerships
Blackpool Council,1068962,Merlin Entertainments(Sea Life Blackpool Ltd),3716009,BP-S01675,04/05/2017,540,90,"Tourism,Promotions & Conferen.",ZX0501,9687,Tourism Sale Of Tickets,Place Directorate
Blackpool Council,1086788,Idox Software Ltd,3716015,7015227,24/05/2017,4497,749.5,Community & Early Int Support,COMSUP,7189,Other Misc Income - No Orders,Children'S Services
Blackpool Council,1109660,Mike Richardson Bia Ltd,3716016,50,30/05/2017,313.3,0,Safeguarding Adults,JDEAAA,3401,General Services,Adult & Families
Blackpool Council,1106696,Solutions 4 Health Ltd (Fac052 Payment),3716018,1856,19/05/2017,18021.92,858.19,Stop Smoking Services & Interv,PUBH18,4501,Private Contractors,Public Health
Blackpool Council,1087549,Merlin Entertainments (Blackpool) Ltd,3716019,BC-S04188,03/05/2017,270,45,"Tourism,Promotions & Conferen.",ZX0501,9687,Tourism Sale Of Tickets,Place Directorate
Blackpool Council,1049868,D Hollowell & Sons,3716094,16/15851/ANHO/J,02/05/2017,350,0,Cems Crems Etc,CEMCRE,4501,Private Contractors,Governance & Partnerships
Blackpool Council,1049868,D Hollowell & Sons,3716095,16/15850/ANHO/,02/05/2017,544,0,Cems Crems Etc,CEMCRE,4501,Private Contractors,Governance & Partnerships
Blackpool Council,1049868,D Hollowell & Sons,3716096,16/15806/ANHO/J,02/05/2017,514,0,Cems Crems Etc,CEMCRE,4501,Private Contractors,Governance & Partnerships
Blackpool Council,1049868,D Hollowell & Sons,3716097,16/15769/ANHO/J,02/05/2017,350,0,Cems Crems Etc,CEMCRE,4501,Private Contractors,Governance & Partnerships
Blackpool Council,1049868,D Hollowell & Sons,3716098,17/15865/ANHO/J,02/05/2017,350,0,Cems Crems Etc,CEMCRE,4501,Private Contractors,Governance & Partnerships
Blackpool Council,1006099,Blackpool Teaching Hospitals Nhs Ft,3716100,1110029112,02/05/2017,7672.5,0,Specialist Sexual Health Serv,PU2022,4501,Private Contractors,Public Health
Blackpool Council,1006099,Blackpool Teaching Hospitals Nhs Ft,3716101,1110029597,05/05/2017,3555,0,Specialist Sexual Health Serv,PU2022,4501,Private Contractors,Public Health
Blackpool Council,1010732,Alexandra Nursing Home,3716967,113928I,24/05/2017,1902.64,0,Personal Care Support,MV,4506,Nursing Homes,Adult & Families
Blackpool Council,1010732,Alexandra Nursing Home,3716967,113928I,24/05/2017,341.52,0,Personal Care Support,MV,4505,Residential Homes,Adult & Families
Blackpool Council,1010732,Alexandra Nursing Home,3716968,113935,24/05/2017,2340.32,0,Personal Care Support,MV,4505,Residential Homes,Adult & Families
Blackpool Council,1010732,Alexandra Nursing Home,3716969,114391I,24/05/2017,2813.48,0,Personal Care Support,MV,4506,Nursing Homes,Adult & Families
Blackpool Council,1010732,Alexandra Nursing Home,3716969,114391I,24/05/2017,341.52,0,Personal Care Support,MV,4505,Residential Homes,Adult & Families
Blackpool Council,1067030,Advice Uk,3717382,1011487,18/05/2017,3037.5,506.25,Advice Services,FC0411,3711,Subscriptions,Resources
Blackpool Council,1007516,Phoenix Commercial Collections Ltd,3717387,92714,19/05/2017,1622,270.37,"Income, Recovery & Debtors",FBBE,3807,Legal & Court Costs,Resources
Blackpool Council,1105711,Julie Doel T/A J A Social Care Ltd,3717389,BPOOL67,31/05/2017,280,0,Safeguarding Adults,JDEAAA,3401,General Services,Adult & Families
Blackpool Council,1057261,Experian Ltd,3717643,HEX3000605829,04/05/2017,1072.8,178.8,"Income, Recovery & Debtors",FBBE,3807,Legal & Court Costs,Resources
Blackpool Council,1032438,Electoral Reform Services,3717644,ERS17_558,02/05/2017,2099.86,349.98,Electoral Services,BGA,3511,Postages,Governance & Partnerships
Blackpool Council,1077392,Reed Specialist Recruitment Ltd,3717652,E0230727872C1,08/05/2017,944.88,157.48,Accountancy,FBBC,0791,Temp/Relief (Bureau Staff),Resources
Blackpool Council,1077392,Reed Specialist Recruitment Ltd,3717652,E0230727872C1,08/05/2017,719.53,119.93,Business Partnering Schls&Corp,EM1021,0791,Temp/Relief (Bureau Staff),Chief Executive
Blackpool Council,1077392,Reed Specialist Recruitment Ltd,3717652,E0230727872C1,08/05/2017,626.41,104.4,Cems Crems Etc,CEMCRE,0791,Temp/Relief (Bureau Staff),Governance & Partnerships
Blackpool Council,1077392,Reed Specialist Recruitment Ltd,3717652,E0230727872C1,08/05/2017,6616.54,1102.76,Locality,JAB,0791,Temp/Relief (Bureau Staff),Children'S Services
Blackpool Council,1077392,Reed Specialist Recruitment Ltd,3717652,E0230727872C1,08/05/2017,6450.71,1075.12,Looked After Children,JBR,0791,Temp/Relief (Bureau Staff),Children'S Services
Blackpool Council,1077392,Reed Specialist Recruitment Ltd,3717652,E0230727872C1,08/05/2017,351.17,58.53,Mental Health,AMH,0791,Temp/Relief (Bureau Staff),Adult & Families
Blackpool Council,1077392,Reed Specialist Recruitment Ltd,3717652,E0230727872C1,08/05/2017,3330.72,555.12,Safeguarding Chairs,JA1501,0791,Temp/Relief (Bureau Staff),Children'S Services
Blackpool Council,1077392,Reed Specialist Recruitment Ltd,3717652,E0230727872C1,08/05/2017,1650.75,275.12,Social Services Direct,SSD,0791,Temp/Relief (Bureau Staff),Adult & Families
Blackpool Council,1077392,Reed Specialist Recruitment Ltd,3717652,E0230727872C1,08/05/2017,540.25,90.04,Vacant & Under Used,AEV,0791,Temp/Relief (Bureau Staff),Resources
Blackpool Council,1085419,REDACTED PERSONAL DATA,3717655,090417-12017019,09/05/2017,1722,287,Senior Management,JEA,3807,Legal & Court Costs,Children'S Services
Blackpool Council,1005067,Blackpool Pleasure Beach Ltd,3717656,14564,03/05/2017,1665,277.5,"Tourism,Promotions & Conferen.",ZX0501,9687,Tourism Sale Of Tickets,Place Directorate
Blackpool Council,1110136,Attenti Ltd,3717657,100831,03/05/2017,3398.4,566.4,Principal Social Worker,JA0502,0791,Temp/Relief (Bureau Staff),Children'S Services
Blackpool Council,1087549,Merlin Entertainments (Blackpool) Ltd,3717659,BC-S03622,03/05/2017,1800,300,Leisure Assets,AEL,3801,Other Expenses,Places
Blackpool Council,1100221,Forensic Testing Service Ltd,3717662,17030,10/05/2017,555.7,92.62,Senior Management,JEA,3807,Legal & Court Costs,Children'S Services
Blackpool Council,1100221,Forensic Testing Service Ltd,3717663,17305,10/05/2017,276.22,46.04,Senior Management,JEA,3807,Legal & Court Costs,Children'S Services
Blackpool Council,1081237,The Speech Bubble Ltd,3717665,TSBI-1825,03/05/2017,1987,0,Community & Early Int Support,COMSUP,4501,Private Contractors,Children'S Services
Blackpool Council,1041219,Abelglass Trade Supplies Ltd,3717690,5786,03/05/2017,628.74,104.79,Local Authority Housing,CXA,6501,Contract Payments,Capital - Places
Blackpool Council,1011518,Tw Joinery & Fencing Contractors,3717692,2649,03/05/2017,4248,708,Local Authority Housing,CXA,6501,Contract Payments,Capital - Places
Blackpool Council,1049626,REDACTED PERSONAL DATA,3717701,HOLIDAY ALLOW,02/05/2017,1329,0,Senior Management,JEA,4809,Special Guardianship,Children'S Services
Blackpool Council,1102297,Rockingham Trophies,3717709,004061,02/05/2017,1403.17,233.87,Safeguarding Chairs,JA1501,3417,Entertainment,Children'S Services
Blackpool Council,1055947,Cherish Uk Limited,3717711,13416,02/05/2017,1142.05,0,Locality,JAB,5507,Personal,Children'S Services
Blackpool Council,1014088,Coventry City Council,3717713,3291904,02/05/2017,18000,0,Looked After Children,JBR,3420,Adoption Agency Fees,Children'S Services
Blackpool Council,1006201,Whale Tankers Ltd,3717714,M40700,11/05/2017,1161.2,193.53,Cvmu,CVMU,4501,Private Contractors,Community & Env Services
Blackpool Council,1008450,Lawrence Vehicles Ltd T/A Lancashire Daf,3717720,1519188,19/05/2017,1242,207,Cvmu,CVMU,3041,Other Materials,Community & Env Services
Blackpool Council,1008807,County Oil Group Ltd,3717723,674348,04/05/2017,527.36,87.89,Cvmu,CVMU,3041,Other Materials,Community & Env Services
Blackpool Council,1086077,Gullivers Truck Hire Limited,3717776,1704/54566,25/05/2017,888,148,Cvmu,CVMU,2211,Casual Hire,Community & Env Services
Blackpool Council,1112951,REDACTED PERSONAL DATA,3717782,REDACTED PERSONAL DATA,02/05/2017,500,0,Customer First,FCAD,3801,Other Expenses,Resources
Blackpool Council,1109380,Seven Resourcing Ltd,3717787,147184,02/05/2017,1347,224.5,Locality,JAB,0791,Temp/Relief (Bureau Staff),Children'S Services
Blackpool Council,1109380,Seven Resourcing Ltd,3717798,146608,02/05/2017,1347,224.5,Locality,JAB,0791,Temp/Relief (Bureau Staff),Children'S Services
Blackpool Council,1109380,Seven Resourcing Ltd,3717799,146270,02/05/2017,1347,224.5,Locality,JAB,0791,Temp/Relief (Bureau Staff),Children'S Services
Blackpool Council,1109380,Seven Resourcing Ltd,3717800,145980,02/05/2017,1347,224.5,Locality,JAB,0791,Temp/Relief (Bureau Staff),Children'S Services
Blackpool Council,1109380,Seven Resourcing Ltd,3717801,145554,02/05/2017,1347,224.5,Locality,JAB,0791,Temp/Relief (Bureau Staff),Children'S Services
Blackpool Council,1111687,Just Recruit Group Limited (Fac044),3717928,17434,10/05/2017,409.96,68.33,Corporate Health,FK0013,0992,Medical Fees (Employee),Chief Executive
Blackpool Council,1077392,Reed Specialist Recruitment Ltd,3717929,E0230727872C2,08/05/2017,602.15,100.36,Accountancy,FBBC,0791,Temp/Relief (Bureau Staff),Resources
Blackpool Council,1077392,Reed Specialist Recruitment Ltd,3717929,E0230727872C2,08/05/2017,713.49,118.92,Business Partnering Schls&Corp,EM1021,0791,Temp/Relief (Bureau Staff),Chief Executive
Blackpool Council,1077392,Reed Specialist Recruitment Ltd,3717929,E0230727872C2,08/05/2017,465.58,77.6,Cems Crems Etc,CEMCRE,0791,Temp/Relief (Bureau Staff),Governance & Partnerships
Blackpool Council,1077392,Reed Specialist Recruitment Ltd,3717929,E0230727872C2,08/05/2017,256.37,42.73,Children With Additional Needs,CWAN,0791,Temp/Relief (Bureau Staff),Children'S Services
Blackpool Council,1077392,Reed Specialist Recruitment Ltd,3717929,E0230727872C2,08/05/2017,409.12,68.2,Customer First,FCAD,0791,Temp/Relief (Bureau Staff),Resources
Blackpool Council,1077392,Reed Specialist Recruitment Ltd,3717929,E0230727872C2,08/05/2017,6041.67,1006.95,Locality,JAB,0791,Temp/Relief (Bureau Staff),Children'S Services
Blackpool Council,1077392,Reed Specialist Recruitment Ltd,3717929,E0230727872C2,08/05/2017,2390.57,398.43,Looked After Children,JBR,0791,Temp/Relief (Bureau Staff),Children'S Services
Blackpool Council,1077392,Reed Specialist Recruitment Ltd,3717929,E0230727872C2,08/05/2017,405.19,67.53,Mental Health,AMH,0791,Temp/Relief (Bureau Staff),Adult & Families
Blackpool Council,1077392,Reed Specialist Recruitment Ltd,3717929,E0230727872C2,08/05/2017,2490.39,415.07,Safeguarding Chairs,JA1501,0791,Temp/Relief (Bureau Staff),Children'S Services
Blackpool Council,1077392,Reed Specialist Recruitment Ltd,3717929,E0230727872C2,08/05/2017,416.06,69.35,Vacant & Under Used,AEV,0791,Temp/Relief (Bureau Staff),Resources
Blackpool Council,1051833,Tmr Executive Agency Ltd,3717931,58778,02/05/2017,793.8,132.3,Customer First,FCAD,3511,Postages,Resources
Blackpool Council,1007206,Road Safety Services Ltd,3717945,81775,03/05/2017,1311.41,218.57,Parking Administration,PARADM,4501,Private Contractors,Budgets Outside Cash Limits
Blackpool Council,1007206,Road Safety Services Ltd,3717946,81776,03/05/2017,7913.86,1318.98,Parking Administration,PARADM,4501,Private Contractors,Budgets Outside Cash Limits
Blackpool Council,1066348,Edge Hill University,3717950,A0082863,19/05/2017,620,0,Shared Care,SHACAR,0912,Training Exp-Post Entry,Adult & Families
Blackpool Council,1006449,Tmp (Uk) Ltd,3717951,100001137790,12/05/2017,3959.64,659.94,Parking Administration,PARADM,3301,Printing,Budgets Outside Cash Limits
Blackpool Council,1112286,Industrial Medical & Safety Services Ltd,3717952,23305,10/05/2017,2820,470,Corporate Health,FK0013,0992,Medical Fees (Employee),Chief Executive
Blackpool Council,1006449,Tmp (Uk) Ltd,3717953,100001136826,11/05/2017,372.31,62.05,Quality Corridor,CGOA,6501,Contract Payments,Capital - Places
Blackpool Council,1006449,Tmp (Uk) Ltd,3717954,100001137789,12/05/2017,1381.25,230.21,Quality Corridor,CGOA,6501,Contract Payments,Capital - Places
Blackpool Council,1006449,Tmp (Uk) Ltd,3717955,100001136825,11/05/2017,1997.82,332.97,Traffic Management,TRA,4501,Private Contractors,Community & Env Services
Blackpool Council,1086894,REDACTED PERSONAL DATA,3717958,170215,25/05/2017,271.1,0,Better Start Projects,BSTPRJ,3401,General Services,Better Start Projects
Blackpool Council,1103069,Nicki Da Costa,3717959,37,11/05/2017,600,0,Public Mental Health,PUBH23,4501,Private Contractors,Public Health
Blackpool Council,1057897,City Of Braford Mdc,3717983,74991696666,18/05/2017,400,0,Mental Health,AMH,4101,Other Local Authorities,Adult & Families
Blackpool Council,1112955,REDACTED PERSONAL DATA,3718027,2010784,02/05/2017,1278.31,0,Mhn With Dementia,MG,7580,Residential Property Sales,Adult & Families
Blackpool Council,1046120,Bs Project Services Ltd,3718050,21360069,11/05/2017,1030.8,171.8,Learning Disability,ALD,4507,Domiciliary Care,Adult & Families
Blackpool Council,1046120,Bs Project Services Ltd,3718051,21360068,11/05/2017,1147.2,191.2,Learning Disability,ALD,4507,Domiciliary Care,Adult & Families
Blackpool Council,1046120,Bs Project Services Ltd,3718052,21348540,11/05/2017,749.28,124.88,Learning Disability,ALD,4507,Domiciliary Care,Adult & Families
Blackpool Council,1046120,Bs Project Services Ltd,3718053,21348539,11/05/2017,937.68,156.28,Learning Disability,ALD,4507,Domiciliary Care,Adult & Families
Blackpool Council,1046120,Bs Project Services Ltd,3718054,21300664,10/05/2017,444.48,74.08,Learning Disability,ALD,4507,Domiciliary Care,Adult & Families
Blackpool Council,1046120,Bs Project Services Ltd,3718055,21300663,10/05/2017,914.4,152.4,Learning Disability,ALD,4507,Domiciliary Care,Adult & Families
Blackpool Council,1002210,Read & Errington,3718077,BCH 101503/3,05/05/2017,330,55,Local Authority Housing,CXA,6501,Contract Payments,Capital - Places
Blackpool Council,1002210,Read & Errington,3718078,BCH 103006/4,05/05/2017,330,55,Local Authority Housing,CXA,6501,Contract Payments,Capital - Places
Blackpool Council,1002210,Read & Errington,3718079,BCH 100238/6,05/05/2017,330,55,Local Authority Housing,CXA,6501,Contract Payments,Capital - Places
Blackpool Council,1011518,Tw Joinery & Fencing Contractors,3718080,2648,03/05/2017,1428,238,Local Authority Housing,CXA,6501,Contract Payments,Capital - Places
Blackpool Council,1112642,REDACTED PERSONAL DATA,3718082,LM220317-190417,02/05/2017,400,0,Looked After Children,JBR,5507,Personal,Children'S Services
Blackpool Council,1041219,Abelglass Trade Supplies Ltd,3718265,5831,05/05/2017,1891.2,315.2,Local Authority Housing,CXA,6501,Contract Payments,Capital - Places
Blackpool Council,1041219,Abelglass Trade Supplies Ltd,3718267,5832,05/05/2017,405.6,67.6,Local Authority Housing,CXA,6501,Contract Payments,Capital - Places
Blackpool Council,1041219,Abelglass Trade Supplies Ltd,3718268,5833,05/05/2017,843.6,140.6,Local Authority Housing,CXA,6501,Contract Payments,Capital - Places
Blackpool Council,1107694,Bradley Demolition Ltd,3718269,3211,26/05/2017,480,80,Non Specific Contingency Code,CXX,6501,Contract Payments,Capital - Places
Blackpool Council,1107694,Bradley Demolition Ltd,3718270,3209,26/05/2017,1920,320,Non Specific Contingency Code,CXX,6501,Contract Payments,Capital - Places
Blackpool Council,1107694,Bradley Demolition Ltd,3718271,3212,26/05/2017,480,80,Non Specific Contingency Code,CXX,6501,Contract Payments,Capital - Places
Blackpool Council,1107694,Bradley Demolition Ltd,3718272,3210,26/05/2017,480,80,Non Specific Contingency Code,CXX,6501,Contract Payments,Capital - Places
Blackpool Council,1010308,Learning Curve Lancashire Ltd,3718287,009,03/05/2017,300,0,Locality,JAB,5507,Personal,Children'S Services
Blackpool Council,1109530,REDACTED PERSONAL DATA,3718288,0245,03/05/2017,445,0,Safeguarding Chairs,JA1501,3417,Entertainment,Children'S Services
Blackpool Council,1103463,REDACTED PERSONAL DATA,3718291,244336,03/05/2017,960,160,Senior Management,JEA,3807,Legal & Court Costs,Children'S Services
Blackpool Council,1073098,Safenet Domestic Abuse Service,3718292,775,04/05/2017,1558.64,0,Duty And Assessment,JAH,5551,Rent & Rent Bonds,Children'S Services
Blackpool Council,1073098,Safenet Domestic Abuse Service,3718293,764,04/05/2017,1407.8,0,Duty And Assessment,JAH,5551,Rent & Rent Bonds,Children'S Services
Blackpool Council,1103463,REDACTED PERSONAL DATA,3718295,244336,03/05/2017,360,60,Senior Management,JEA,3807,Legal & Court Costs,Children'S Services
Blackpool Council,1083813,REDACTED PERSONAL DATA,3718296,245852,03/05/2017,600,100,Senior Management,JEA,3807,Legal & Court Costs,Children'S Services
Blackpool Council,1007612,REDACTED PERSONAL DATA,3718297,245956,03/05/2017,600,100,Senior Management,JEA,3807,Legal & Court Costs,Children'S Services
Blackpool Council,1109380,Seven Resourcing Ltd,3718298,145191,03/05/2017,1347,224.5,Locality,JAB,0791,Temp/Relief (Bureau Staff),Children'S Services
Blackpool Council,1109380,Seven Resourcing Ltd,3718299,145280,03/05/2017,1326.6,221.1,Locality,JAB,0791,Temp/Relief (Bureau Staff),Children'S Services
Blackpool Council,1052500,Ofsted,3718300,SINCC3F 38725,03/05/2017,1702,0,Looked After Children,JBR,3424,Registration & Inspection,Children'S Services
Blackpool Council,1052500,Ofsted,3718301,SINCC3F 38539,03/05/2017,2659,0,Looked After Children,JBR,3424,Registration & Inspection,Children'S Services
Blackpool Council,1110151,REDACTED PERSONAL DATA,3718302,249312,03/05/2017,780,130,Senior Management,JEA,3807,Legal & Court Costs,Children'S Services
Blackpool Council,1105880,REDACTED PERSONAL DATA,3718304,249312,03/05/2017,780,130,Senior Management,JEA,3807,Legal & Court Costs,Children'S Services
Blackpool Council,1006096,Autism Initiatives Uk,3718351,116241,02/05/2017,2529.12,0,Mhn Without Dementia,MF,4507,Domiciliary Care,Adult & Families
Blackpool Council,1006202,I Care Group Ltd,3718352,6002213,02/05/2017,763.46,0,Access Mobility,MS,4507,Domiciliary Care,Adult & Families
Blackpool Council,1006202,I Care Group Ltd,3718355,6002216,02/05/2017,645.32,0,Personal Care Support,MV,4507,Domiciliary Care,Adult & Families
Blackpool Council,1006202,I Care Group Ltd,3718356,6002217,02/05/2017,289.56,0,Personal Care Support,MV,4507,Domiciliary Care,Adult & Families
Blackpool Council,1006202,I Care Group Ltd,3718359,6002220,02/05/2017,368.56,0,Personal Care Support,MV,4507,Domiciliary Care,Adult & Families
Blackpool Council,1006202,I Care Group Ltd,3718360,6002221,02/05/2017,737.68,0,Access Mobility,MS,4507,Domiciliary Care,Adult & Families
Blackpool Council,1006202,I Care Group Ltd,3718363,6002224,02/05/2017,533.43,0,Mhn With Dementia,MG,4507,Domiciliary Care,Adult & Families
Blackpool Council,1006202,I Care Group Ltd,3718365,6002226,02/05/2017,553.26,0,Mhn With Dementia,MG,4507,Domiciliary Care,Adult & Families
Blackpool Council,1006202,I Care Group Ltd,3718368,6002229,02/05/2017,289.3,0,Access Mobility,MS,4507,Domiciliary Care,Adult & Families
Blackpool Council,1006202,I Care Group Ltd,3718372,6002233,02/05/2017,368.84,0,Visual Impairment,MD,4507,Domiciliary Care,Adult & Families
Blackpool Council,1006202,I Care Group Ltd,3718375,6002236,02/05/2017,2223.25,0,Learning Disability,MH,4507,Domiciliary Care,Adult & Families
Blackpool Council,1006202,I Care Group Ltd,3718377,6002148,02/05/2017,368.84,0,Personal Care Support,MV,4507,Domiciliary Care,Adult & Families
Blackpool Council,1006202,I Care Group Ltd,3718379,6002150,02/05/2017,737.68,0,Personal Care Support,MV,4507,Domiciliary Care,Adult & Families
Blackpool Council,1006202,I Care Group Ltd,3718380,6002151,02/05/2017,606.1,0,Personal Care Support,MV,4507,Domiciliary Care,Adult & Families
Blackpool Council,1006202,I Care Group Ltd,3718381,6002152,02/05/2017,368.84,0,Personal Care Support,MV,4507,Domiciliary Care,Adult & Families
Blackpool Council,1006202,I Care Group Ltd,3718382,6002153,02/05/2017,395.24,0,Personal Care Support,MV,4507,Domiciliary Care,Adult & Families
Blackpool Council,1006202,I Care Group Ltd,3718383,6002154,02/05/2017,572.72,0,Personal Care Support,MV,4507,Domiciliary Care,Adult & Families
Blackpool Council,1006202,I Care Group Ltd,3718387,6002158,02/05/2017,592.26,0,Personal Care Support,MV,4507,Domiciliary Care,Adult & Families
Blackpool Council,1006202,I Care Group Ltd,3718388,6002159,02/05/2017,1843.64,0,Personal Care Support,MV,4507,Domiciliary Care,Adult & Families
Blackpool Council,1006202,I Care Group Ltd,3718389,6002160,02/05/2017,1895.82,0,Personal Care Support,MV,4507,Domiciliary Care,Adult & Families
Blackpool Council,1006202,I Care Group Ltd,3718390,6002161,02/05/2017,819.38,0,Personal Care Support,MV,4507,Domiciliary Care,Adult & Families
Blackpool Council,1006202,I Care Group Ltd,3718393,6002165,02/05/2017,295.96,0,Personal Care Support,MV,4507,Domiciliary Care,Adult & Families
Blackpool Council,1006202,I Care Group Ltd,3718394,6002166,02/05/2017,368.84,0,Mhn With Dementia,MG,4507,Domiciliary Care,Adult & Families
Blackpool Council,1006202,I Care Group Ltd,3718395,6002167,02/05/2017,1475.36,0,Mhn Without Dementia,MF,4507,Domiciliary Care,Adult & Families
Blackpool Council,1006202,I Care Group Ltd,3718396,6002168,02/05/2017,368.84,0,Personal Care Support,MV,4507,Domiciliary Care,Adult & Families
Blackpool Council,1006202,I Care Group Ltd,3718399,6002171,02/05/2017,599.2,0,Personal Care Support,MV,4507,Domiciliary Care,Adult & Families
Blackpool Council,1006202,I Care Group Ltd,3718400,6002172,02/05/2017,368.84,0,Mhn Without Dementia,MF,4507,Domiciliary Care,Adult & Families
Blackpool Council,1006202,I Care Group Ltd,3718401,6002173,02/05/2017,625.52,0,Personal Care Support,MV,4507,Domiciliary Care,Adult & Families
Blackpool Council,1006202,I Care Group Ltd,3718402,6002174,02/05/2017,263.7,0,Personal Care Support,MV,4507,Domiciliary Care,Adult & Families
Blackpool Council,1006202,I Care Group Ltd,3718403,6002175,02/05/2017,513.34,0,Personal Care Support,MV,4507,Domiciliary Care,Adult & Families
Blackpool Council,1006202,I Care Group Ltd,3718405,6002177,02/05/2017,1475.36,0,Personal Care Support,MV,4507,Domiciliary Care,Adult & Families
Blackpool Council,1006202,I Care Group Ltd,3718406,6002178,02/05/2017,368.84,0,Personal Care Support,MV,4507,Domiciliary Care,Adult & Families
Blackpool Council,1006202,I Care Group Ltd,3718407,6002179,02/05/2017,368.3,0,Access Mobility,MS,4507,Domiciliary Care,Adult & Families
Blackpool Council,1006202,I Care Group Ltd,3718410,6002182,02/05/2017,1843.64,0,Personal Care Support,MV,4507,Domiciliary Care,Adult & Families
Blackpool Council,1006202,I Care Group Ltd,3718411,6002183,02/05/2017,368.84,0,Personal Care Support,MV,4507,Domiciliary Care,Adult & Families
Blackpool Council,1006202,I Care Group Ltd,3718412,6002184,02/05/2017,525.76,0,Personal Care Support,MV,4507,Domiciliary Care,Adult & Families
Blackpool Council,1006202,I Care Group Ltd,3718416,6002188,02/05/2017,1896.48,0,Personal Care Support,MV,4507,Domiciliary Care,Adult & Families
Blackpool Council,1006202,I Care Group Ltd,3718420,6002192,02/05/2017,368.56,0,Personal Care Support,MV,4507,Domiciliary Care,Adult & Families
Blackpool Council,1006202,I Care Group Ltd,3718422,6002194,02/05/2017,922.1,0,Personal Care Support,MV,4507,Domiciliary Care,Adult & Families
Blackpool Council,1006202,I Care Group Ltd,3718423,6002195,02/05/2017,368.84,0,Mhn With Dementia,MG,4507,Domiciliary Care,Adult & Families
Blackpool Council,1006202,I Care Group Ltd,3718425,6002197,02/05/2017,368.56,0,Personal Care Support,MV,4507,Domiciliary Care,Adult & Families
Blackpool Council,1006202,I Care Group Ltd,3718428,6002200,02/05/2017,453.74,0,Personal Care Support,MV,4507,Domiciliary Care,Adult & Families
Blackpool Council,1006202,I Care Group Ltd,3718429,6002201,02/05/2017,394.95,0,Personal Care Support,MV,4507,Domiciliary Care,Adult & Families
Blackpool Council,1006202,I Care Group Ltd,3718430,6002202,02/05/2017,368.84,0,Personal Care Support,MV,4507,Domiciliary Care,Adult & Families
Blackpool Council,1006202,I Care Group Ltd,3718431,6002203,02/05/2017,606.1,0,Mhn With Dementia,MG,4507,Domiciliary Care,Adult & Families
Blackpool Council,1006202,I Care Group Ltd,3718435,6002207,02/05/2017,368.84,0,Personal Care Support,MV,4507,Domiciliary Care,Adult & Families
Blackpool Council,1006202,I Care Group Ltd,3718437,6002209,02/05/2017,605.44,0,Mhn Without Dementia,MF,4507,Domiciliary Care,Adult & Families
Blackpool Council,1006202,I Care Group Ltd,3718439,6002211,02/05/2017,1658.92,0,Personal Care Support,MV,4507,Domiciliary Care,Adult & Families
Blackpool Council,1006202,I Care Group Ltd,3718440,6002212,02/05/2017,737.68,0,Mhn With Dementia,MG,4507,Domiciliary Care,Adult & Families
Blackpool Council,1006202,I Care Group Ltd,3718444,6002090,02/05/2017,770.65,0,Mhn With Dementia,MG,4507,Domiciliary Care,Adult & Families
Blackpool Council,1006202,I Care Group Ltd,3718445,6002091,02/05/2017,362.23,0,Personal Care Support,MV,4507,Domiciliary Care,Adult & Families
Blackpool Council,1006202,I Care Group Ltd,3718446,6002092,02/05/2017,803.78,0,Personal Care Support,MV,4507,Domiciliary Care,Adult & Families
Blackpool Council,1006202,I Care Group Ltd,3718448,6002094,02/05/2017,2211.92,0,Personal Care Support,MV,4507,Domiciliary Care,Adult & Families
Blackpool Council,1006202,I Care Group Ltd,3718450,6002096,02/05/2017,350.16,0,Personal Care Support,MV,4507,Domiciliary Care,Adult & Families
Blackpool Council,1006202,I Care Group Ltd,3718453,6002099,02/05/2017,599.49,0,Personal Care Support,MV,4507,Domiciliary Care,Adult & Families
Blackpool Council,1006202,I Care Group Ltd,3718454,6002100,02/05/2017,342.4,0,Personal Care Support,MV,4507,Domiciliary Care,Adult & Families
Blackpool Council,1006202,I Care Group Ltd,3718455,6002101,02/05/2017,368.84,0,Personal Care Support,MV,4507,Domiciliary Care,Adult & Families
Blackpool Council,1006202,I Care Group Ltd,3718457,6002103,02/05/2017,849.43,0,Personal Care Support,MV,4507,Domiciliary Care,Adult & Families
Blackpool Council,1006202,I Care Group Ltd,3718459,6002106,02/05/2017,421.31,0,Personal Care Support,MV,4507,Domiciliary Care,Adult & Families
Blackpool Council,1006202,I Care Group Ltd,3718462,6002109,02/05/2017,737.68,0,Hearing Impairment,MC,4507,Domiciliary Care,Adult & Families
Blackpool Council,1006202,I Care Group Ltd,3718463,6002110,02/05/2017,368.84,0,Personal Care Support,MV,4507,Domiciliary Care,Adult & Families
Blackpool Council,1006202,I Care Group Ltd,3718464,6002111,02/05/2017,368.84,0,Access Mobility,MS,4507,Domiciliary Care,Adult & Families
Blackpool Council,1006202,I Care Group Ltd,3718465,6002112,02/05/2017,552.98,0,Personal Care Support,MV,4507,Domiciliary Care,Adult & Families
Blackpool Council,1006202,I Care Group Ltd,3718468,6002115,02/05/2017,329.18,0,Personal Care Support,MV,4507,Domiciliary Care,Adult & Families
Blackpool Council,1006202,I Care Group Ltd,3718469,6002116,02/05/2017,737.68,0,Personal Care Support,MV,4507,Domiciliary Care,Adult & Families
Blackpool Council,1006202,I Care Group Ltd,3718475,6002122,02/05/2017,368.56,0,Personal Care Support,MV,4507,Domiciliary Care,Adult & Families
Blackpool Council,1006202,I Care Group Ltd,3718479,6002126,02/05/2017,1237.3,0,Personal Care Support,MV,4507,Domiciliary Care,Adult & Families
Blackpool Council,1006202,I Care Group Ltd,3718486,6002133,02/05/2017,368.56,0,Visual Impairment,MD,4507,Domiciliary Care,Adult & Families
Blackpool Council,1006202,I Care Group Ltd,3718487,6002134,02/05/2017,1475.36,0,Access Mobility,MS,4507,Domiciliary Care,Adult & Families
Blackpool Council,1006202,I Care Group Ltd,3718488,6002135,02/05/2017,902,0,Personal Care Support,MV,4507,Domiciliary Care,Adult & Families
Blackpool Council,1006202,I Care Group Ltd,3718489,6002136,02/05/2017,789.66,0,Personal Care Support,MV,4507,Domiciliary Care,Adult & Families
Blackpool Council,1006202,I Care Group Ltd,3718495,6002142,02/05/2017,737.68,0,Personal Care Support,MV,4507,Domiciliary Care,Adult & Families
Blackpool Council,1006202,I Care Group Ltd,3718499,6002146,02/05/2017,382.04,0,Personal Care Support,MV,4507,Domiciliary Care,Adult & Families
Blackpool Council,1006202,I Care Group Ltd,3718500,6002147,02/05/2017,737.68,0,Mhn With Dementia,MG,4507,Domiciliary Care,Adult & Families
Blackpool Council,1006534,The Ormerod Home Trust,3718501,SIN022793,02/05/2017,484.96,0,Learning Disability,MH,4508,Day Care,Adult & Families
Blackpool Council,1006534,The Ormerod Home Trust,3718501,SIN022793,02/05/2017,3227.04,0,Learning Disability,MH,4507,Domiciliary Care,Adult & Families
Blackpool Council,1006534,The Ormerod Home Trust,3718502,SIN023188,02/05/2017,486.88,0,Learning Disability,MH,4508,Day Care,Adult & Families
Blackpool Council,1006534,The Ormerod Home Trust,3718502,SIN023188,02/05/2017,3240.72,0,Learning Disability,MH,4507,Domiciliary Care,Adult & Families
Blackpool Council,1006534,The Ormerod Home Trust,3718503,SIN022968,02/05/2017,484.96,0,Learning Disability,MH,4508,Day Care,Adult & Families
Blackpool Council,1006534,The Ormerod Home Trust,3718503,SIN022968,02/05/2017,3227.04,0,Learning Disability,MH,4507,Domiciliary Care,Adult & Families
Blackpool Council,1025566,Northern Life Care (Ubu),3718504,628525,02/05/2017,3764.32,0,Learning Disability,MH,4507,Domiciliary Care,Adult & Families
Blackpool Council,1025566,Northern Life Care (Ubu),3718505,628618,02/05/2017,4315.05,0,Learning Disability,MH,4507,Domiciliary Care,Adult & Families
Blackpool Council,1025566,Northern Life Care (Ubu),3718506,628527,02/05/2017,3950.79,0,Learning Disability,MH,4507,Domiciliary Care,Adult & Families
Blackpool Council,1025566,Northern Life Care (Ubu),3718508,628529,02/05/2017,4117.05,0,Learning Disability,MH,4507,Domiciliary Care,Adult & Families
Blackpool Council,1025566,Northern Life Care (Ubu),3718509,628530,02/05/2017,3896.47,0,Learning Disability,MH,4507,Domiciliary Care,Adult & Families
Blackpool Council,1025566,Northern Life Care (Ubu),3718510,628531,02/05/2017,3985.72,0,Learning Disability,MH,4507,Domiciliary Care,Adult & Families
Blackpool Council,1025566,Northern Life Care (Ubu),3718511,628605,02/05/2017,3652.91,0,Learning Disability,MH,4507,Domiciliary Care,Adult & Families
Blackpool Council,1025566,Northern Life Care (Ubu),3718512,628606,02/05/2017,4105.87,0,Learning Disability,MH,4507,Domiciliary Care,Adult & Families
Blackpool Council,1025566,Northern Life Care (Ubu),3718513,628607,02/05/2017,2326.25,0,Learning Disability,MH,4507,Domiciliary Care,Adult & Families
Blackpool Council,1025566,Northern Life Care (Ubu),3718514,628608,02/05/2017,3779.46,0,Learning Disability,MH,4507,Domiciliary Care,Adult & Families
Blackpool Council,1025566,Northern Life Care (Ubu),3718515,628609,02/05/2017,3469.75,0,Learning Disability,MH,4507,Domiciliary Care,Adult & Families
Blackpool Council,1025566,Northern Life Care (Ubu),3718516,628610,02/05/2017,4576.59,0,Learning Disability,MH,4507,Domiciliary Care,Adult & Families
Blackpool Council,1025566,Northern Life Care (Ubu),3718517,628611,02/05/2017,2467.84,0,Learning Disability,MH,4507,Domiciliary Care,Adult & Families
Blackpool Council,1025566,Northern Life Care (Ubu),3718518,628612,02/05/2017,5825.36,0,Learning Disability,MH,4507,Domiciliary Care,Adult & Families
Blackpool Council,1025566,Northern Life Care (Ubu),3718519,628614,02/05/2017,5870.18,0,Learning Disability,MH,4507,Domiciliary Care,Adult & Families
Blackpool Council,1025566,Northern Life Care (Ubu),3718520,628615,02/05/2017,4757.23,0,Learning Disability,MH,4507,Domiciliary Care,Adult & Families
Blackpool Council,1025566,Northern Life Care (Ubu),3718521,628617,02/05/2017,4117.05,0,Learning Disability,MH,4507,Domiciliary Care,Adult & Families
Blackpool Council,1025566,Northern Life Care (Ubu),3718522,628526,02/05/2017,3743.6,0,Learning Disability,MH,4507,Domiciliary Care,Adult & Families
Blackpool Council,1067603,Creative Support Ltd,3718842,262176,02/05/2017,441.07,0,Learning Disability,MH,4507,Domiciliary Care,Adult & Families
Blackpool Council,1067603,Creative Support Ltd,3718843,262197,02/05/2017,1014.98,0,Learning Disability,MH,4507,Domiciliary Care,Adult & Families
Blackpool Council,1067603,Creative Support Ltd,3718844,262196,02/05/2017,1175.24,0,Learning Disability,MH,4507,Domiciliary Care,Adult & Families
Blackpool Council,1067603,Creative Support Ltd,3718845,262195,02/05/2017,961.56,0,Learning Disability,MH,4507,Domiciliary Care,Adult & Families
Blackpool Council,1067603,Creative Support Ltd,3718846,262194,02/05/2017,427.36,0,Learning Disability,MH,4507,Domiciliary Care,Adult & Families
Blackpool Council,1067603,Creative Support Ltd,3718847,262193,02/05/2017,1087.55,0,Learning Disability,MH,4507,Domiciliary Care,Adult & Families
Blackpool Council,1067603,Creative Support Ltd,3718850,262190,02/05/2017,279.39,0,Learning Disability,MH,4507,Domiciliary Care,Adult & Families
Blackpool Council,1067603,Creative Support Ltd,3718851,262189,02/05/2017,1736.15,0,Learning Disability,MH,4507,Domiciliary Care,Adult & Families
Blackpool Council,1067603,Creative Support Ltd,3718852,262188,02/05/2017,1041.69,0,Learning Disability,MH,4507,Domiciliary Care,Adult & Families
Blackpool Council,1067603,Creative Support Ltd,3718853,262187,02/05/2017,641.04,0,Learning Disability,MH,4507,Domiciliary Care,Adult & Families
Blackpool Council,1067603,Creative Support Ltd,3718855,262168,02/05/2017,1121.82,0,Learning Disability,MH,4507,Domiciliary Care,Adult & Families
Blackpool Council,1067603,Creative Support Ltd,3718856,262169,02/05/2017,694.46,0,Learning Disability,MH,4507,Domiciliary Care,Adult & Families
Blackpool Council,1067603,Creative Support Ltd,3718858,262171,02/05/2017,1201.95,0,Learning Disability,MH,4507,Domiciliary Care,Adult & Families
Blackpool Council,1067603,Creative Support Ltd,3718859,262172,02/05/2017,961.56,0,Learning Disability,MH,4507,Domiciliary Care,Adult & Families
Blackpool Council,1067603,Creative Support Ltd,3718860,262173,02/05/2017,534.2,0,Learning Disability,MH,4507,Domiciliary Care,Adult & Families
Blackpool Council,1067603,Creative Support Ltd,3718861,262174,02/05/2017,345.81,0,Learning Disability,MH,4507,Domiciliary Care,Adult & Families
Blackpool Council,1067603,Creative Support Ltd,3718862,262175,02/05/2017,482.2,0,Learning Disability,MH,4507,Domiciliary Care,Adult & Families
Blackpool Council,1067603,Creative Support Ltd,3718863,262198,02/05/2017,1095.11,0,Learning Disability,MH,4507,Domiciliary Care,Adult & Families
Blackpool Council,1067603,Creative Support Ltd,3718865,262178,02/05/2017,479.36,0,Social Isolation/Other,MX,4507,Domiciliary Care,Adult & Families
Blackpool Council,1067603,Creative Support Ltd,3718866,262179,02/05/2017,1014.98,0,Learning Disability,MH,4507,Domiciliary Care,Adult & Families
Blackpool Council,1067603,Creative Support Ltd,3718867,262180,02/05/2017,747.88,0,Learning Disability,MH,4507,Domiciliary Care,Adult & Families
Blackpool Council,1067603,Creative Support Ltd,3718868,262181,02/05/2017,1629.31,0,Learning Disability,MH,4507,Domiciliary Care,Adult & Families
Blackpool Council,1067603,Creative Support Ltd,3718869,262182,02/05/2017,267.1,0,Learning Disability,MH,4507,Domiciliary Care,Adult & Families
Blackpool Council,1067603,Creative Support Ltd,3718870,262183,02/05/2017,641.04,0,Learning Disability,MH,4507,Domiciliary Care,Adult & Families
Blackpool Council,1067603,Creative Support Ltd,3718871,262184,02/05/2017,1322.74,0,Learning Disability,MH,4507,Domiciliary Care,Adult & Families
Blackpool Council,1067603,Creative Support Ltd,3718872,262185,02/05/2017,373.94,0,Learning Disability,MH,4507,Domiciliary Care,Adult & Families
Blackpool Council,1067603,Creative Support Ltd,3718873,262186,02/05/2017,480.78,0,Learning Disability,MH,4507,Domiciliary Care,Adult & Families
Blackpool Council,1083072,Carewatch Care Services Ltd,3718874,114219,02/05/2017,677.88,0,Access Mobility,MS,4507,Domiciliary Care,Adult & Families
Blackpool Council,1083072,Carewatch Care Services Ltd,3718875,106923,02/05/2017,401.6,0,Personal Care Support,MV,4507,Domiciliary Care,Adult & Families
Blackpool Council,1083072,Carewatch Care Services Ltd,3718878,114260,02/05/2017,408.24,0,Mhn Without Dementia,MF,4507,Domiciliary Care,Adult & Families
Blackpool Council,1083072,Carewatch Care Services Ltd,3718880,114173,02/05/2017,2510.78,0,Personal Care Support,MV,4507,Domiciliary Care,Adult & Families
Blackpool Council,1083072,Carewatch Care Services Ltd,3718883,106974,02/05/2017,252.93,0,Personal Care Support,MV,4507,Domiciliary Care,Adult & Families
Blackpool Council,1106277,Homecare For You Ltd,3718884,91198,02/05/2017,433.48,0,Mhn Without Dementia,MF,4507,Domiciliary Care,Adult & Families
Blackpool Council,1010507,Bay Housing Association,3718886,HRS PAYMENT,11/05/2017,10368,0,Housing Related Support,ASCHOU,5105,Sp - Pments To Prov - 3rd Part,Adult & Families
Blackpool Council,1023759,The Ashley Foundation,3718887,HRS PAYMENT,11/05/2017,10368,0,Housing Related Support,ASCHOU,5105,Sp - Pments To Prov - 3rd Part,Adult & Families
Blackpool Council,1112930,REDACTED PERSONAL DATA,3718888,454076,10/05/2017,852,142,Costs Pl,RK8002,3807,Legal & Court Costs,Internal Insurance
Blackpool Council,1112984,REDACTED PERSONAL DATA,3718889,SW110417-300417,03/05/2017,464.1,0,Personal Care Support,MV,4505,Residential Homes,Adult & Families
Blackpool Council,1088102,Whistl Uk Limited,3718892,IN18US17003159,16/05/2017,4365.18,727.53,Customer First,FCAD,3511,Postages,Resources
Blackpool Council,1112971,Symbollix Ltd,3718894,Z282,15/05/2017,3890,0,Waste Management,WASTE,4501,Private Contractors,Community & Env Services
Blackpool Council,1088102,Whistl Uk Limited,3718895,IN18US17003374,19/05/2017,5079.65,846.61,Customer First,FCAD,3511,Postages,Resources
Blackpool Council,1018822,The Breastfeeding Network,3718923,APR17-JUN17,02/05/2017,12500,0,Miscellaneous,PUBH24,4501,Private Contractors,Public Health
Blackpool Council,1004960,Drugline Lancashire Ltd,3718924,HARM REDUCTION,02/05/2017,46859.66,0,"Renaissance, Incl Condoms",PU2054,4501,Private Contractors,Public Health
Blackpool Council,1108452,Delphi Medical Consultants Ltd,3718925,P/HEALTH 17/18,02/05/2017,208333.33,0,Clinical & Recovery,PU2052,4501,Private Contractors,Public Health
Blackpool Council,1094907,Living Streets,3718926,G A L 2017-2018,02/05/2017,206250,0,Street Life,PU2057,4501,Private Contractors,Public Health
Blackpool Council,1110263,REDACTED PERSONAL DATA,3718936,STAYING PUT-SL,02/05/2017,327.1,0,Looked After Children,JBR,5551,Rent & Rent Bonds,Children'S Services
Blackpool Council,1103135,REDACTED PERSONAL DATA,3718939,UNI ALLOW,02/05/2017,299,0,Looked After Children,JBR,5551,Rent & Rent Bonds,Children'S Services
Blackpool Council,1008474,REDACTED PERSONAL DATA,3718954,ACCOMM - SF,02/05/2017,710,0,Looked After Children,JBR,5551,Rent & Rent Bonds,Children'S Services
Blackpool Council,1094864,Insight (Fylde) Ltd,3718958,ACCOMM - ML,02/05/2017,675,0,Looked After Children,JBR,5551,Rent & Rent Bonds,Children'S Services
Blackpool Council,1074693,Care & Community Ltd,3718962,ACCOMM-CQ,02/05/2017,712.5,0,Looked After Children,JBR,5551,Rent & Rent Bonds,Children'S Services
Blackpool Council,1007685,REDACTED PERSONAL DATA,3718963,STAYING PUT-JH,02/05/2017,257.1,0,Looked After Children,JBR,5551,Rent & Rent Bonds,Children'S Services
Blackpool Council,1025390,REDACTED PERSONAL DATA,3718967,ROA-JB,02/05/2017,607.97,0,Senior Management,JEA,4811,Residence Orders,Children'S Services
Blackpool Council,1048947,REDACTED PERSONAL DATA,3718968,ROA-CG,02/05/2017,607.97,0,Senior Management,JEA,4811,Residence Orders,Children'S Services
Blackpool Council,1039147,REDACTED PERSONAL DATA,3718969,ROA-BH,02/05/2017,724.97,0,Senior Management,JEA,4811,Residence Orders,Children'S Services
Blackpool Council,1008676,REDACTED PERSONAL DATA,3718970,ROA-PJ,02/05/2017,724.97,0,Senior Management,JEA,4811,Residence Orders,Children'S Services
Blackpool Council,1011265,REDACTED PERSONAL DATA,3718971,ROA-LP,02/05/2017,755.3,0,Senior Management,JEA,4811,Residence Orders,Children'S Services
Blackpool Council,1029378,REDACTED PERSONAL DATA,3718972,ROA-WC,02/05/2017,724.97,0,Senior Management,JEA,4811,Residence Orders,Children'S Services
Blackpool Council,1029378,REDACTED PERSONAL DATA,3718973,ROA-LC,02/05/2017,692.29,0,Senior Management,JEA,4811,Residence Orders,Children'S Services
Blackpool Council,1044925,REDACTED PERSONAL DATA,3718974,ROA-RB,02/05/2017,654.29,0,Senior Management,JEA,4811,Residence Orders,Children'S Services
Blackpool Council,1052328,REDACTED PERSONAL DATA,3718975,ROA-TB,02/05/2017,487.07,0,Senior Management,JEA,4811,Residence Orders,Children'S Services
Blackpool Council,1054536,REDACTED PERSONAL DATA,3718976,ROA-JR,02/05/2017,607.97,0,Senior Management,JEA,4811,Residence Orders,Children'S Services
Blackpool Council,1074231,REDACTED PERSONAL DATA,3718977,ROA-CT,02/05/2017,451.97,0,Senior Management,JEA,4811,Residence Orders,Children'S Services
Blackpool Council,1076446,REDACTED PERSONAL DATA,3718978,ROA-MB,02/05/2017,396.02,0,Senior Management,JEA,4811,Residence Orders,Children'S Services
Blackpool Council,1076446,REDACTED PERSONAL DATA,3718979,ROA-JB,02/05/2017,426.36,0,Senior Management,JEA,4811,Residence Orders,Children'S Services
Blackpool Council,1043652,REDACTED PERSONAL DATA,3718980,ROA-BD,02/05/2017,724.97,0,Senior Management,JEA,4811,Residence Orders,Children'S Services
Blackpool Council,1082803,REDACTED PERSONAL DATA,3718981,ROA-CP,02/05/2017,581.97,0,Senior Management,JEA,4811,Residence Orders,Children'S Services
Blackpool Council,1090553,REDACTED PERSONAL DATA,3718982,ROA-CH,02/05/2017,581.97,0,Senior Management,JEA,4811,Residence Orders,Children'S Services
Blackpool Council,1082803,REDACTED PERSONAL DATA,3718983,ROA-LLS,02/05/2017,681.63,0,Senior Management,JEA,4811,Residence Orders,Children'S Services
Blackpool Council,1098048,REDACTED PERSONAL DATA,3718984,ROA-HH,02/05/2017,521.3,0,Senior Management,JEA,4811,Residence Orders,Children'S Services
Blackpool Council,1104276,REDACTED PERSONAL DATA,3718986,CAO-KG,02/05/2017,319.97,0,Senior Management,JEA,4811,Residence Orders,Children'S Services
Blackpool Council,1104276,REDACTED PERSONAL DATA,3718987,CAO-LG,02/05/2017,278.94,0,Senior Management,JEA,4811,Residence Orders,Children'S Services
Blackpool Council,1104276,REDACTED PERSONAL DATA,3718988,CAO-DG,02/05/2017,263.64,0,Senior Management,JEA,4811,Residence Orders,Children'S Services
Blackpool Council,1102002,REDACTED PERSONAL DATA,3718989,CAO-LN,02/05/2017,376.31,0,Senior Management,JEA,4811,Residence Orders,Children'S Services
Blackpool Council,1055795,REDACTED PERSONAL DATA,3718990,CAO-MY,02/05/2017,493.31,0,Senior Management,JEA,4811,Residence Orders,Children'S Services
Blackpool Council,1108354,REDACTED PERSONAL DATA,3718991,CAO-OD,02/05/2017,376.31,0,Senior Management,JEA,4811,Residence Orders,Children'S Services
Blackpool Council,1108354,REDACTED PERSONAL DATA,3718992,CAO-MD,02/05/2017,406.64,0,Senior Management,JEA,4811,Residence Orders,Children'S Services
Blackpool Council,1108354,REDACTED PERSONAL DATA,3718993,CAO-DD,02/05/2017,319.97,0,Senior Management,JEA,4811,Residence Orders,Children'S Services
Blackpool Council,1008607,REDACTED PERSONAL DATA,3718994,AA-MM,02/05/2017,610.83,0,Looked After Children,JBR,4814,Adoption Allowances,Children'S Services
Blackpool Council,1007513,REDACTED PERSONAL DATA,3718995,AA-JH,02/05/2017,641.16,0,Looked After Children,JBR,4814,Adoption Allowances,Children'S Services
Blackpool Council,1007685,REDACTED PERSONAL DATA,3718996,AA-MC,02/05/2017,545.91,0,Looked After Children,JBR,4814,Adoption Allowances,Children'S Services
Blackpool Council,1011310,REDACTED PERSONAL DATA,3718997,AA-MF,02/05/2017,683.02,0,Looked After Children,JBR,4814,Adoption Allowances,Children'S Services
Blackpool Council,1006336,REDACTED PERSONAL DATA,3718998,AA-HDJ,02/05/2017,823.94,0,Looked After Children,JBR,4814,Adoption Allowances,Children'S Services
Blackpool Council,1018980,REDACTED PERSONAL DATA,3718999,AA-DLK,02/05/2017,1119.3,0,Looked After Children,JBR,4814,Adoption Allowances,Children'S Services
Blackpool Council,1038672,REDACTED PERSONAL DATA,3719000,SUPPORT - LW,02/05/2017,451.97,0,Looked After Children,JBR,4814,Adoption Allowances,Children'S Services
Blackpool Council,1038672,REDACTED PERSONAL DATA,3719001,SUPPORT - FW,02/05/2017,482.3,0,Looked After Children,JBR,4814,Adoption Allowances,Children'S Services
Blackpool Council,1044018,REDACTED PERSONAL DATA,3719002,SUPPORT - GW,02/05/2017,355.85,0,Looked After Children,JBR,4814,Adoption Allowances,Children'S Services
Blackpool Council,1044018,REDACTED PERSONAL DATA,3719003,SUPPORT - KW,02/05/2017,386.19,0,Looked After Children,JBR,4814,Adoption Allowances,Children'S Services
Blackpool Council,1066475,REDACTED PERSONAL DATA,3719004,SUPPORT - EA,02/05/2017,451.97,0,Looked After Children,JBR,4814,Adoption Allowances,Children'S Services
Blackpool Council,1068968,REDACTED PERSONAL DATA,3719005,SUPPORT - JLB,02/05/2017,451.97,0,Looked After Children,JBR,4814,Adoption Allowances,Children'S Services
Blackpool Council,1068906,REDACTED PERSONAL DATA,3719006,SUPPORT - JAJ,02/05/2017,451.97,0,Looked After Children,JBR,4814,Adoption Allowances,Children'S Services
Blackpool Council,1068906,REDACTED PERSONAL DATA,3719007,SUPPORT - JJ,02/05/2017,482.3,0,Looked After Children,JBR,4814,Adoption Allowances,Children'S Services
Blackpool Council,1068906,REDACTED PERSONAL DATA,3719008,SUPPORT - KJ,02/05/2017,482.3,0,Looked After Children,JBR,4814,Adoption Allowances,Children'S Services
Blackpool Council,1071018,REDACTED PERSONAL DATA,3719009,SUPPORT - COLS,02/05/2017,375.27,0,Looked After Children,JBR,4814,Adoption Allowances,Children'S Services
Blackpool Council,1071018,REDACTED PERSONAL DATA,3719010,SUPPORT - CALS,02/05/2017,344.93,0,Looked After Children,JBR,4814,Adoption Allowances,Children'S Services
Blackpool Council,1071018,REDACTED PERSONAL DATA,3719011,SUPPORT - LLS,02/05/2017,375.27,0,Looked After Children,JBR,4814,Adoption Allowances,Children'S Services
Blackpool Council,1009527,REDACTED PERSONAL DATA,3719012,SUPPORT - TL,02/05/2017,451.97,0,Looked After Children,JBR,4814,Adoption Allowances,Children'S Services
Blackpool Council,1043651,REDACTED PERSONAL DATA,3719013,SUPPORT - GB,02/05/2017,451.97,0,Looked After Children,JBR,4814,Adoption Allowances,Children'S Services
Blackpool Council,1043651,REDACTED PERSONAL DATA,3719014,SUPPORT - JB,02/05/2017,482.3,0,Looked After Children,JBR,4814,Adoption Allowances,Children'S Services
Blackpool Council,1077446,REDACTED PERSONAL DATA,3719015,SUPPORT - AC,02/05/2017,451.97,0,Looked After Children,JBR,4814,Adoption Allowances,Children'S Services
Blackpool Council,1087223,REDACTED PERSONAL DATA,3719016,SUPPORT - CT,02/05/2017,451.97,0,Looked After Children,JBR,4814,Adoption Allowances,Children'S Services
Blackpool Council,1087223,REDACTED PERSONAL DATA,3719017,SUPPORT - ST,02/05/2017,482.3,0,Looked After Children,JBR,4814,Adoption Allowances,Children'S Services
Blackpool Council,1086638,REDACTED PERSONAL DATA,3719018,SUPPORT - JJ,02/05/2017,414.87,0,Looked After Children,JBR,4814,Adoption Allowances,Children'S Services
Blackpool Council,1088614,REDACTED PERSONAL DATA,3719019,SUPPORT - AM,02/05/2017,451.97,0,Looked After Children,JBR,4814,Adoption Allowances,Children'S Services
Blackpool Council,1059285,REDACTED PERSONAL DATA,3719020,SUPPORT - JH,02/05/2017,1049.97,0,Looked After Children,JBR,4814,Adoption Allowances,Children'S Services
Blackpool Council,1059285,REDACTED PERSONAL DATA,3719021,SUPPORT - AH,02/05/2017,891.11,0,Looked After Children,JBR,4814,Adoption Allowances,Children'S Services
Blackpool Council,1062123,REDACTED PERSONAL DATA,3719022,SUPPORT - CJB,02/05/2017,611,0,Looked After Children,JBR,4814,Adoption Allowances,Children'S Services
Blackpool Council,1085923,REDACTED PERSONAL DATA,3719024,SUPPORT - YMH,02/05/2017,976.3,0,Looked After Children,JBR,4814,Adoption Allowances,Children'S Services
Blackpool Council,1085923,REDACTED PERSONAL DATA,3719025,SUPPORT - MLH,02/05/2017,919.97,0,Looked After Children,JBR,4814,Adoption Allowances,Children'S Services
Blackpool Council,1098051,REDACTED PERSONAL DATA,3719026,SUPPORT - AL,02/05/2017,495.3,0,Looked After Children,JBR,4814,Adoption Allowances,Children'S Services
Blackpool Council,1088741,REDACTED PERSONAL DATA,3719027,SUPPORT - CC,02/05/2017,551.63,0,Looked After Children,JBR,4814,Adoption Allowances,Children'S Services
Blackpool Council,1032584,REDACTED PERSONAL DATA,3719028,SUPPORT - KF,02/05/2017,638.3,0,Looked After Children,JBR,4814,Adoption Allowances,Children'S Services
Blackpool Council,1098264,REDACTED PERSONAL DATA,3719029,SUPPORT - RW,02/05/2017,866.67,0,Looked After Children,JBR,4814,Adoption Allowances,Children'S Services
Blackpool Council,1105772,REDACTED PERSONAL DATA,3719030,SUPPORT - JLM,02/05/2017,866.67,0,Looked After Children,JBR,4814,Adoption Allowances,Children'S Services
Blackpool Council,1057277,REDACTED PERSONAL DATA,3719031,SUPPORT -TR,02/05/2017,551.63,0,Looked After Children,JBR,4814,Adoption Allowances,Children'S Services
Blackpool Council,1105818,REDACTED PERSONAL DATA,3719032,SUPPORT -  BMP,02/05/2017,495.3,0,Looked After Children,JBR,4814,Adoption Allowances,Children'S Services
Blackpool Council,1088246,REDACTED PERSONAL DATA,3719033,SUPPORT - JL,02/05/2017,551.63,0,Looked After Children,JBR,4814,Adoption Allowances,Children'S Services
Blackpool Council,1103757,REDACTED PERSONAL DATA,3719034,SUPPORT - VLB,02/05/2017,1387.97,0,Looked After Children,JBR,4814,Adoption Allowances,Children'S Services
Blackpool Council,1090278,REDACTED PERSONAL DATA,3719035,SUPPORT - KR,02/05/2017,919.97,0,Looked After Children,JBR,4814,Adoption Allowances,Children'S Services
Blackpool Council,1100455,REDACTED PERSONAL DATA,3719036,SUPPORT - KADB,02/05/2017,398.36,0,Looked After Children,JBR,4814,Adoption Allowances,Children'S Services
Blackpool Council,1100455,REDACTED PERSONAL DATA,3719037,SUPPORT - KAYB,02/05/2017,398.36,0,Looked After Children,JBR,4814,Adoption Allowances,Children'S Services
Blackpool Council,1105055,REDACTED PERSONAL DATA,3719038,SUPPORT - TP,02/05/2017,485.59,0,Looked After Children,JBR,4814,Adoption Allowances,Children'S Services
Blackpool Council,1085923,REDACTED PERSONAL DATA,3719039,SUPPORT - AM,02/05/2017,863.63,0,Looked After Children,JBR,4814,Adoption Allowances,Children'S Services
Blackpool Council,1043651,REDACTED PERSONAL DATA,3719040,SUPPORT - SH,02/05/2017,564.07,0,Looked After Children,JBR,4814,Adoption Allowances,Children'S Services
Blackpool Council,1110206,REDACTED PERSONAL DATA,3719041,SUPPORT - CC,02/05/2017,521.3,0,Looked After Children,JBR,4814,Adoption Allowances,Children'S Services
Blackpool Council,1107206,REDACTED PERSONAL DATA,3719042,SUPPORT - PL-N,02/05/2017,482.3,0,Looked After Children,JBR,4814,Adoption Allowances,Children'S Services
Blackpool Council,1103207,REDACTED PERSONAL DATA,3719043,SUPPORT - BL,02/05/2017,694.63,0,Looked After Children,JBR,4814,Adoption Allowances,Children'S Services
Blackpool Council,1103207,REDACTED PERSONAL DATA,3719044,SUPPORT - HK,02/05/2017,691.51,0,Looked After Children,JBR,4814,Adoption Allowances,Children'S Services
Blackpool Council,1100450,REDACTED PERSONAL DATA,3719045,SUPPORT - KR,02/05/2017,369.94,0,Looked After Children,JBR,4814,Adoption Allowances,Children'S Services
Blackpool Council,1100450,REDACTED PERSONAL DATA,3719046,SUPPORT - BR,02/05/2017,400.27,0,Looked After Children,JBR,4814,Adoption Allowances,Children'S Services
Blackpool Council,1099340,REDACTED PERSONAL DATA,3719047,SUPPORT - MLH,02/05/2017,448.93,0,Looked After Children,JBR,4814,Adoption Allowances,Children'S Services
Blackpool Council,1069176,REDACTED PERSONAL DATA,3719048,SGO-RB,02/05/2017,483.88,0,Senior Management,JEA,4809,Special Guardianship,Children'S Services
Blackpool Council,1069176,REDACTED PERSONAL DATA,3719049,SGO-AB,02/05/2017,453.54,0,Senior Management,JEA,4809,Special Guardianship,Children'S Services
Blackpool Council,1061307,REDACTED PERSONAL DATA,3719050,SGO-CC,02/05/2017,453.54,0,Senior Management,JEA,4809,Special Guardianship,Children'S Services
Blackpool Council,1068480,REDACTED PERSONAL DATA,3719051,SGO-RH,02/05/2017,453.54,0,Senior Management,JEA,4809,Special Guardianship,Children'S Services
Blackpool Council,1064011,REDACTED PERSONAL DATA,3719052,SGO-SH,02/05/2017,453.54,0,Senior Management,JEA,4809,Special Guardianship,Children'S Services
Blackpool Council,1070602,REDACTED PERSONAL DATA,3719053,SGO-KL,02/05/2017,453.54,0,Senior Management,JEA,4809,Special Guardianship,Children'S Services
Blackpool Council,1070602,REDACTED PERSONAL DATA,3719054,SGO-DP,02/05/2017,483.88,0,Senior Management,JEA,4809,Special Guardianship,Children'S Services
Blackpool Council,1068524,REDACTED PERSONAL DATA,3719055,SGO-ACW,02/05/2017,453.54,0,Senior Management,JEA,4809,Special Guardianship,Children'S Services
Blackpool Council,1072770,REDACTED PERSONAL DATA,3719056,SGO-CC,02/05/2017,453.54,0,Senior Management,JEA,4809,Special Guardianship,Children'S Services
Blackpool Council,1077610,REDACTED PERSONAL DATA,3719057,SGO-DEA,02/05/2017,453.54,0,Senior Management,JEA,4809,Special Guardianship,Children'S Services
Blackpool Council,1079745,REDACTED PERSONAL DATA,3719058,SGO-KJR,02/05/2017,453.54,0,Senior Management,JEA,4809,Special Guardianship,Children'S Services
Blackpool Council,1080101,REDACTED PERSONAL DATA,3719059,SGO-EP,02/05/2017,453.54,0,Senior Management,JEA,4809,Special Guardianship,Children'S Services
Blackpool Council,1071683,REDACTED PERSONAL DATA,3719060,SGO-RD,02/05/2017,483.88,0,Senior Management,JEA,4809,Special Guardianship,Children'S Services
Blackpool Council,1071683,REDACTED PERSONAL DATA,3719061,SGO-AGD,02/05/2017,453.54,0,Senior Management,JEA,4809,Special Guardianship,Children'S Services
Blackpool Council,1083087,REDACTED PERSONAL DATA,3719062,SGO-MS,02/05/2017,453.54,0,Senior Management,JEA,4809,Special Guardianship,Children'S Services
Blackpool Council,1075679,REDACTED PERSONAL DATA,3719063,SGO-KB,02/05/2017,453.54,0,Senior Management,JEA,4809,Special Guardianship,Children'S Services
Blackpool Council,1075679,REDACTED PERSONAL DATA,3719064,SGO-TB,02/05/2017,483.88,0,Senior Management,JEA,4809,Special Guardianship,Children'S Services
Blackpool Council,1085922,REDACTED PERSONAL DATA,3719065,SGO-NF,02/05/2017,450.03,0,Senior Management,JEA,4809,Special Guardianship,Children'S Services
Blackpool Council,1085928,REDACTED PERSONAL DATA,3719066,SGO-SK,02/05/2017,453.54,0,Senior Management,JEA,4809,Special Guardianship,Children'S Services
Blackpool Council,1078284,REDACTED PERSONAL DATA,3719067,SGO-AR,02/05/2017,453.54,0,Senior Management,JEA,4809,Special Guardianship,Children'S Services
Blackpool Council,1005947,REDACTED PERSONAL DATA,3719068,SGO-KA,02/05/2017,770.57,0,Senior Management,JEA,4809,Special Guardianship,Children'S Services
Blackpool Council,1005947,REDACTED PERSONAL DATA,3719069,SGO-LA,02/05/2017,770.57,0,Senior Management,JEA,4809,Special Guardianship,Children'S Services
Blackpool Council,1005947,REDACTED PERSONAL DATA,3719070,SGO-CA,02/05/2017,770.57,0,Senior Management,JEA,4809,Special Guardianship,Children'S Services
Blackpool Council,1005947,REDACTED PERSONAL DATA,3719071,SGO-TK,02/05/2017,816.25,0,Senior Management,JEA,4809,Special Guardianship,Children'S Services
Blackpool Council,1005947,REDACTED PERSONAL DATA,3719072,SGO-NK,02/05/2017,867.6,0,Senior Management,JEA,4809,Special Guardianship,Children'S Services
Blackpool Council,1083907,REDACTED PERSONAL DATA,3719073,SGO-AAP,02/05/2017,453.54,0,Senior Management,JEA,4809,Special Guardianship,Children'S Services
Blackpool Council,1083907,REDACTED PERSONAL DATA,3719074,SGO-ANP,02/05/2017,483.88,0,Senior Management,JEA,4809,Special Guardianship,Children'S Services
Blackpool Council,1083907,REDACTED PERSONAL DATA,3719075,SGO-TEP,02/05/2017,483.88,0,Senior Management,JEA,4809,Special Guardianship,Children'S Services
Blackpool Council,1091015,REDACTED PERSONAL DATA,3719076,SGO-LG,02/05/2017,453.54,0,Senior Management,JEA,4809,Special Guardianship,Children'S Services
Blackpool Council,1079501,REDACTED PERSONAL DATA,3719077,SGO-SK,02/05/2017,453.54,0,Senior Management,JEA,4809,Special Guardianship,Children'S Services
Blackpool Council,1085923,REDACTED PERSONAL DATA,3719078,SGO-SJC,02/05/2017,848.78,0,Senior Management,JEA,4809,Special Guardianship,Children'S Services
Blackpool Council,1088744,REDACTED PERSONAL DATA,3719079,SGO-SJC,02/05/2017,653.25,0,Senior Management,JEA,4809,Special Guardianship,Children'S Services
Blackpool Council,1093033,REDACTED PERSONAL DATA,3719080,SGO-RW,02/05/2017,522.89,0,Senior Management,JEA,4809,Special Guardianship,Children'S Services
Blackpool Council,1092226,REDACTED PERSONAL DATA,3719081,SGO-SM,02/05/2017,280.44,0,Senior Management,JEA,4809,Special Guardianship,Children'S Services
Blackpool Council,1005266,REDACTED PERSONAL DATA,3719082,SGO-HJ,02/05/2017,522.89,0,Senior Management,JEA,4809,Special Guardianship,Children'S Services
Blackpool Council,1089505,REDACTED PERSONAL DATA,3719083,SGO-CLW,02/05/2017,522.89,0,Senior Management,JEA,4809,Special Guardianship,Children'S Services
Blackpool Council,1089504,REDACTED PERSONAL DATA,3719084,SGO-SR,02/05/2017,522.89,0,Senior Management,JEA,4809,Special Guardianship,Children'S Services
Blackpool Council,1010522,REDACTED PERSONAL DATA,3719085,SGO-RL,02/05/2017,609.88,0,Senior Management,JEA,4809,Special Guardianship,Children'S Services
Blackpool Council,1010522,REDACTED PERSONAL DATA,3719086,SGO-BL,02/05/2017,553.23,0,Senior Management,JEA,4809,Special Guardianship,Children'S Services
Blackpool Council,1090630,REDACTED PERSONAL DATA,3719087,SGO-CONH,02/05/2017,522.89,0,Senior Management,JEA,4809,Special Guardianship,Children'S Services
Blackpool Council,1090630,REDACTED PERSONAL DATA,3719088,SGO-CODH,02/05/2017,553.23,0,Senior Management,JEA,4809,Special Guardianship,Children'S Services
Blackpool Council,1093556,REDACTED PERSONAL DATA,3719089,SGO-RD,02/05/2017,553.23,0,Senior Management,JEA,4809,Special Guardianship,Children'S Services
Blackpool Council,1005947,REDACTED PERSONAL DATA,3719090,SGO-GK,02/05/2017,683.58,0,Senior Management,JEA,4809,Special Guardianship,Children'S Services
Blackpool Council,1096576,REDACTED PERSONAL DATA,3719091,SGO-JSW,02/05/2017,553.23,0,Senior Management,JEA,4809,Special Guardianship,Children'S Services
Blackpool Council,1048741,REDACTED PERSONAL DATA,3719092,SGO-KBR,02/05/2017,582.8,0,Senior Management,JEA,4809,Special Guardianship,Children'S Services
Blackpool Council,1096875,REDACTED PERSONAL DATA,3719093,SGO-JLW,02/05/2017,522.89,0,Senior Management,JEA,4809,Special Guardianship,Children'S Services
Blackpool Council,1088106,REDACTED PERSONAL DATA,3719094,SGO-KH,02/05/2017,522.89,0,Senior Management,JEA,4809,Special Guardianship,Children'S Services
Blackpool Council,1085931,REDACTED PERSONAL DATA,3719095,SGO-KS,02/05/2017,609.88,0,Senior Management,JEA,4809,Special Guardianship,Children'S Services
Blackpool Council,1085931,REDACTED PERSONAL DATA,3719096,SGO-JS,02/05/2017,640.22,0,Senior Management,JEA,4809,Special Guardianship,Children'S Services
Blackpool Council,1095956,REDACTED PERSONAL DATA,3719097,SGO-LF,02/05/2017,553.23,0,Senior Management,JEA,4809,Special Guardianship,Children'S Services
Blackpool Council,1093432,REDACTED PERSONAL DATA,3719098,SGO-TB,02/05/2017,609.88,0,Senior Management,JEA,4809,Special Guardianship,Children'S Services
Blackpool Council,1093432,REDACTED PERSONAL DATA,3719099,SGO-MJC,02/05/2017,553.23,0,Senior Management,JEA,4809,Special Guardianship,Children'S Services
Blackpool Council,1097474,REDACTED PERSONAL DATA,3719100,SGO-SKD,02/05/2017,522.89,0,Senior Management,JEA,4809,Special Guardianship,Children'S Services
Blackpool Council,1095871,REDACTED PERSONAL DATA,3719101,SGO-JAB,02/05/2017,725.3,0,Senior Management,JEA,4809,Special Guardianship,Children'S Services
Blackpool Council,1085928,REDACTED PERSONAL DATA,3719102,SGO-SJK,02/05/2017,553.23,0,Senior Management,JEA,4809,Special Guardianship,Children'S Services
Blackpool Council,1092955,REDACTED PERSONAL DATA,3719103,SGO-JC,02/05/2017,522.89,0,Senior Management,JEA,4809,Special Guardianship,Children'S Services
Blackpool Council,1063757,REDACTED PERSONAL DATA,3719104,SGO-EAH,02/05/2017,816.99,0,Senior Management,JEA,4809,Special Guardianship,Children'S Services
Blackpool Council,1063757,REDACTED PERSONAL DATA,3719105,SGO-TH,02/05/2017,699.58,0,Senior Management,JEA,4809,Special Guardianship,Children'S Services
Blackpool Council,1096776,REDACTED PERSONAL DATA,3719106,SGO-KH,02/05/2017,783.69,0,Senior Management,JEA,4809,Special Guardianship,Children'S Services
Blackpool Council,1098016,REDACTED PERSONAL DATA,3719107,SGO-KT,02/05/2017,553.23,0,Senior Management,JEA,4809,Special Guardianship,Children'S Services
Blackpool Council,1098016,REDACTED PERSONAL DATA,3719108,SGO-KH,02/05/2017,520.08,0,Senior Management,JEA,4809,Special Guardianship,Children'S Services
Blackpool Council,1099331,REDACTED PERSONAL DATA,3719109,SGO-SWL,02/05/2017,553.23,0,Senior Management,JEA,4809,Special Guardianship,Children'S Services
Blackpool Council,1094329,REDACTED PERSONAL DATA,3719110,SGO-LB,02/05/2017,522.89,0,Senior Management,JEA,4809,Special Guardianship,Children'S Services
Blackpool Council,1089980,REDACTED PERSONAL DATA,3719111,SGO-CH,02/05/2017,553.23,0,Senior Management,JEA,4809,Special Guardianship,Children'S Services
Blackpool Council,1081971,REDACTED PERSONAL DATA,3719112,SGO-DAM,02/05/2017,892.24,0,Senior Management,JEA,4809,Special Guardianship,Children'S Services
Blackpool Council,1081971,REDACTED PERSONAL DATA,3719113,SGO-DEM,02/05/2017,922.57,0,Senior Management,JEA,4809,Special Guardianship,Children'S Services
Blackpool Council,1096099,REDACTED PERSONAL DATA,3719114,SGO-TT,02/05/2017,522.89,0,Senior Management,JEA,4809,Special Guardianship,Children'S Services
Blackpool Council,1096099,REDACTED PERSONAL DATA,3719115,SGO-CT,02/05/2017,553.23,0,Senior Management,JEA,4809,Special Guardianship,Children'S Services
Blackpool Council,1102145,REDACTED PERSONAL DATA,3719116,SGO-ZO,02/05/2017,522.89,0,Senior Management,JEA,4809,Special Guardianship,Children'S Services
Blackpool Council,1098878,REDACTED PERSONAL DATA,3719117,SGO-LMD,02/05/2017,1041.77,0,Senior Management,JEA,4809,Special Guardianship,Children'S Services
Blackpool Council,1023504,REDACTED PERSONAL DATA,3719118,SGO-SW,02/05/2017,609.88,0,Senior Management,JEA,4809,Special Guardianship,Children'S Services
Blackpool Council,1099523,REDACTED PERSONAL DATA,3719119,SGO-DA,02/05/2017,522.89,0,Senior Management,JEA,4809,Special Guardianship,Children'S Services
Blackpool Council,1099523,REDACTED PERSONAL DATA,3719120,SGO-TA,02/05/2017,553.23,0,Senior Management,JEA,4809,Special Guardianship,Children'S Services
Blackpool Council,1099523,REDACTED PERSONAL DATA,3719121,SGO-RA,02/05/2017,553.23,0,Senior Management,JEA,4809,Special Guardianship,Children'S Services
Blackpool Council,1100963,REDACTED PERSONAL DATA,3719122,SGO-LM,02/05/2017,496.95,0,Senior Management,JEA,4809,Special Guardianship,Children'S Services
Blackpool Council,1098564,REDACTED PERSONAL DATA,3719123,SGO-MW,02/05/2017,522.89,0,Senior Management,JEA,4809,Special Guardianship,Children'S Services
Blackpool Council,1098564,REDACTED PERSONAL DATA,3719124,SGO-AW,02/05/2017,539.35,0,Senior Management,JEA,4809,Special Guardianship,Children'S Services
Blackpool Council,1099431,REDACTED PERSONAL DATA,3719125,SGO-HA,02/05/2017,521.5,0,Senior Management,JEA,4809,Special Guardianship,Children'S Services
Blackpool Council,1099431,REDACTED PERSONAL DATA,3719126,SGO-AA,02/05/2017,496.95,0,Senior Management,JEA,4809,Special Guardianship,Children'S Services
Blackpool Council,1095249,REDACTED PERSONAL DATA,3719127,SGO-CB,02/05/2017,553.23,0,Senior Management,JEA,4809,Special Guardianship,Children'S Services
Blackpool Council,1095249,REDACTED PERSONAL DATA,3719128,SGO-AH,02/05/2017,553.23,0,Senior Management,JEA,4809,Special Guardianship,Children'S Services
Blackpool Council,1095249,REDACTED PERSONAL DATA,3719129,SGO-BH,02/05/2017,553.23,0,Senior Management,JEA,4809,Special Guardianship,Children'S Services
Blackpool Council,1095873,REDACTED PERSONAL DATA,3719130,SGO-LS,02/05/2017,609.88,0,Senior Management,JEA,4809,Special Guardianship,Children'S Services
Blackpool Council,1095873,REDACTED PERSONAL DATA,3719131,SGO-BC,02/05/2017,553.23,0,Senior Management,JEA,4809,Special Guardianship,Children'S Services
Blackpool Council,1096195,REDACTED PERSONAL DATA,3719132,SGO-CW,02/05/2017,725.3,0,Senior Management,JEA,4809,Special Guardianship,Children'S Services
Blackpool Council,1099918,REDACTED PERSONAL DATA,3719133,SGO-EG,02/05/2017,522.89,0,Senior Management,JEA,4809,Special Guardianship,Children'S Services
Blackpool Council,1097281,REDACTED PERSONAL DATA,3719134,SGO-MD,02/05/2017,277.45,0,Senior Management,JEA,4809,Special Guardianship,Children'S Services
Blackpool Council,1049626,REDACTED PERSONAL DATA,3719135,SGO-BL,02/05/2017,609.88,0,Senior Management,JEA,4809,Special Guardianship,Children'S Services
Blackpool Council,1049626,REDACTED PERSONAL DATA,3719136,SGO-NL,02/05/2017,553.23,0,Senior Management,JEA,4809,Special Guardianship,Children'S Services
Blackpool Council,1089503,REDACTED PERSONAL DATA,3719137,SGO-JJ,02/05/2017,553.23,0,Senior Management,JEA,4809,Special Guardianship,Children'S Services
Blackpool Council,1102142,REDACTED PERSONAL DATA,3719138,SGO-DBC,02/05/2017,496.95,0,Senior Management,JEA,4809,Special Guardianship,Children'S Services
Blackpool Council,1101354,REDACTED PERSONAL DATA,3719139,SGO-AE,02/05/2017,496.95,0,Senior Management,JEA,4809,Special Guardianship,Children'S Services
Blackpool Council,1099367,REDACTED PERSONAL DATA,3719140,SGO-JW,02/05/2017,609.88,0,Senior Management,JEA,4809,Special Guardianship,Children'S Services
Blackpool Council,1099367,REDACTED PERSONAL DATA,3719141,SGO-PW,02/05/2017,640.22,0,Senior Management,JEA,4809,Special Guardianship,Children'S Services
Blackpool Council,1102721,REDACTED PERSONAL DATA,3719142,SGO-KAL,02/05/2017,265.29,0,Senior Management,JEA,4809,Special Guardianship,Children'S Services
Blackpool Council,1102685,REDACTED PERSONAL DATA,3719143,SGO-KS,02/05/2017,600,0,Senior Management,JEA,4809,Special Guardianship,Children'S Services
Blackpool Council,1096411,REDACTED PERSONAL DATA,3719144,SGO-XW,02/05/2017,522.89,0,Senior Management,JEA,4809,Special Guardianship,Children'S Services
Blackpool Council,1096411,REDACTED PERSONAL DATA,3719145,SGO-FW,02/05/2017,553.23,0,Senior Management,JEA,4809,Special Guardianship,Children'S Services
Blackpool Council,1007093,REDACTED PERSONAL DATA,3719146,SGO-MH,02/05/2017,920.05,0,Senior Management,JEA,4809,Special Guardianship,Children'S Services
Blackpool Council,1007093,REDACTED PERSONAL DATA,3719147,SGO-LH,02/05/2017,886.45,0,Senior Management,JEA,4809,Special Guardianship,Children'S Services
Blackpool Council,1007093,REDACTED PERSONAL DATA,3719148,SGO-MAH,02/05/2017,877.5,0,Senior Management,JEA,4809,Special Guardianship,Children'S Services
Blackpool Council,1100685,REDACTED PERSONAL DATA,3719149,SGO-TMH,02/05/2017,267.14,0,Senior Management,JEA,4809,Special Guardianship,Children'S Services
Blackpool Council,1103230,REDACTED PERSONAL DATA,3719150,SGO-HM,02/05/2017,265.29,0,Senior Management,JEA,4809,Special Guardianship,Children'S Services
Blackpool Council,1070512,REDACTED PERSONAL DATA,3719151,SGO-LM,02/05/2017,265.29,0,Senior Management,JEA,4809,Special Guardianship,Children'S Services
Blackpool Council,1020869,REDACTED PERSONAL DATA,3719152,SGO-CF,02/05/2017,378.22,0,Senior Management,JEA,4809,Special Guardianship,Children'S Services
Blackpool Council,1101353,REDACTED PERSONAL DATA,3719153,SGO-MG,02/05/2017,291.23,0,Senior Management,JEA,4809,Special Guardianship,Children'S Services
Blackpool Council,1103855,REDACTED PERSONAL DATA,3719154,SGO-IAME,02/05/2017,265.29,0,Senior Management,JEA,4809,Special Guardianship,Children'S Services
Blackpool Council,1103561,REDACTED PERSONAL DATA,3719155,SGO-LG,02/05/2017,291.23,0,Senior Management,JEA,4809,Special Guardianship,Children'S Services
Blackpool Council,1103561,REDACTED PERSONAL DATA,3719156,SGO-JG,02/05/2017,265.29,0,Senior Management,JEA,4809,Special Guardianship,Children'S Services
Blackpool Council,1104023,REDACTED PERSONAL DATA,3719158,SGO-AOB,02/05/2017,291.23,0,Senior Management,JEA,4809,Special Guardianship,Children'S Services
Blackpool Council,1104023,REDACTED PERSONAL DATA,3719159,SGO-LOB,02/05/2017,265.29,0,Senior Management,JEA,4809,Special Guardianship,Children'S Services
Blackpool Council,1103853,REDACTED PERSONAL DATA,3719160,SGO-NH,02/05/2017,265.29,0,Senior Management,JEA,4809,Special Guardianship,Children'S Services
Blackpool Council,1095510,REDACTED PERSONAL DATA,3719161,SGO-SE,02/05/2017,378.22,0,Senior Management,JEA,4809,Special Guardianship,Children'S Services
Blackpool Council,1095510,REDACTED PERSONAL DATA,3719162,SGO-YE,02/05/2017,335.63,0,Senior Management,JEA,4809,Special Guardianship,Children'S Services
Blackpool Council,1101877,REDACTED PERSONAL DATA,3719163,SGO-LL,02/05/2017,513.75,0,Senior Management,JEA,4809,Special Guardianship,Children'S Services
Blackpool Council,1097980,REDACTED PERSONAL DATA,3719164,SGO-SDS,02/05/2017,291.23,0,Senior Management,JEA,4809,Special Guardianship,Children'S Services
Blackpool Council,1104610,REDACTED PERSONAL DATA,3719165,SGO-HI,02/05/2017,496.95,0,Senior Management,JEA,4809,Special Guardianship,Children'S Services
Blackpool Council,1096875,REDACTED PERSONAL DATA,3719166,SGO-CW,02/05/2017,265.29,0,Senior Management,JEA,4809,Special Guardianship,Children'S Services
Blackpool Council,1006685,REDACTED PERSONAL DATA,3719167,SGO-IW,02/05/2017,750,0,Senior Management,JEA,4809,Special Guardianship,Children'S Services
Blackpool Council,1006685,REDACTED PERSONAL DATA,3719168,SGO-JD,02/05/2017,750,0,Senior Management,JEA,4809,Special Guardianship,Children'S Services
Blackpool Council,1006685,REDACTED PERSONAL DATA,3719169,SGO-KD,02/05/2017,750,0,Senior Management,JEA,4809,Special Guardianship,Children'S Services
Blackpool Council,1104041,REDACTED PERSONAL DATA,3719170,SGO-HR,02/05/2017,265.29,0,Senior Management,JEA,4809,Special Guardianship,Children'S Services
Blackpool Council,1105544,REDACTED PERSONAL DATA,3719171,SGO-MJAH,02/05/2017,280.09,0,Senior Management,JEA,4809,Special Guardianship,Children'S Services
Blackpool Council,1105544,REDACTED PERSONAL DATA,3719172,SGO-JLKAH,02/05/2017,265.29,0,Senior Management,JEA,4809,Special Guardianship,Children'S Services
Blackpool Council,1105579,REDACTED PERSONAL DATA,3719173,SGO-JM,02/05/2017,334.54,0,Senior Management,JEA,4809,Special Guardianship,Children'S Services
Blackpool Council,1105579,REDACTED PERSONAL DATA,3719174,SGO-MM,02/05/2017,364.88,0,Senior Management,JEA,4809,Special Guardianship,Children'S Services
Blackpool Council,1088904,REDACTED PERSONAL DATA,3719175,SGO-DB,02/05/2017,495.63,0,Senior Management,JEA,4809,Special Guardianship,Children'S Services
Blackpool Council,1105956,REDACTED PERSONAL DATA,3719176,SGO-KH,02/05/2017,378.22,0,Senior Management,JEA,4809,Special Guardianship,Children'S Services
Blackpool Council,1105216,REDACTED PERSONAL DATA,3719177,SGO-EL,02/05/2017,265.29,0,Senior Management,JEA,4809,Special Guardianship,Children'S Services
Blackpool Council,1105610,REDACTED PERSONAL DATA,3719178,SGO-MC,02/05/2017,265.29,0,Senior Management,JEA,4809,Special Guardianship,Children'S Services
Blackpool Council,1082476,REDACTED PERSONAL DATA,3719179,SGO-JH,02/05/2017,291.23,0,Senior Management,JEA,4809,Special Guardianship,Children'S Services
Blackpool Council,1082476,REDACTED PERSONAL DATA,3719180,SGO-CH,02/05/2017,321.57,0,Senior Management,JEA,4809,Special Guardianship,Children'S Services
Blackpool Council,1082476,REDACTED PERSONAL DATA,3719181,SGO-LH,02/05/2017,321.57,0,Senior Management,JEA,4809,Special Guardianship,Children'S Services
Blackpool Council,1106444,REDACTED PERSONAL DATA,3719183,SGO-GFS,02/05/2017,265.29,0,Senior Management,JEA,4809,Special Guardianship,Children'S Services
Blackpool Council,1106549,REDACTED PERSONAL DATA,3719184,SGO-KB,02/05/2017,291.23,0,Senior Management,JEA,4809,Special Guardianship,Children'S Services
Blackpool Council,1106549,REDACTED PERSONAL DATA,3719185,SGO-JS,02/05/2017,265.29,0,Senior Management,JEA,4809,Special Guardianship,Children'S Services
Blackpool Council,1104780,REDACTED PERSONAL DATA,3719188,SGO-JW,02/05/2017,265.29,0,Senior Management,JEA,4809,Special Guardianship,Children'S Services
Blackpool Council,1106465,REDACTED PERSONAL DATA,3719189,SGO-KC,02/05/2017,265.29,0,Senior Management,JEA,4809,Special Guardianship,Children'S Services
Blackpool Council,1106466,REDACTED PERSONAL DATA,3719190,SGO-AF,02/05/2017,291.23,0,Senior Management,JEA,4809,Special Guardianship,Children'S Services
Blackpool Council,1102498,REDACTED PERSONAL DATA,3719191,SGO-RK,02/05/2017,378.22,0,Senior Management,JEA,4809,Special Guardianship,Children'S Services
Blackpool Council,1102498,REDACTED PERSONAL DATA,3719192,SGO-CJ,02/05/2017,321.57,0,Senior Management,JEA,4809,Special Guardianship,Children'S Services
Blackpool Council,1049626,REDACTED PERSONAL DATA,3719193,SGO-BLH,02/05/2017,402.52,0,Senior Management,JEA,4809,Special Guardianship,Children'S Services
Blackpool Council,1105830,REDACTED PERSONAL DATA,3719196,SGO-AW,02/05/2017,473.1,0,Senior Management,JEA,4809,Special Guardianship,Children'S Services
Blackpool Council,1105132,REDACTED PERSONAL DATA,3719197,SGO-JR,02/05/2017,321.57,0,Senior Management,JEA,4809,Special Guardianship,Children'S Services
Blackpool Council,1105132,REDACTED PERSONAL DATA,3719198,SGO-AR,02/05/2017,321.57,0,Senior Management,JEA,4809,Special Guardianship,Children'S Services
Blackpool Council,1107327,REDACTED PERSONAL DATA,3719200,SGO-EB,02/05/2017,291.23,0,Senior Management,JEA,4809,Special Guardianship,Children'S Services
Blackpool Council,1107327,REDACTED PERSONAL DATA,3719201,SGO-IB,02/05/2017,321.57,0,Senior Management,JEA,4809,Special Guardianship,Children'S Services
Blackpool Council,1107693,REDACTED PERSONAL DATA,3719202,SGO-SA,02/05/2017,378.22,0,Senior Management,JEA,4809,Special Guardianship,Children'S Services
Blackpool Council,1043955,REDACTED PERSONAL DATA,3719203,SGO-JL,02/05/2017,384.9,0,Senior Management,JEA,4809,Special Guardianship,Children'S Services
Blackpool Council,1043955,REDACTED PERSONAL DATA,3719204,SGO-HL,02/05/2017,320.24,0,Senior Management,JEA,4809,Special Guardianship,Children'S Services
Blackpool Council,1107232,REDACTED PERSONAL DATA,3719205,SGO-KAIP,02/05/2017,291.23,0,Senior Management,JEA,4809,Special Guardianship,Children'S Services
Blackpool Council,1107232,REDACTED PERSONAL DATA,3719206,SGO-KP,02/05/2017,265.29,0,Senior Management,JEA,4809,Special Guardianship,Children'S Services
Blackpool Council,1106714,REDACTED PERSONAL DATA,3719207,SGO-LW,02/05/2017,265.29,0,Senior Management,JEA,4809,Special Guardianship,Children'S Services
Blackpool Council,1106754,REDACTED PERSONAL DATA,3719208,SGO-SC,02/05/2017,264.15,0,Senior Management,JEA,4809,Special Guardianship,Children'S Services
Blackpool Council,1107830,REDACTED PERSONAL DATA,3719209,SGO-CH,02/05/2017,321.57,0,Senior Management,JEA,4809,Special Guardianship,Children'S Services
Blackpool Council,1097474,REDACTED PERSONAL DATA,3719211,SGO-LH,02/05/2017,262.68,0,Senior Management,JEA,4809,Special Guardianship,Children'S Services
Blackpool Council,1108216,REDACTED PERSONAL DATA,3719212,SGO-SB,02/05/2017,282.72,0,Senior Management,JEA,4809,Special Guardianship,Children'S Services
Blackpool Council,1107820,REDACTED PERSONAL DATA,3719213,SGO-AG,02/05/2017,291.23,0,Senior Management,JEA,4809,Special Guardianship,Children'S Services
Blackpool Council,1104007,REDACTED PERSONAL DATA,3719214,SGO-AP,02/05/2017,265.29,0,Senior Management,JEA,4809,Special Guardianship,Children'S Services
Blackpool Council,1108400,REDACTED PERSONAL DATA,3719215,SGO-TLG,02/05/2017,264.54,0,Senior Management,JEA,4809,Special Guardianship,Children'S Services
Blackpool Council,1088081,REDACTED PERSONAL DATA,3719216,SGO-HGH,02/05/2017,522.89,0,Senior Management,JEA,4809,Special Guardianship,Children'S Services
Blackpool Council,1105544,REDACTED PERSONAL DATA,3719217,SGO-SLLAH,02/05/2017,263.36,0,Senior Management,JEA,4809,Special Guardianship,Children'S Services
Blackpool Council,1100098,REDACTED PERSONAL DATA,3719218,SGO-HP,02/05/2017,291.23,0,Senior Management,JEA,4809,Special Guardianship,Children'S Services
Blackpool Council,1100098,REDACTED PERSONAL DATA,3719219,SGO-EM,02/05/2017,321.57,0,Senior Management,JEA,4809,Special Guardianship,Children'S Services
Blackpool Council,1108795,REDACTED PERSONAL DATA,3719221,SGO-KB,02/05/2017,291.23,0,Senior Management,JEA,4809,Special Guardianship,Children'S Services
Blackpool Council,1108938,REDACTED PERSONAL DATA,3719223,SGO-WW,02/05/2017,265.29,0,Senior Management,JEA,4809,Special Guardianship,Children'S Services
Blackpool Council,1049626,REDACTED PERSONAL DATA,3719225,SGO-AF,02/05/2017,922.57,0,Senior Management,JEA,4809,Special Guardianship,Children'S Services
Blackpool Council,1107463,REDACTED PERSONAL DATA,3719226,SGO-BW,02/05/2017,496.95,0,Senior Management,JEA,4809,Special Guardianship,Children'S Services
Blackpool Council,1103921,REDACTED PERSONAL DATA,3719227,SGO-P-GS,02/05/2017,259.38,0,Senior Management,JEA,4809,Special Guardianship,Children'S Services
Blackpool Council,1107631,REDACTED PERSONAL DATA,3719228,SGO-SE,02/05/2017,296.59,0,Senior Management,JEA,4809,Special Guardianship,Children'S Services
Blackpool Council,1054614,REDACTED PERSONAL DATA,3719230,SGO-J-LM,02/05/2017,360.59,0,Senior Management,JEA,4809,Special Guardianship,Children'S Services
Blackpool Council,1109751,REDACTED PERSONAL DATA,3719232,SGO - L-RW-B,02/05/2017,291.23,0,Senior Management,JEA,4809,Special Guardianship,Children'S Services
Blackpool Council,1109751,REDACTED PERSONAL DATA,3719233,SGO - M-JW-B,02/05/2017,284.41,0,Senior Management,JEA,4809,Special Guardianship,Children'S Services
Blackpool Council,1103557,REDACTED PERSONAL DATA,3719234,SGO-SG,02/05/2017,256.48,0,Senior Management,JEA,4809,Special Guardianship,Children'S Services
Blackpool Council,1074693,Care & Community Ltd,3719235,ACCOMM - DO'C,02/05/2017,750,0,Looked After Children,JBR,5551,Rent & Rent Bonds,Children'S Services
Blackpool Council,1096569,REDACTED PERSONAL DATA,3719236,SGO-KG,02/05/2017,522.89,0,Senior Management,JEA,4809,Special Guardianship,Children'S Services
Blackpool Council,1108372,REDACTED PERSONAL DATA,3719237,SGO-LAMCK,02/05/2017,554.9,0,Senior Management,JEA,4809,Special Guardianship,Children'S Services
Blackpool Council,1108372,REDACTED PERSONAL DATA,3719238,SGO-LOMCK,02/05/2017,544.57,0,Senior Management,JEA,4809,Special Guardianship,Children'S Services
Blackpool Council,1108372,REDACTED PERSONAL DATA,3719239,SGO-LW,02/05/2017,498.63,0,Senior Management,JEA,4809,Special Guardianship,Children'S Services
Blackpool Council,1110684,REDACTED PERSONAL DATA,3719240,SGO-SDS,02/05/2017,291.23,0,Senior Management,JEA,4809,Special Guardianship,Children'S Services
Blackpool Council,1101713,REDACTED PERSONAL DATA,3719242,SGO-JK,02/05/2017,252.22,0,Senior Management,JEA,4809,Special Guardianship,Children'S Services
Blackpool Council,1109393,REDACTED PERSONAL DATA,3719243,SGO-JB,02/05/2017,261.46,0,Senior Management,JEA,4809,Special Guardianship,Children'S Services
Blackpool Council,1111111,REDACTED PERSONAL DATA,3719244,SGO-HR,02/05/2017,291.23,0,Senior Management,JEA,4809,Special Guardianship,Children'S Services
Blackpool Council,1111111,REDACTED PERSONAL DATA,3719245,SGO-SR,02/05/2017,321.57,0,Senior Management,JEA,4809,Special Guardianship,Children'S Services
Blackpool Council,1111111,REDACTED PERSONAL DATA,3719246,SGO-RH,02/05/2017,321.57,0,Senior Management,JEA,4809,Special Guardianship,Children'S Services
Blackpool Council,1111143,REDACTED PERSONAL DATA,3719247,SGO-TS,02/05/2017,259.81,0,Senior Management,JEA,4809,Special Guardianship,Children'S Services
Blackpool Council,1110785,REDACTED PERSONAL DATA,3719249,SGO-TM,02/05/2017,265.29,0,Senior Management,JEA,4809,Special Guardianship,Children'S Services
Blackpool Council,1110785,REDACTED PERSONAL DATA,3719250,SGO-RM,02/05/2017,265.29,0,Senior Management,JEA,4809,Special Guardianship,Children'S Services
Blackpool Council,1110785,REDACTED PERSONAL DATA,3719251,SGO-BB,02/05/2017,263.4,0,Senior Management,JEA,4809,Special Guardianship,Children'S Services
Blackpool Council,1110718,REDACTED PERSONAL DATA,3719253,SGO-RA,02/05/2017,252.22,0,Senior Management,JEA,4809,Special Guardianship,Children'S Services
Blackpool Council,1111683,REDACTED PERSONAL DATA,3719254,SGO-TM,02/05/2017,291.23,0,Senior Management,JEA,4809,Special Guardianship,Children'S Services
Blackpool Council,1111683,REDACTED PERSONAL DATA,3719255,SGO-AM,02/05/2017,321.57,0,Senior Management,JEA,4809,Special Guardianship,Children'S Services
Blackpool Council,1111683,REDACTED PERSONAL DATA,3719256,SGO-BM,02/05/2017,321.57,0,Senior Management,JEA,4809,Special Guardianship,Children'S Services
Blackpool Council,1101713,REDACTED PERSONAL DATA,3719257,SGO-GG,02/05/2017,408.56,0,Senior Management,JEA,4809,Special Guardianship,Children'S Services
Blackpool Council,1111683,REDACTED PERSONAL DATA,3719259,SGO-MLM,02/05/2017,256.01,0,Senior Management,JEA,4809,Special Guardianship,Children'S Services
Blackpool Council,1111443,REDACTED PERSONAL DATA,3719260,SGO-ADF,02/05/2017,522.89,0,Senior Management,JEA,4809,Special Guardianship,Children'S Services
Blackpool Council,1111443,REDACTED PERSONAL DATA,3719261,SGO-ABF,02/05/2017,553.23,0,Senior Management,JEA,4809,Special Guardianship,Children'S Services
Blackpool Council,1099323,REDACTED PERSONAL DATA,3719262,SGO-JK,02/05/2017,552.03,0,Senior Management,JEA,4809,Special Guardianship,Children'S Services
Blackpool Council,1108947,REDACTED PERSONAL DATA,3719263,SGO-E-MI,02/05/2017,375.75,0,Senior Management,JEA,4809,Special Guardianship,Children'S Services
Blackpool Council,1108947,REDACTED PERSONAL DATA,3719264,SGO-LI,02/05/2017,456.07,0,Senior Management,JEA,4809,Special Guardianship,Children'S Services
Blackpool Council,1091538,REDACTED PERSONAL DATA,3719266,SGO-CB,02/05/2017,378.22,0,Senior Management,JEA,4809,Special Guardianship,Children'S Services
Blackpool Council,1106756,REDACTED PERSONAL DATA,3719267,SGO - OF,02/05/2017,413.87,0,Senior Management,JEA,4809,Special Guardianship,Children'S Services
Blackpool Council,1110785,REDACTED PERSONAL DATA,3719269,SGO-PM,02/05/2017,291.23,0,Senior Management,JEA,4809,Special Guardianship,Children'S Services
Blackpool Council,1080411,REDACTED PERSONAL DATA,3719270,ADOPTION - JOW,02/05/2017,451.97,0,Looked After Children,JBR,4814,Adoption Allowances,Children'S Services
Blackpool Council,1097143,REDACTED PERSONAL DATA,3719271,ADOPTION - JC,02/05/2017,551.63,0,Looked After Children,JBR,4814,Adoption Allowances,Children'S Services
Blackpool Council,1097143,REDACTED PERSONAL DATA,3719272,ADOPTION - RC,02/05/2017,521.3,0,Looked After Children,JBR,4814,Adoption Allowances,Children'S Services
Blackpool Council,1108383,REDACTED PERSONAL DATA,3719273,SGO - DC-B,02/05/2017,257.05,0,Senior Management,JEA,4809,Special Guardianship,Children'S Services
Blackpool Council,1098406,REDACTED PERSONAL DATA,3719274,SGO - SKC,02/05/2017,553.23,0,Senior Management,JEA,4809,Special Guardianship,Children'S Services
Blackpool Council,1098406,REDACTED PERSONAL DATA,3719275,SGO - SUC,02/05/2017,533.03,0,Senior Management,JEA,4809,Special Guardianship,Children'S Services
Blackpool Council,1112754,REDACTED PERSONAL DATA,3719276,CAO-CG,02/05/2017,724.97,0,Senior Management,JEA,4811,Residence Orders,Children'S Services
Blackpool Council,1112754,REDACTED PERSONAL DATA,3719277,CAO-JM,02/05/2017,638.3,0,Senior Management,JEA,4811,Residence Orders,Children'S Services
Blackpool Council,1111024,REDACTED PERSONAL DATA,3719278,SGO - SA,02/05/2017,653.25,0,Senior Management,JEA,4809,Special Guardianship,Children'S Services
Blackpool Council,1099900,REDACTED PERSONAL DATA,3719279,SGO - SR,02/05/2017,690.91,0,Senior Management,JEA,4809,Special Guardianship,Children'S Services
Blackpool Council,1099900,REDACTED PERSONAL DATA,3719280,SGO - CR,02/05/2017,671.49,0,Senior Management,JEA,4809,Special Guardianship,Children'S Services
Blackpool Council,1108127,REDACTED PERSONAL DATA,3719281,SGO-EW,02/05/2017,265.29,0,Senior Management,JEA,4809,Special Guardianship,Children'S Services
Blackpool Council,1108127,REDACTED PERSONAL DATA,3719282,SGO-AW,02/05/2017,265.29,0,Senior Management,JEA,4809,Special Guardianship,Children'S Services
Blackpool Council,1106755,REDACTED PERSONAL DATA,3719283,SGO-KD,02/05/2017,291.23,0,Senior Management,JEA,4809,Special Guardianship,Children'S Services
Blackpool Council,1106755,REDACTED PERSONAL DATA,3719284,SGO-BRD,02/05/2017,276.39,0,Senior Management,JEA,4809,Special Guardianship,Children'S Services
Blackpool Council,1098193,Claremont Community Primary School,3719286,BUDGET SHARE,02/05/2017,70657.65,0,Local Schools Budget,ZE0001,929N,Claremont-Cash Advance,Cafs
Blackpool Council,1042600,REDACTED PERSONAL DATA,3719287,ROA - SH,02/05/2017,558.18,0,Senior Management,JEA,4811,Residence Orders,Children'S Services
Blackpool Council,1110131,REDACTED PERSONAL DATA,3719288,SGO - ST,02/05/2017,378.22,0,Senior Management,JEA,4809,Special Guardianship,Children'S Services
Blackpool Council,1110131,REDACTED PERSONAL DATA,3719289,SGO - JT,02/05/2017,408.56,0,Senior Management,JEA,4809,Special Guardianship,Children'S Services
Blackpool Council,1110131,REDACTED PERSONAL DATA,3719290,SGO - K-LT,02/05/2017,321.57,0,Senior Management,JEA,4809,Special Guardianship,Children'S Services
Blackpool Council,1110131,REDACTED PERSONAL DATA,3719291,SGO - MP,02/05/2017,321.57,0,Senior Management,JEA,4809,Special Guardianship,Children'S Services
Blackpool Council,1110131,REDACTED PERSONAL DATA,3719292,SGO - CP,02/05/2017,265.29,0,Senior Management,JEA,4809,Special Guardianship,Children'S Services
Blackpool Council,1109172,REDACTED PERSONAL DATA,3719293,SGO - TMCM,02/05/2017,253.36,0,Senior Management,JEA,4809,Special Guardianship,Children'S Services
Blackpool Council,1108593,REDACTED PERSONAL DATA,3719294,SGO - BG,02/05/2017,291.23,0,Senior Management,JEA,4809,Special Guardianship,Children'S Services
Blackpool Council,1091208,REDACTED PERSONAL DATA,3719298,SGO - DLR,02/05/2017,653.25,0,Senior Management,JEA,4809,Special Guardianship,Children'S Services
Blackpool Council,1059285,REDACTED PERSONAL DATA,3719301,SUPPORT - LH,02/05/2017,919.97,0,Looked After Children,JBR,4814,Adoption Allowances,Children'S Services
Blackpool Council,1109738,REDACTED PERSONAL DATA,3719305,SGO - GF,02/05/2017,259.2,0,Senior Management,JEA,4809,Special Guardianship,Children'S Services
Blackpool Council,1094864,Insight (Fylde) Ltd,3719306,ACCOMM - CH,02/05/2017,675,0,Looked After Children,JBR,5551,Rent & Rent Bonds,Children'S Services
Blackpool Council,1005067,Blackpool Pleasure Beach Ltd,3719668,14599,04/05/2017,4552.24,758.72,"Tourism,Promotions & Conferen.",ZX0501,968B,Resort Pass,Place Directorate
Blackpool Council,1110293,Children'S Services Network Ltd,3719672,9038,05/05/2017,1215.3,202.55,Senior Management,JEA,3807,Legal & Court Costs,Children'S Services
Blackpool Council,1008878,Cipfa Business Limited,3719673,3125937,04/05/2017,354,59,Accountancy,FBBC,3605,Confs & Short Courses,Resources
Blackpool Council,1084280,Alpha Biolabs (Fac088),3719675,12996,05/05/2017,522,87,Senior Management,JEA,3807,Legal & Court Costs,Children'S Services
Blackpool Council,1101305,Alere Toxicology Plc,3719677,0000491132,05/05/2017,305.11,50.85,Senior Management,JEA,3807,Legal & Court Costs,Children'S Services
Blackpool Council,1045184,Avr Transcription Ltd,3719678,30838,08/05/2017,283.36,47.23,Senior Management,JEA,3807,Legal & Court Costs,Children'S Services
Blackpool Council,1112844,REDACTED PERSONAL DATA,3719679,473550,10/05/2017,1665,277.5,Maintenance & Works,TRB,3807,Legal & Court Costs,Community & Env Services
Blackpool Council,1105476,The Alternative School,3719680,BLA018,05/05/2017,5454.74,909.12,Children With Additional Needs,CWAN,4501,Private Contractors,Children'S Services
Blackpool Council,1105476,The Alternative School,3719680,BLA018,05/05/2017,300.78,50.13,Senior Management,JEA,4501,Private Contractors,Children'S Services
Blackpool Council,1109660,Mike Richardson Bia Ltd,3719681,51,30/05/2017,314.2,0,Safeguarding Adults,JDEAAA,3401,General Services,Adult & Families
Blackpool Council,1085161,Lg Futures Ltd,3719682,7002809,26/05/2017,420,70,Accountancy,FBBC,0915,Conferences,Resources
Blackpool Council,1007516,Phoenix Commercial Collections Ltd,3719683,91747,05/05/2017,1738,289.67,Phoenix Commercial Collection,FV6705,7366,Car Parking Fees,Budgets Outside Cash Limits
Blackpool Council,1039653,Patrol,3719685,7666,11/05/2017,2539.2,0,Parking Administration,PARADM,4501,Private Contractors,Budgets Outside Cash Limits
Blackpool Council,1007516,Phoenix Commercial Collections Ltd,3719686,92608,12/05/2017,3312.95,552.16,"Income, Recovery & Debtors",FBBE,3807,Legal & Court Costs,Resources
Blackpool Council,1011369,Lancashire County Council,3719687,5200141292,11/05/2017,1131.67,0,Mental Health,AMH,6214,Legal Services,Adult & Families
Blackpool Council,1074052,Brent Stevenson Memorials Ltd,3719689,29053/1/17407,12/05/2017,499.27,83.21,Cems Crems Etc,CEMCRE,3454,Remove And Refix Memorials,Governance & Partnerships
Blackpool Council,1044756,Northgate Public Services (Uk) Ltd,3719693,91389883,18/05/2017,4642.46,773.74,Contingencies,AD0301,3801,Other Expenses,Contingencies
Blackpool Council,1012038,REDACTED PERSONAL DATA,3719696,351852,18/05/2017,2472,412,Costs Pl,RK8002,3807,Legal & Court Costs,Internal Insurance
Blackpool Council,1012038,REDACTED PERSONAL DATA,3719697,382817,18/05/2017,420,70,Costs Plh,RK8003,3807,Legal & Court Costs,Internal Insurance
Blackpool Council,1099746,Unity Academy,3719698,BC010317-230617,18/05/2017,2311.47,0,Children With Additional Needs,CWAN,3801,Other Expenses,Children'S Services
Blackpool Council,1011976,Randstad Education Limited,3719699,3826770,18/05/2017,631.91,105.32,Children With Additional Needs,CWAN,4501,Private Contractors,Children'S Services
Blackpool Council,1112713,REDACTED PERSONAL DATA,3719723,FOSTER PAYMENT,04/05/2017,322.29,0,Looked After Children,JBR,4808,Other Addition Allow,Children'S Services
Blackpool Council,1084160,Excel Fostering Limited,3719742,108083,03/05/2017,3445.34,0,Senior Management,JEA,4501,Private Contractors,Children'S Services
Blackpool Council,1084160,Excel Fostering Limited,3719744,108553,03/05/2017,2636.82,0,Senior Management,JEA,4501,Private Contractors,Children'S Services
Blackpool Council,1084160,Excel Fostering Limited,3719745,108551,03/05/2017,2497.8,0,Senior Management,JEA,4501,Private Contractors,Children'S Services
